DATE OF TRANSACTION,LA DEPARTMENT INCURRING SPEND,BENEFICIARY,GROSS AMOUNT,SUMMARY OF PURPOSEOF SPEND,MERCHANT CATEGORY
29/11/2017,FAIRCROFT COMMUNITY HOME,PRIMARK,58.80,3RD PARTY PAYMENTS PRIVATE INDIV,FAMILY CLOTHING STORES
29/11/2017,AD OPERATIONS HIGHWAYS AND COUNTRYSIDE,AMAZON.CO.UK,15.99,REFRESHMENT COSTS,BOOK STORES
29/11/2017,FAMILIES REIGATE AND BANSTREAD,AMAZON.CO.UK,2.16,EQUIPMENT,BOOK STORES
29/11/2017,TARGETED INTERVENTION,NBX CRAGGY ISLAND,65.00,EDUC VISITS/HOLS/CAMPS/TOYS,"CLUBS-CNTRY,MBRSHIP(ATHLET,REC,SPRTS,PRIVATE GOLF"
29/11/2017,TARGETED INTERVENTION,TOP GOLF LTD,10.65,EDUC VISITS/HOLS/CAMPS/TOYS,"CLUBS-CNTRY,MBRSHIP(ATHLET,REC,SPRTS,PRIVATE GOLF"
29/11/2017,HILLSIDE,PRIMARK,4.00,"CLOTHING, UNIFORM AND LAUNDRY",FAMILY CLOTHING STORES
29/11/2017,HILLSIDE,PRIMARK,-4.00,"CLOTHING, UNIFORM AND LAUNDRY",FAMILY CLOTHING STORES
29/11/2017,TARGETED INTERVENTION,CERAMICS CAFE HERSHAM,56.00,EDUC VISITS/HOLS/CAMPS/TOYS,MISCELLANEOUS HOUSE FURNISHING SPECIALTY SHOPS
29/11/2017,TARGETED INTERVENTION,ALLSAINTS,5.80,EDUC VISITS/HOLS/CAMPS/TOYS,"EATING PLACES, RESTAURANTS"
29/11/2017,TARGETED INTERVENTION,TOP GOLF LTD,24.75,EDUC VISITS/HOLS/CAMPS/TOYS,"CLUBS-CNTRY,MBRSHIP(ATHLET,REC,SPRTS,PRIVATE GOLF"
29/11/2017,SW CARE - CP & COURT LAC,TRAVELODGE,104.00,INDEPENDENT LIVING PLACEMENTS,TRAVELODGE
29/11/2017,NW CARE - LAC,TRAVELODGE,204.00,INDEPENDENT LIVING PLACEMENTS,TRAVELODGE
29/11/2017,TARGETED INTERVENTION,WAITROSE 216,9.50,EDUC VISITS/HOLS/CAMPS/TOYS,"GROCERY STORES, SUPERMARKETS"
29/11/2017,TARGETED INTERVENTION,KITKABIN LTD,14.00,EDUC VISITS/HOLS/CAMPS/TOYS,SPORTING GOODS STORES
29/11/2017,TARGETED INTERVENTION,FREEDOM LEISURE,9.10,EDUC VISITS/HOLS/CAMPS/TOYS,GOVERNMENT SERVICES-NOT ELSEWHERE CLASSIFIED
29/11/2017,MOLE VALLEY CMHRS CARE,HMCTS-SURREY125,75.00,FEES,FINES
29/11/2017,MALLOW CRESCENT,SAINSBURYS TO YOU 0652,19.20,PURCHASE OF FOOD (RAW MATERIALS),"GROCERY STORES, SUPERMARKETS"
29/11/2017,MALLOW CRESCENT,SAINSBURYS TO YOU 0652,124.90,PURCHASE OF FOOD (RAW MATERIALS),"GROCERY STORES, SUPERMARKETS"
29/11/2017,ACL CENTRAL EXPENDITURE,COOKSON PRECIOUS M,791.72,EQUIPMENT,"PRECIOUS STONES AND METALS, WATCHES AND JEWELRY"
29/11/2017,TRANSPORT,PAYPAL  PCW PAYPAL,339.99,EQUIPMENT,ELECTRONIC SALES
29/11/2017,FAIRCROFT COMMUNITY HOME,SAINSBURYS SACAT 0687,13.00,PURCHASE OF FOOD (RAW MATERIALS),"GROCERY STORES, SUPERMARKETS"
29/11/2017,"NE REF, ASS & INT SERVICE - HUB 2",MP PLASTIC BUILDING PR,149.18,EQUIPMENT,"UTLTS-ELCTRC, GAS, HEATING OIL, SANITARY, WATER"
29/11/2017,PROPERTY OPERATIONS TEAM,SCREWFIX DIR. LTD,10.99,PURCHASE OF BUILDING MATERIALS,"BUILDING MATERIALS, LUMBER STORES"
29/11/2017,APPLEWOOD,ASDA HOME SHOPPING,43.42,PURCHASE OF FOOD (RAW MATERIALS),"GROCERY STORES, SUPERMARKETS"
29/11/2017,APPLEWOOD,ASDA HOME SHOPPING,-1.50,PURCHASE OF FOOD (RAW MATERIALS),"GROCERY STORES, SUPERMARKETS"
29/11/2017,FAIRCROFT COMMUNITY HOME,SAINSBURYS 0687,33.10,REFRESHMENT COSTS,"GROCERY STORES, SUPERMARKETS"
29/11/2017,FAIRCROFT COMMUNITY HOME,SAINSBURYS 0687,11.10,PURCHASE OF FOOD (RAW MATERIALS),"GROCERY STORES, SUPERMARKETS"
29/11/2017,HILLSIDE,SAINSBURYS 0675,16.00,PURCHASE OF FOOD (RAW MATERIALS),"GROCERY STORES, SUPERMARKETS"
29/11/2017,HILLSIDE,SAINSBURYS 0675,55.36,PURCHASE OF FOOD (RAW MATERIALS),"GROCERY STORES, SUPERMARKETS"
29/11/2017,CHILDREN'S RIGHTS TEAM,GBP SODHA & COMPANY LI,70.93,REFRESHMENT COSTS,FAST FOOD RESTAURANTS
29/11/2017,CHILDREN'S RIGHTS TEAM,TESCO PFS 2552,6.33,REFRESHMENT COSTS,SERVICE STATIONS WITH OR WITHOUT ANCILLARY SERVICE
29/11/2017,VIRTUAL SCHOOL FOR LAC PUPIL PREMIUM,FUNKYPIGEON.COM,28.98,SPECIALIST EDUCATIONAL STATIONERY,"GIFT, CARD, NOVELTY AND SOUVENIR SHOPS"
29/11/2017,ARUNDEL,WWW.GOMPELS.CO.UK,71.64,CLEANING MATERIALS,INDUSTRIAL SUPPLIES NOT ELSEWHERE CLASSIFIED
29/11/2017,HOPE SERVICE - WEST,SAINSBURYS SACAT(4409),5.95,PURCHASE OF FOOD (RAW MATERIALS),"GROCERY STORES, SUPERMARKETS"
29/11/2017,IMM EMER CARE RESP,SP SERVICES,523.20,OPERATIONAL FIRE EQUIPMENT,DENTAL/LAB/MED/OPHTHALMIC HOSP EQUIP & SUPPLIES
29/11/2017,TRANSPORT,AMAZON UK RETAIL AMAZO,63.96,STATIONERY,MISCELLANEOUS AND SPECIALTY RETAIL STORES
29/11/2017,PROPERTY BUSINESS & PERFORMANCE TEAM,DENBIES OFFICE,560.40,VENUE COSTS (INCLUDING HIRE OF ROOMS),TOURIST ATTRACTIONS AND EXHIBITS
29/11/2017,ASSET PLANNING GROUP,SAINSBURYS PFS0591,69.75,VEHICLE RUNNING COSTS,SERVICE STATIONS WITH OR WITHOUT ANCILLARY SERVICE
29/11/2017,ARUNDEL,TESCO STORES 5999,157.09,REFRESHMENT COSTS,"GROCERY STORES, SUPERMARKETS"
29/11/2017,ARUNDEL,TESCO STORES 5999,9.00,REFRESHMENT COSTS,"GROCERY STORES, SUPERMARKETS"
29/11/2017,BURBANK COMMUNITY HOME,SAINSBURYS TO YOU 0686,324.66,PURCHASE OF FOOD (RAW MATERIALS),"GROCERY STORES, SUPERMARKETS"
29/11/2017,PE/CDT MAINTENANCE OVERHEADS,POTTERYCRAFTS LTD,145.68,ITEMS PURCHASED FOR RE-SALE,CRYSTAL AND GLASSWARE STORES
29/11/2017,PE/CDT MAINTENANCE OVERHEADS,HALFORDS 0731,19.99,EQUIPMENT,BICYCLE SHOPS-SALES AND SERVICE
29/11/2017,KARIBU COMMUNITY HOME,SAINSBURYS SACAT 0687,57.10,EQUIPMENT,"GROCERY STORES, SUPERMARKETS"
29/11/2017,KARIBU COMMUNITY HOME,SAINSBURYS 0683,99.40,PURCHASE OF FOOD (RAW MATERIALS),"GROCERY STORES, SUPERMARKETS"
29/11/2017,KARIBU COMMUNITY HOME,TESCO - CHILDRENS ROOM,16.95,EQUIPMENT,MISCELLANEOUS AND SPECIALTY RETAIL STORES
29/11/2017,KARIBU COMMUNITY HOME,STARBUCKS,8.70,PURCHASE OF FOOD (RAW MATERIALS),"EATING PLACES, RESTAURANTS"
29/11/2017,FAMILIES RUNNYMEDE,HOBBYCRAFT,30.40,CURRICULUM CONSUMABLES,"ARTIST SUPPLY STORES, CRAFT SHOPS"
29/11/2017,SUPERFAST BROADBAND ECONOMIC DEVELOPMENT,LAYERSHIFT,60.00,COMPUTER SERVICES,COMPUTER NETWORK/INFORMATION SERVICES
29/11/2017,CYWS COMMISSIONING,POST OFFICE COUNTER,112.00,POSTAGE AND COURIER CHARGES,POSTAL SERVICES-GOVERNMENT ONLY
29/11/2017,CYWS COMMISSIONING,BIDDLES OF GUILDFORD,11.94,STATIONERY,"OFFICE, SCHOOL SUPPLY, AND STATIONERY STORES"
29/11/2017,CHEYNE WALK COMMUNITY HOME,TESCO-STORES 6647,230.06,PURCHASE OF FOOD (RAW MATERIALS),"GROCERY STORES, SUPERMARKETS"
29/11/2017,CS BUSINESS SUPPORT WEST,AMAZON UK RETAIL AMAZO,30.96,EQUIPMENT,MISCELLANEOUS AND SPECIALTY RETAIL STORES
29/11/2017,RBDM - GENERAL,WWW.VIKING-DIRECT.CO.U,152.81,CLEANING AND DOMESTIC SUPPLIES,STATIONERY/OFFICE SUPPLIES/PRINTING & WRITING PAP.
29/11/2017,DEVELOPMENT TEAM,AMAZON.CO.UK,2.29,STATIONERY,BOOK STORES
29/11/2017,FAMILIES WAVERLEY,SAINSBURYS SACAT 0670,4.33,PURCHASE OF FOOD (RAW MATERIALS),"GROCERY STORES, SUPERMARKETS"
29/11/2017,FAMILIES WAVERLEY,SAINSBURYS SACAT 0670,.22,PURCHASE OF FOOD (RAW MATERIALS),"GROCERY STORES, SUPERMARKETS"
29/11/2017,FAIRCROFT COMMUNITY HOME,WILKO WOKING,11.45,3RD PARTY PAYMENTS PRIVATE INDIV,HOUSEHOLD APPLIANCE STORES
29/11/2017,FAIRCROFT COMMUNITY HOME,AMAZON.CO.UK,4.99,3RD PARTY PAYMENTS PRIVATE INDIV,BOOK STORES
29/11/2017,MASH,MILK & MORE OFFLINE,177.00,REFRESHMENT COSTS,"MISC FOOD STORE-CONVENIENCE,MRKT,SPLTY,VENDNG MACS"
29/11/2017,ARUNDEL,SEINE RIGGER LTD,85.50,REFRESHMENT COSTS,"EATING PLACES, RESTAURANTS"
29/11/2017,S28A MENTAL HEALTH/OLDER PEOPLE,HMCTS-SURREY125,75.00,FEES,FINES
29/11/2017,DESKTOP 2 CAPITAL FUNDING,AMAZON UK RETAIL AMAZO,129.99,CE04 CAPITAL ICT,MISCELLANEOUS AND SPECIALTY RETAIL STORES
29/11/2017,KARIBU COMMUNITY HOME,AMAZON.CO.UK,7.99,EDUC VISITS/HOLS/CAMPS/TOYS,BOOK STORES
29/11/2017,ACL CENTRAL EXPENDITURE,TESCO STORE 2160,63.56,REFRESHMENT COSTS,"GROCERY STORES, SUPERMARKETS"
29/11/2017,ROW VOLUNTEERS WEST                     ,WWW.TOOLSTATION.COM,14.57,EQUIPMENT,HARDWARE STORES
29/11/2017,BURBANK COMMUNITY HOME,C.E.X LIMITED,11.50,3RD PARTY PAYMENTS PRIVATE INDIV,ELECTRICAL PARTS AND EQUIPMENT
29/11/2017,BURBANK COMMUNITY HOME,SAINSBURYS SACAT 0784,13.00,3RD PARTY PAYMENTS PRIVATE INDIV,"GROCERY STORES, SUPERMARKETS"
29/11/2017,BURBANK COMMUNITY HOME,SURREY HEATH BOROUGH C,1.80,MISCELLANEOUS STAFF TRAVEL,GOVERNMENT SERVICES-NOT ELSEWHERE CLASSIFIED
29/11/2017,BURBANK COMMUNITY HOME,W M MORRISONS,30.15,3RD PARTY PAYMENTS PRIVATE INDIV,"GROCERY STORES, SUPERMARKETS"
29/11/2017,FAIRCROFT COMMUNITY HOME,AMAZON.CO.UK,1.49,3RD PARTY PAYMENTS PRIVATE INDIV,BOOK STORES
29/11/2017,FAIRCROFT COMMUNITY HOME,RIVER ISLAND 343,-20.00,3RD PARTY PAYMENTS PRIVATE INDIV,MEN'S AND WOMEN'S CLOTHING STORES
29/11/2017,TARGETED INTERVENTION,TEAM SPORT V/T,240.00,EDUC VISITS/HOLS/CAMPS/TOYS,"AMUSEMENT PARKS,CARNIVALS,CIRCUS,FORTUNE TELLERS"
30/11/2017,PSS COUNTYWIDE,,27.99,EQUIPMENT,
30/11/2017,TRANSPORT,AMAZON.CO.UK,499.95,OPERATIONAL FIRE EQUIPMENT,BOOK STORES
30/11/2017,SOLD ESTATES MANAGEMENT,AMAZON.CO.UK,6.64,DAY TO DAY MAINTENANCE,BOOK STORES
30/11/2017,FAMILIES REIGATE AND BANSTREAD,AMAZON.CO.UK,14.42,CURRICULUM CONSUMABLES,BOOK STORES
30/11/2017,FAMILIES REIGATE AND BANSTREAD,AMAZON.CO.UK,17.98,CURRICULUM CONSUMABLES,BOOK STORES
30/11/2017,TRANSPORT DEVELOPMENT CONTROL,WWW.CGAENGRAVING.CO.UK,108.52,DESCRIPTION &AWARD LONG SERVICE,CRYSTAL AND GLASSWARE STORES
30/11/2017,COVEHAM,WWW.NISBETS.COM,41.98,EQUIPMENT,DIRECT MARKETING-CATALOG MERCHANTS
30/11/2017,FAIRCROFT COMMUNITY HOME,COFFEE SHOP,18.65,REFRESHMENT COSTS,"EATING PLACES, RESTAURANTS"
30/11/2017,AD OPERATIONS HIGHWAYS AND COUNTRYSIDE,ARGOS RETAIL GROUP,35.98,EQUIPMENT,DISCOUNT STORES
30/11/2017,ROW VOLUNTEERS WEST                     ,SCREWFIX,20.36,PURCHASE OF BUILDING MATERIALS,"BUILDING MATERIALS, LUMBER STORES"
30/11/2017,ROW VOLUNTEERS WEST                     ,SHELL BURNT CM 199,12.09,PETROL/DIESEL ALL OFF BUSINESS,SERVICE STATIONS WITH OR WITHOUT ANCILLARY SERVICE
30/11/2017,FAMILIES SPELTHORNE,W M MORRISONS,7.00,REFRESHMENT COSTS,"GROCERY STORES, SUPERMARKETS"
30/11/2017,TRANSPORT,AMAZON.CO.UK,41.07,OPERATIONAL FIRE EQUIPMENT,BOOK STORES
30/11/2017,COBHAM CHILDRENS CENTRE,WAITROSE 176,14.76,REFRESHMENT COSTS,"GROCERY STORES, SUPERMARKETS"
30/11/2017,LOCAL ASSISTANCE SCHEME,AMAZON UK RETAIL AMAZO,79.00,FURNITURE,MISCELLANEOUS AND SPECIALTY RETAIL STORES
30/11/2017,PROPERTY OPERATIONS TEAM,SCREWFIX,20.97,PURCHASE OF BUILDING MATERIALS,"BUILDING MATERIALS, LUMBER STORES"
30/11/2017,ASYLUM SEEKERS 18+,BRITISH A,230.27,OTHER COMMUNITY CARE VOL,BRITISH A
30/11/2017,SE CARE - CP & COURT LAC,LB CROYDON,12.20,OTHER COMMUNITY CARE VOL,GOVERNMENT SERVICES-NOT ELSEWHERE CLASSIFIED
30/11/2017,NW CARE - LAC,PREMIER INN,82.99,INDEPENDENT LIVING PLACEMENTS,PREMIER INN
30/11/2017,ORBIS TRAINING PROPERTY,AAA TRAINING CO LT,899.00,TRAINING EXPENSES EXTERNAL GENERAL,SCHOOLS & EDUCATIONAL SVC-NOT ELSEWHERE CLASSIFIED
30/11/2017,COUNTY HALL,WWW.NISBETS.COM,395.98,EQUIPMENT,DIRECT MARKETING-CATALOG MERCHANTS
30/11/2017,SUNBURY YC,ALDI 18 775,6.38,PURCHASE OF FOOD (RAW MATERIALS),"GROCERY STORES, SUPERMARKETS"
30/11/2017,BURBANK COMMUNITY HOME,W M MORRISONS,43.78,PURCHASE OF FOOD (RAW MATERIALS),"GROCERY STORES, SUPERMARKETS"
30/11/2017,HILLSIDE,HOUSE OF FRASER,28.00,EQUIPMENT,DEPARTMENT STORES
30/11/2017,CHILDREN'S RIGHTS TEAM,CO-OP GROUP FOOD,9.14,REFRESHMENT COSTS,"GROCERY STORES, SUPERMARKETS"
30/11/2017,BURBANK COMMUNITY HOME,W M MORRISONS,-2.00,PURCHASE OF FOOD (RAW MATERIALS),"GROCERY STORES, SUPERMARKETS"
30/11/2017,FAMILIES WAVERLEY,WAITROSE 216,1.48,PURCHASE OF FOOD (RAW MATERIALS),"GROCERY STORES, SUPERMARKETS"
30/11/2017,CHEYNE WALK COMMUNITY HOME,PRODUCT SUPPORT AG,2.00,EQUIPMENT,DIRECT MARKETING-CONTINUITY/SUBSCRIPTION MERCHANTS
30/11/2017,CHEYNE WALK COMMUNITY HOME,SKY BUSINESS,135.60,EQUIPMENT,"CABLE, SATELLITE, OTHER PAY TELEVISION, RADIO SVCS"
30/11/2017,SOLD ESTATES MANAGEMENT,B & Q 1029,35.29,DAY TO DAY MAINTENANCE,"BUILDING MATERIALS, LUMBER STORES"
30/11/2017,YSS YOUTH CENTRE IMPROVEMENTS,TVLICENSING.CO.UK,147.00,FEES,"CONSULTING, MANAGEMENT, AND PUBLIC RELATIONS SVCS"
30/11/2017,KARIBU COMMUNITY HOME,WWW.ARGOS.CO.UK,21.99,EQUIPMENT,DISCOUNT STORES
30/11/2017,FIRE & RESCUE COMMUNITY SAFETY,WH SMITH,125.00,STATIONERY,NEWS DEALERS AND NEWSSTANDS
30/11/2017,FAMILIES WAVERLEY,SAINSBURYS SACAT 0670,9.15,PURCHASE OF FOOD (RAW MATERIALS),"GROCERY STORES, SUPERMARKETS"
30/11/2017,TARGETED INTERVENTION,ALLSAINTS,8.20,EDUC VISITS/HOLS/CAMPS/TOYS,"EATING PLACES, RESTAURANTS"
30/11/2017,WORKPLACE COMMERCIAL TEAM,FACEBK S3S2VESCS2,14.80,PUBLICITY,ADVERTISING SERVICES
30/11/2017,WORKPLACE COMMERCIAL TEAM,FACEBK U3S2VESCS2,.20,PUBLICITY,ADVERTISING SERVICES
30/11/2017,WORKPLACE COMMERCIAL TEAM,BHAMCOUNCILPHONE,870.30,PUBLICITY,GOVERNMENT SERVICES-NOT ELSEWHERE CLASSIFIED
30/11/2017,MALLOW CRESCENT,CURRYS T/SALES,499.98,EQUIPMENT,ELECTRONIC SALES
30/11/2017,IMT SUPPORT FOR FIRE & RESCUE,AMAZON UK RETAIL AMAZO,92.35,COMPUTER CONSUMABLES,MISCELLANEOUS AND SPECIALTY RETAIL STORES
30/11/2017,NE AREA SEN MANAGEMENT TEAM,AMAZON UK MARKETPLACE,10.01,EQUIPMENT,BOOK STORES
30/11/2017,HOPE SERVICE - WEST,TESCO STORES 6320,7.00,PURCHASE OF FOOD (RAW MATERIALS),"GROCERY STORES, SUPERMARKETS"
30/11/2017,CHILDREN'S RIGHTS TEAM,PIZZA HUT ONLINE WEB,76.74,REFRESHMENT COSTS,"EATING PLACES, RESTAURANTS"
30/11/2017,COUNTY HALL,AMAZON UK MARKETPLACE,18.88,DAY TO DAY MAINTENANCE,BOOK STORES
30/11/2017,READY FOR WORK YSS,VUE NCS CITB HS&E TEST,19.50,EDUC VISITS/HOLS/CAMPS/TOYS,SCHOOLS & EDUCATIONAL SVC-NOT ELSEWHERE CLASSIFIED
30/11/2017,READY FOR WORK YSS,VUE NCS CITB HS&E TEST,19.50,FEES,SCHOOLS & EDUCATIONAL SVC-NOT ELSEWHERE CLASSIFIED
30/11/2017,READY FOR WORK YSS,VUE NCS CITB HS&E TEST,19.50,FEES,SCHOOLS & EDUCATIONAL SVC-NOT ELSEWHERE CLASSIFIED
30/11/2017,RUTH HOUSE,AMAZON UK MARKETPLACE,17.97,EQUIPMENT,BOOK STORES
30/11/2017,FAMILIES MOLE VALLEY,TESCO STORES 2812,11.95,PURCHASE OF FOOD (RAW MATERIALS),"GROCERY STORES, SUPERMARKETS"
30/11/2017,MALLOW CRESCENT,ATG TICKETS,37.35,PUBLICITY,"THEATRICAL PRODUCERS(EXCL MOTION PIX),TICKET AGNCY"
30/11/2017,HOPE SERVICE - WEST,SAINSBURYS TO YOU 0686,95.45,PURCHASE OF FOOD (RAW MATERIALS),"GROCERY STORES, SUPERMARKETS"
30/11/2017,CHEYNE WALK COMMUNITY HOME,TESCO STORE 2313,88.90,"CLOTHING, UNIFORM AND LAUNDRY","GROCERY STORES, SUPERMARKETS"
30/11/2017,CHEYNE WALK COMMUNITY HOME,TESCO STORE 2313,15.00,TELECOMMUNICATION CHARGES,"GROCERY STORES, SUPERMARKETS"
30/11/2017,FAMILIES ELMBRIDGE,TICKETOFFICESALE,82.80,NON-STAFF RELATED TRANSPORT COSTS,PASSENGER RAILWAYS
30/11/2017,FAMILIES ELMBRIDGE,TICKETOFFICESALE,-82.80,NON-STAFF RELATED TRANSPORT COSTS,PASSENGER RAILWAYS
30/11/2017,ACL CENTRAL EXPENDITURE,AMAZON UK MARKETPLACE,17.95,EQUIPMENT,BOOK STORES
30/11/2017,ACL CENTRAL EXPENDITURE,PAYPAL  COOKSONGOLD,13.20,EQUIPMENT,"PRECIOUS STONES AND METALS, WATCHES AND JEWELRY"
30/11/2017,RUTH HOUSE,G J HONOUR,366.98,PURCHASE OF FOOD (RAW MATERIALS),"MISC FOOD STORE-CONVENIENCE,MRKT,SPLTY,VENDNG MACS"
30/11/2017,RUTH HOUSE,RUTH HOUSE,820.40,PURCHASE OF FOOD (RAW MATERIALS),COMPUTER SOFTWARE STORES
30/11/2017,TRAINING AND DEVELOPMENT,FIELDHEAD HOTEL,447.90,TRAINING EXPENSES EXTERNAL GENERAL,"BAR,LOUNGE,DISCO,NIGHTCLUB,TAVERN-ALCOHOLIC DRINKS"
30/11/2017,COMMUNITY ARCHAEOLOGIST PROJECT,PAYPAL  JTBLACKMAN,20.17,EQUIPMENT,COMPUTER NETWORK/INFORMATION SERVICES
30/11/2017,GODALMING YC,GRO HM PASSPORT OFFICE,23.40,EDUC VISITS/HOLS/CAMPS/TOYS,GOVERNMENT SERVICES-NOT ELSEWHERE CLASSIFIED
30/11/2017,GODALMING YC,GRO HM PASSPORT OFFICE,6.45,POSTAGE AND COURIER CHARGES,GOVERNMENT SERVICES-NOT ELSEWHERE CLASSIFIED
30/11/2017,FAMILIES ELMBRIDGE,SAINSBURYS SACAT 0687,8.00,PURCHASE OF FOOD (RAW MATERIALS),"GROCERY STORES, SUPERMARKETS"
30/11/2017,FAMILIES ELMBRIDGE,SAINSBURYS SACAT 2663,6.60,PURCHASE OF FOOD (RAW MATERIALS),"GROCERY STORES, SUPERMARKETS"
30/11/2017,FAMILIES REIGATE AND BANSTREAD,ICELAND,6.74,PURCHASE OF FOOD (RAW MATERIALS),"GROCERY STORES, SUPERMARKETS"
30/11/2017,FAMILIES REIGATE AND BANSTREAD,BOOKER LIMITED REDHILL,55.43,EQUIPMENT,CATERERS
30/11/2017,NE TEACHERS,ANN ARBOR PUBLISH,136.20,STATIONERY,MISCELLANEOUS PUBLISHING AND PRINTING
30/11/2017,POSITIVE OPTIONS,BEST WESTERN PLUS STOK,535.98,MISCELLANEOUS STAFF TRAVEL,"LODGING-HOTELS,MOTELS,RESORTS-NOT CLASSIFIED"
30/11/2017,SOLD CATERING,AMAZON EU,25.98,CLEANING AND DOMESTIC SUPPLIES,DIRECT MARKETING-OTHER DIRECT MARKETERS/NOT ELSEW.
30/11/2017,SOLD CATERING,WWW.VIKING-DIRECT.CO.U,37.39,CLEANING AND DOMESTIC SUPPLIES,STATIONERY/OFFICE SUPPLIES/PRINTING & WRITING PAP.
30/11/2017,HOPE SERVICE - WEST,ATG TICKETS,40.00,EDUC VISITS/HOLS/CAMPS/TOYS,"THEATRICAL PRODUCERS(EXCL MOTION PIX),TICKET AGNCY"
30/11/2017,ARUNDEL,ASDA SUPERSTORE,82.76,CLEANING MATERIALS,"GROCERY STORES, SUPERMARKETS"
30/11/2017,TS SERVICE MANAGEMENT,CORNWALL COUNTY COUNCI,102.00,TRAINING EXPENSES EXTERNAL GENERAL,GOVERNMENT SERVICES-NOT ELSEWHERE CLASSIFIED
30/11/2017,TARGETED INTERVENTION,TESCO STORES-2047,9.69,EDUC VISITS/HOLS/CAMPS/TOYS,"GROCERY STORES, SUPERMARKETS"
30/11/2017,TARGETED INTERVENTION,TESCO STORES-2047,5.84,EDUC VISITS/HOLS/CAMPS/TOYS,"GROCERY STORES, SUPERMARKETS"
30/11/2017,TARGETED INTERVENTION,SQUIRES GARDEN CENTRE,5.80,EDUC VISITS/HOLS/CAMPS/TOYS,LAWN AND GARDEN SUPPLY STORES
30/11/2017,LIBERTAS COMMUNITY HOME,SAINSBURYS SACAT 0652,21.00,PURCHASE OF FOOD (RAW MATERIALS),"GROCERY STORES, SUPERMARKETS"
30/11/2017,LIBERTAS COMMUNITY HOME,SAINSBURYS SACAT 0652,140.88,PURCHASE OF FOOD (RAW MATERIALS),"GROCERY STORES, SUPERMARKETS"
30/11/2017,LIBERTAS COMMUNITY HOME,SAINSBURYS SACAT 0652,10.20,EQUIPMENT,"GROCERY STORES, SUPERMARKETS"
30/11/2017,CENTRAL COMMS - EARLY YEARS             ,FACEBK KDU8HEA2S2,452.60,PUBLICITY,ADVERTISING SERVICES
30/11/2017,CENTRAL COMMS - EARLY YEARS             ,FACEBK LDU8HEA2S2,38.33,PUBLICITY,ADVERTISING SERVICES
30/11/2017,ACL CENTRAL EXPENDITURE,FACEBK JNGTBDAU82,9.10,PUBLICITY,ADVERTISING SERVICES
30/11/2017,ACL CENTRAL EXPENDITURE,FACEBK 9V7WXCSBB2,152.64,PUBLICITY,ADVERTISING SERVICES
30/11/2017,ARUNDEL,AMAZON.CO.UK,23.97,EQUIPMENT,BOOK STORES
30/11/2017,HOPE SERVICE - WEST,SAINSBURYS SACAT(4409),3.50,PURCHASE OF FOOD (RAW MATERIALS),"GROCERY STORES, SUPERMARKETS"
30/11/2017,PRISON CAPITATION                       ,AMAZON EU,7.99,LIBRARY RESOURCES,DIRECT MARKETING-OTHER DIRECT MARKETERS/NOT ELSEW.
30/11/2017,SECTOR MANAGER,WWW.FAYEUK.COM,575.04,ITEMS PURCHASED FOR RE-SALE,LEATHER GOODS AND LUGGAGE STORES
30/11/2017,SECTOR MANAGER,WWW.FAYEUK.COM,269.60,ITEMS PURCHASED FOR RE-SALE,LEATHER GOODS AND LUGGAGE STORES
30/11/2017,SERVICE DELIVERY RESOURCES,GEOGRAPHERS A-Z,50.28,OPERATIONAL FIRE EQUIPMENT,BOOK STORES
30/11/2017,TRANSPORT,AMAZON UK MARKETPLACE,50.97,OPERATIONAL FIRE EQUIPMENT,BOOK STORES
30/11/2017,SOLD ESTATES MANAGEMENT,HALFORDS 0763,10.99,VEHICLE REPAIRS AND MAINTENANCE,BICYCLE SHOPS-SALES AND SERVICE
30/11/2017,LIBERTAS COMMUNITY HOME,DEBENHAMS,200.45,EDUC VISITS/HOLS/CAMPS/TOYS,DEPARTMENT STORES
30/11/2017,S28A MENTAL HEALTH/OLDER PEOPLE,SECURITY ADVICE,144.00,FEES,HARDWARE STORES
30/11/2017,LIBERTAS COMMUNITY HOME,CLINTONS 1192,60.88,EDUC VISITS/HOLS/CAMPS/TOYS,"GIFT, CARD, NOVELTY AND SOUVENIR SHOPS"
30/11/2017,HILLSIDE,ICELAND,54.38,PURCHASE OF FOOD (RAW MATERIALS),"GROCERY STORES, SUPERMARKETS"
30/11/2017,LOCAL ASSISTANCE SCHEME,AMAZON UK MARKETPLACE,74.96,FURNITURE,BOOK STORES
30/11/2017,LOCAL ASSISTANCE SCHEME,AMAZON EU,86.21,FURNITURE,DIRECT MARKETING-OTHER DIRECT MARKETERS/NOT ELSEW.
30/11/2017,SW CARE - CP & COURT LAC,TRAVELODGE,87.25,INDEPENDENT LIVING PLACEMENTS,TRAVELODGE
30/11/2017,HOLLAND CLOSE RESIDENTIAL HOME,HOTPOINT/SPARE.COM,34.34,DAY TO DAY MAINTENANCE,HOUSEHOLD APPLIANCE STORES
30/11/2017,FAIRCROFT COMMUNITY HOME,NEW HAWELI,73.30,REFRESHMENT COSTS,"EATING PLACES, RESTAURANTS"
30/11/2017,ROW VOLUNTEERS WEST                     ,METHOLD VEHICLE HIRE,54.00,HIRE OF VEHICLES,AUTOMOBILE RENTAL AGENCY-NOT ELSEWHERE CLASSIFIED
30/11/2017,ROW MAINTENANCE,WWW.TOOLSTATION.COM,118.10,EQUIPMENT,HARDWARE STORES
01/12/2017,COVEHAM,AMAZON EU,15.51,STATIONERY,DIRECT MARKETING-OTHER DIRECT MARKETERS/NOT ELSEW.
01/12/2017,FAMILIES RUNNYMEDE,THE BIG APPLE,89.00,EDUC VISITS/HOLS/CAMPS/TOYS,BOWLING ALLEYS
01/12/2017,FAIRCROFT COMMUNITY HOME,WWW.UKFLAIR.COM,56.97,EDUC VISITS/HOLS/CAMPS/TOYS,"SPORTS APPAREL, RIDING APPAREL STORES"
01/12/2017,FAIRCROFT COMMUNITY HOME,AMAZON.CO.UK,6.99,3RD PARTY PAYMENTS PRIVATE INDIV,BOOK STORES
01/12/2017,FAMILIES EPSOM AND EWELL,CO-OP GROUP FOOD,2.69,PURCHASE OF FOOD (RAW MATERIALS),"GROCERY STORES, SUPERMARKETS"
01/12/2017,DEMOCRATIC SERVICES TEAM,AMAZON.CO.UK,58.52,PURCHASE OF FOOD (RAW MATERIALS),BOOK STORES
01/12/2017,TARGETED INTERVENTION,STARBUCKS,2.85,EDUC VISITS/HOLS/CAMPS/TOYS,"EATING PLACES, RESTAURANTS"
01/12/2017,TARGETED INTERVENTION,3C_ WOKING BOROUGH COU,2.80,MISCELLANEOUS STAFF TRAVEL,AUTOMOBILE PARKING LOTS AND GARAGES
01/12/2017,FAIRCROFT COMMUNITY HOME,TESCO STORE 2812,157.46,PURCHASE OF FOOD (RAW MATERIALS),"GROCERY STORES, SUPERMARKETS"
01/12/2017,CHMHS RAP TEAM,TOTAL MERCHANDISE,"2,727.00",PUBLICITY,MISCELLANEOUS GENERAL MERCHANDISE
01/12/2017,HOPE SERVICE - WEST,LUSH GUILDFORD,4.95,CURRICULUM CONSUMABLES,COSMETIC STORES
01/12/2017,HOPE SERVICE - WEST,PRIMARK STORES 655,5.00,CURRICULUM CONSUMABLES,FAMILY CLOTHING STORES
01/12/2017,LIBERTAS COMMUNITY HOME,BOOTS.COM,135.33,EDUC VISITS/HOLS/CAMPS/TOYS,"DRUG STORES, PHARMACIES"
01/12/2017,ACL CENTRAL EXPENDITURE,AMAZON UK RETAIL AMAZO,29.98,COMPUTER HARDWARE,MISCELLANEOUS AND SPECIALTY RETAIL STORES
01/12/2017,ACL CENTRAL EXPENDITURE,AMAZON.CO.UK,1.47,REFRESHMENT COSTS,BOOK STORES
01/12/2017,KARIBU COMMUNITY HOME,TK MAXX,4.99,"CLOTHING, UNIFORM AND LAUNDRY",VARIETY STORES
01/12/2017,KARIBU COMMUNITY HOME,ARGOS RETAIL GROUP,-42.98,EDUC VISITS/HOLS/CAMPS/TOYS,DISCOUNT STORES
01/12/2017,LOCAL ASSISTANCE SCHEME,AMAZON UK MARKETPLACE,52.99,FURNITURE,BOOK STORES
01/12/2017,LOCAL ASSISTANCE SCHEME,AMAZON EU,69.00,FURNITURE,DIRECT MARKETING-OTHER DIRECT MARKETERS/NOT ELSEW.
01/12/2017,LOCAL ASSISTANCE SCHEME,AMAZON UK RETAIL AMAZO,69.99,FURNITURE,MISCELLANEOUS AND SPECIALTY RETAIL STORES
01/12/2017,LOCAL ASSISTANCE SCHEME,AMAZON UK RETAIL AMAZO,74.96,FURNITURE,MISCELLANEOUS AND SPECIALTY RETAIL STORES
01/12/2017,LOCAL ASSISTANCE SCHEME,AMAZON.CO.UK,60.99,FURNITURE,BOOK STORES
01/12/2017,CHEYNE WALK COMMUNITY HOME,JP SUPPLIES,44.49,"CLOTHING, UNIFORM AND LAUNDRY","SANITATION, POLISHING & SPECIALITY CLEANING PREP"
01/12/2017,S28A MENTAL HEALTH/OLDER PEOPLE,HMCTS-SURREY125,75.00,FEES,FINES
01/12/2017,MAYFORD CENTRE - BUSINESS,SAINSBURYS 0652,20.00,EQUIPMENT,"GROCERY STORES, SUPERMARKETS"
01/12/2017,ESTATES DELIVERY MANAGER,RICS SUBS UK CYBS,121.00,SUBSCRIPTIONS,"ORGANIZATIONS, MEMBERSHIP-NOT ELSEWHERE CLASSIFIED"
01/12/2017,DOWNLANDS COUNTRYSIDE PROJECT,HOME BARGAINS,13.60,REFRESHMENT COSTS,HARDWARE STORES
01/12/2017,MERSTHAM YOUTH & COM HUB,AMZ TECTAKE UNITED KIN,-59.49,CE02 FURNITURE AND EQUIPMENT,MISCELLANEOUS AND SPECIALTY RETAIL STORES
01/12/2017,PERFORMANCE TEAM,AMAZON UK RETAIL AMAZO,33.96,EQUIPMENT,MISCELLANEOUS AND SPECIALTY RETAIL STORES
01/12/2017,ARUNDEL,TESCO STORES 5999,196.40,REFRESHMENT COSTS,"GROCERY STORES, SUPERMARKETS"
01/12/2017,COUNTY HALL,AMAZON UK MARKETPLACE,47.92,DAY TO DAY MAINTENANCE,BOOK STORES
01/12/2017,COUNTY HALL,AMAZON.CO.UK,39.56,EQUIPMENT,BOOK STORES
01/12/2017,FAMILIES REIGATE AND BANSTREAD,THE HIDE,2.30,EQUIPMENT,CONSTRUCTION MATERIALS NOT ELSEWHERE CLASSIFIED
01/12/2017,BURBANK COMMUNITY HOME,CEX (WOKING),26.60,3RD PARTY PAYMENTS PRIVATE INDIV,ELECTRONIC SALES
01/12/2017,BURBANK COMMUNITY HOME,BOOTS 2142,5.25,EQUIPMENT,"DRUG STORES, PHARMACIES"
01/12/2017,BURBANK COMMUNITY HOME,3C_ WOKING BOROUGH COU,4.20,MISCELLANEOUS STAFF TRAVEL,AUTOMOBILE PARKING LOTS AND GARAGES
01/12/2017,BURBANK COMMUNITY HOME,TOYS R US,9.99,3RD PARTY PAYMENTS PRIVATE INDIV,MISCELLANEOUS AND SPECIALTY RETAIL STORES
01/12/2017,FAMILIES REIGATE AND BANSTREAD,LIDL UK,22.67,PURCHASE OF FOOD (RAW MATERIALS),"GROCERY STORES, SUPERMARKETS"
01/12/2017,FAIRCROFT COMMUNITY HOME,SAINSBURYS SACAT 0687,15.85,PURCHASE OF FOOD (RAW MATERIALS),"GROCERY STORES, SUPERMARKETS"
01/12/2017,FAIRCROFT COMMUNITY HOME,SAINSBURYS 0687,10.00,PURCHASE OF FOOD (RAW MATERIALS),"GROCERY STORES, SUPERMARKETS"
01/12/2017,SE CARE - CP & COURT LAC,TRAVELODGE,247.75,INDEPENDENT LIVING PLACEMENTS,TRAVELODGE
01/12/2017,FAIRCROFT COMMUNITY HOME,AMAZON.CO.UK,31.43,3RD PARTY PAYMENTS PRIVATE INDIV,BOOK STORES
01/12/2017,SE CARE - CP & COURT LAC,TRAVELODGE,382.00,INDEPENDENT LIVING PLACEMENTS,TRAVELODGE
01/12/2017,WOODLANDS COMMUNITY HOME,PHOTOBOX LIMITED,16.39,EQUIPMENT,MISCELLANEOUS PUBLISHING AND PRINTING
01/12/2017,WOODLANDS COMMUNITY HOME,CINEWORLD,51.58,EDUC VISITS/HOLS/CAMPS/TOYS,"THEATRICAL PRODUCERS(EXCL MOTION PIX),TICKET AGNCY"
01/12/2017,WOODLANDS COMMUNITY HOME,CINEWORLD  CINEMAS,-13.38,EDUC VISITS/HOLS/CAMPS/TOYS,"THEATRICAL PRODUCERS(EXCL MOTION PIX),TICKET AGNCY"
01/12/2017,CHILDREN'S RIGHTS TEAM,PIZZA HUT ONLINE WEB,76.74,REFRESHMENT COSTS,"EATING PLACES, RESTAURANTS"
01/12/2017,CHILDREN'S RIGHTS TEAM,CO-OP GROUP FOOD,10.29,REFRESHMENT COSTS,"GROCERY STORES, SUPERMARKETS"
01/12/2017,AD OPERATIONS HIGHWAYS AND COUNTRYSIDE,SAINSBURYS SACAT 0652,5.25,REFRESHMENT COSTS,"GROCERY STORES, SUPERMARKETS"
01/12/2017,AD OPERATIONS HIGHWAYS AND COUNTRYSIDE,AMAZON UK RETAIL AMAZO,123.49,REFRESHMENT COSTS,MISCELLANEOUS AND SPECIALTY RETAIL STORES
01/12/2017,VIRTUAL SCHOOL FOR LAC PUPIL PREMIUM,AMAZON UK MARKETPLACE,62.90,SPECIALIST EDUCATIONAL STATIONERY,BOOK STORES
01/12/2017,VIRTUAL SCHOOL FOR LAC PUPIL PREMIUM,AMAZON UK MARKETPLACE,113.48,SPECIALIST EDUCATIONAL STATIONERY,BOOK STORES
01/12/2017,VIRTUAL SCHOOL FOR LAC PUPIL PREMIUM,AMAZON UK MARKETPLACE,74.63,SPECIALIST EDUCATIONAL STATIONERY,BOOK STORES
01/12/2017,VIRTUAL SCHOOL FOR LAC PUPIL PREMIUM,AMAZON UK RETAIL AMAZO,20.30,BOOKS,MISCELLANEOUS AND SPECIALTY RETAIL STORES
01/12/2017,PSSS VISUALLY IMPAIRED,SAINSBURYS (2340),198.74,EQUIPMENT,"GROCERY STORES, SUPERMARKETS"
01/12/2017,PSSS VISUALLY IMPAIRED,AMAZON.CO.UK,2.50,EQUIPMENT,BOOK STORES
01/12/2017,PSSS VISUALLY IMPAIRED,AMAZON.CO.UK,28.99,EQUIPMENT,BOOK STORES
01/12/2017,MALLOW CRESCENT,AMAZON UK MARKETPLACE,40.00,EQUIPMENT,BOOK STORES
01/12/2017,MALLOW CRESCENT,AMAZON.CO.UK,12.72,EQUIPMENT,BOOK STORES
01/12/2017,IMT CRITICAL ENVIRONMENTS,WWW.MILKANDMORE.CO.UK,45.00,REFRESHMENT COSTS,DIRECT MARKETING-CONTINUITY/SUBSCRIPTION MERCHANTS
01/12/2017,HILLSIDE,SAINSBURYS 0675,85.65,PURCHASE OF FOOD (RAW MATERIALS),"GROCERY STORES, SUPERMARKETS"
01/12/2017,HOPE SERVICE - WEST,TESCO STORES 3399,10.00,MEDICAL EXPENSES,"GROCERY STORES, SUPERMARKETS"
01/12/2017,EARLY HELP HUB NORTH WEST,AMAZON.CO.UK,11.70,STATIONERY,BOOK STORES
01/12/2017,TARGETED INTERVENTION,CORAL REEF,14.50,EDUC VISITS/HOLS/CAMPS/TOYS,RECREATION SERVICES (NOT ELSEWHERE CLASSIFIED)
01/12/2017,BURBANK COMMUNITY HOME,MCDONALDS,9.18,REFRESHMENT COSTS,FAST FOOD RESTAURANTS
01/12/2017,BURBANK COMMUNITY HOME,PRIMARK,12.00,"CLOTHING, UNIFORM AND LAUNDRY",FAMILY CLOTHING STORES
01/12/2017,FAIRCROFT COMMUNITY HOME,AMAZON.CO.UK,5.45,3RD PARTY PAYMENTS PRIVATE INDIV,BOOK STORES
01/12/2017,TARGETED INTERVENTION,CORAL REEF,14.50,EDUC VISITS/HOLS/CAMPS/TOYS,RECREATION SERVICES (NOT ELSEWHERE CLASSIFIED)
01/12/2017,TARGETED INTERVENTION,AMF BOWLING,5.20,EDUC VISITS/HOLS/CAMPS/TOYS,"CLUBS-CNTRY,MBRSHIP(ATHLET,REC,SPRTS,PRIVATE GOLF"
01/12/2017,QUADRANT COURT WOKING,AMAZON.CO.UK,5.89,STATIONERY,BOOK STORES
01/12/2017,ACL CENTRAL EXPENDITURE,WWW.VKF-RENZEL.CO.,53.64,EQUIPMENT,STATIONERY/OFFICE SUPPLIES/PRINTING & WRITING PAP.
01/12/2017,SOLD ESTATES MANAGEMENT,AMAZON UK RETAIL AMAZO,15.03,DAY TO DAY MAINTENANCE,MISCELLANEOUS AND SPECIALTY RETAIL STORES
01/12/2017,ESTATES DELIVERY MANAGER,RICS SUBS UK CYBS,519.00,SUBSCRIPTIONS,"ORGANIZATIONS, MEMBERSHIP-NOT ELSEWHERE CLASSIFIED"
01/12/2017,ESTATES DELIVERY MANAGER,RICS SUBS UK CYBS,519.00,SUBSCRIPTIONS,"ORGANIZATIONS, MEMBERSHIP-NOT ELSEWHERE CLASSIFIED"
01/12/2017,COUNTY HALL,WWW.4OURHOUSE.CO.UK,47.64,EQUIPMENT,ELECTRICAL PARTS AND EQUIPMENT
01/12/2017,TRACKING TEAM,WWW.ICSLEARN.CO.UK,285.00,FEES,SCHOOLS & EDUCATIONAL SVC-NOT ELSEWHERE CLASSIFIED
01/12/2017,RUTH HOUSE,SAINSBURYS TO YOU 0686,25.10,PURCHASE OF FOOD (RAW MATERIALS),"GROCERY STORES, SUPERMARKETS"
01/12/2017,RUTH HOUSE,SAINSBURYS TO YOU 0686,185.80,PURCHASE OF FOOD (RAW MATERIALS),"GROCERY STORES, SUPERMARKETS"
01/12/2017,TRAINING AND DEVELOPMENT,COPTHORNE SLOUGH,180.00,SUBSISTENCE AND CONFERENCE EXPENSES,"LODGING-HOTELS,MOTELS,RESORTS-NOT CLASSIFIED"
01/12/2017,TRAINING AND DEVELOPMENT,COPTHORNE SLOUGH,180.00,SUBSISTENCE AND CONFERENCE EXPENSES,"LODGING-HOTELS,MOTELS,RESORTS-NOT CLASSIFIED"
01/12/2017,CHEYNE WALK COMMUNITY HOME,TESCO STORES 2560,84.40,PURCHASE OF FOOD (RAW MATERIALS),"GROCERY STORES, SUPERMARKETS"
01/12/2017,CHEYNE WALK COMMUNITY HOME,TESCO STORES 2560,11.18,PURCHASE OF FOOD (RAW MATERIALS),"GROCERY STORES, SUPERMARKETS"
01/12/2017,CHMHS RAP TEAM,TOTAL MERCHANDISE,"2,727.00",PUBLICITY,MISCELLANEOUS GENERAL MERCHANDISE
01/12/2017,RECRUITMENT,FACEBK YVYP5DNQ82,44.43,STAFF ADVERTISING ,ADVERTISING SERVICES
02/12/2017,COMMUNICATIONS TEAM,TIMES NEWSPAPERS LTD,39.00,SUBSCRIPTIONS,"BOOKS,PERIODICALS AND NEWSPAPERS"
02/12/2017,WOODLANDS COMMUNITY HOME,CINEWORLD,-10.24,EDUC VISITS/HOLS/CAMPS/TOYS,"THEATRICAL PRODUCERS(EXCL MOTION PIX),TICKET AGNCY"
02/12/2017,WOODLANDS COMMUNITY HOME,CINEWORLD,-10.24,EDUC VISITS/HOLS/CAMPS/TOYS,"THEATRICAL PRODUCERS(EXCL MOTION PIX),TICKET AGNCY"
02/12/2017,WOODLANDS COMMUNITY HOME,CINEWORLD,-10.24,EDUC VISITS/HOLS/CAMPS/TOYS,"THEATRICAL PRODUCERS(EXCL MOTION PIX),TICKET AGNCY"
02/12/2017,HOPE SERVICE - WEST,AMAZON.CO.UK,3.30,CURRICULUM CONSUMABLES,BOOK STORES
02/12/2017,HOPE SERVICE - WEST,AMAZON.CO.UK,14.99,CURRICULUM CONSUMABLES,BOOK STORES
02/12/2017,FAIRCROFT COMMUNITY HOME,AMAZON.CO.UK,5.29,3RD PARTY PAYMENTS PRIVATE INDIV,BOOK STORES
02/12/2017,FAIRCROFT COMMUNITY HOME,AMAZON.CO.UK,1.99,3RD PARTY PAYMENTS PRIVATE INDIV,BOOK STORES
02/12/2017,FAIRCROFT COMMUNITY HOME,AMAZON.CO.UK,12.17,3RD PARTY PAYMENTS PRIVATE INDIV,BOOK STORES
02/12/2017,ACL CENTRAL EXPENDITURE,AMAZON.CO.UK,22.82,EQUIPMENT,BOOK STORES
02/12/2017,SUPERFAST BROADBAND ECONOMIC DEVELOPMENT,GOOGLE  SVCSAPPS_SUPER,13.75,COMPUTER SERVICES,DIRECT MARKETING-CONTINUITY/SUBSCRIPTION MERCHANTS
02/12/2017,COMMUNICATIONS TEAM,AMAZON UK MARKETPLACE,32.85,STATIONERY,BOOK STORES
02/12/2017,E&I - COMMUNITY RECYCLING CENTRES       ,GOOGLE  ADWS2060179426,500.00,PUBLICITY,DIRECT MARKETING-CONTINUITY/SUBSCRIPTION MERCHANTS
02/12/2017,EXTENDED HOPE,TESCO STORE 2590,66.95,PURCHASE OF FOOD (RAW MATERIALS),"GROCERY STORES, SUPERMARKETS"
02/12/2017,EXTENDED HOPE,TESCO STORE 2590,13.88,PURCHASE OF FOOD (RAW MATERIALS),"GROCERY STORES, SUPERMARKETS"
02/12/2017,EXTENDED HOPE,AMAZON.CO.UK,1.99,EQUIPMENT,BOOK STORES
02/12/2017,EXTENDED HOPE,AMAZON.CO.UK,13.31,EQUIPMENT,BOOK STORES
02/12/2017,EXTENDED HOPE,AMAZON.CO.UK,10.69,EQUIPMENT,BOOK STORES
02/12/2017,FAIRCROFT COMMUNITY HOME,AMAZON UK RETAIL AMAZO,15.74,3RD PARTY PAYMENTS PRIVATE INDIV,MISCELLANEOUS AND SPECIALTY RETAIL STORES
02/12/2017,PRISON CAPITATION                       ,AMAZON.CO.UK,24.82,LIBRARY RESOURCES,BOOK STORES
02/12/2017,PRISON CAPITATION                       ,AMAZON.CO.UK,17.87,LIBRARY RESOURCES,BOOK STORES
02/12/2017,TRANSPORT,AMAZON.CO.UK,103.20,OPERATIONAL FIRE EQUIPMENT,BOOK STORES
02/12/2017,EXTENDED HOPE,AMAZON.CO.UK,6.03,EQUIPMENT,BOOK STORES
02/12/2017,EXTENDED HOPE,AMAZON.CO.UK,4.98,EQUIPMENT,BOOK STORES
02/12/2017,EXTENDED HOPE,AMAZON.CO.UK,16.00,EQUIPMENT,BOOK STORES
02/12/2017,EXTENDED HOPE,AMAZON.CO.UK,11.98,EQUIPMENT,BOOK STORES
02/12/2017,EXTENDED HOPE,AMAZON.CO.UK,16.14,EQUIPMENT,BOOK STORES
02/12/2017,EXTENDED HOPE,AMAZON.CO.UK,3.00,EQUIPMENT,BOOK STORES
02/12/2017,LOCAL ASSISTANCE SCHEME,AMAZON.CO.UK,104.99,FURNITURE,BOOK STORES
02/12/2017,LOCAL ASSISTANCE SCHEME,AMAZON.CO.UK,38.00,FURNITURE,BOOK STORES
02/12/2017,LOCAL ASSISTANCE SCHEME,AMAZON.CO.UK,60.99,FURNITURE,BOOK STORES
02/12/2017,LOCAL ASSISTANCE SCHEME,AMAZON UK RETAIL AMAZO,40.00,FURNITURE,MISCELLANEOUS AND SPECIALTY RETAIL STORES
02/12/2017,LOCAL ASSISTANCE SCHEME,AMAZON UK RETAIL AMAZO,40.00,FURNITURE,MISCELLANEOUS AND SPECIALTY RETAIL STORES
02/12/2017,LOCAL ASSISTANCE SCHEME,AMAZON UK RETAIL AMAZO,69.99,FURNITURE,MISCELLANEOUS AND SPECIALTY RETAIL STORES
02/12/2017,LOCAL ASSISTANCE SCHEME,AMAZON UK RETAIL AMAZO,69.99,FURNITURE,MISCELLANEOUS AND SPECIALTY RETAIL STORES
02/12/2017,EXTENDED HOPE,AMAZON UK MARKETPLACE,29.74,EQUIPMENT,BOOK STORES
02/12/2017,CHEYNE WALK COMMUNITY HOME,MATALAN,85.60,EQUIPMENT,MEN'S AND WOMEN'S CLOTHING STORES
02/12/2017,APPLEWOOD,ASDA HOME SHOPPING,152.88,PURCHASE OF FOOD (RAW MATERIALS),"GROCERY STORES, SUPERMARKETS"
02/12/2017,APPLEWOOD,ASDA HOME SHOPPING,-.95,PURCHASE OF FOOD (RAW MATERIALS),"GROCERY STORES, SUPERMARKETS"
02/12/2017,ACL CENTRAL EXPENDITURE,W M MORRISONS,56.00,REFRESHMENT COSTS,"GROCERY STORES, SUPERMARKETS"
02/12/2017,HOLLAND CLOSE RESIDENTIAL HOME,TESCO-STORES 6647,151.80,PURCHASE OF FOOD (RAW MATERIALS),"GROCERY STORES, SUPERMARKETS"
02/12/2017,COUNTY HALL,AMAZON PRIME,7.99,SUBSCRIPTIONS,DIRECT MARKETING-CONTINUITY/SUBSCRIPTION MERCHANTS
02/12/2017,COUNTY HALL,AMAZON.CO.UK,299.97,EQUIPMENT,BOOK STORES
02/12/2017,COUNTY HALL,AMAZON UK RETAIL AMAZO,20.00,EQUIPMENT,MISCELLANEOUS AND SPECIALTY RETAIL STORES
02/12/2017,FAIRCROFT COMMUNITY HOME,SAINSBURYS PFS0473,6.90,PURCHASE OF FOOD (RAW MATERIALS),SERVICE STATIONS WITH OR WITHOUT ANCILLARY SERVICE
02/12/2017,NW CARE - LAC,AMAZON.CO.UK,13.79,CHILDREN ACT SEC 24 PAYMENTS,BOOK STORES
02/12/2017,WOODLANDS COMMUNITY HOME,CINEWORLD,10.24,EDUC VISITS/HOLS/CAMPS/TOYS,"THEATRICAL PRODUCERS(EXCL MOTION PIX),TICKET AGNCY"
02/12/2017,WOODLANDS COMMUNITY HOME,CINEWORLD,10.24,EDUC VISITS/HOLS/CAMPS/TOYS,"THEATRICAL PRODUCERS(EXCL MOTION PIX),TICKET AGNCY"
02/12/2017,VIRTUAL SCHOOL FOR LAC PUPIL PREMIUM,AMAZON UK RETAIL AMAZO,16.65,BOOKS,MISCELLANEOUS AND SPECIALTY RETAIL STORES
02/12/2017,VIRTUAL SCHOOL FOR LAC PUPIL PREMIUM,AMAZON UK RETAIL AMAZO,157.01,BOOKS,MISCELLANEOUS AND SPECIALTY RETAIL STORES
02/12/2017,WOODLANDS COMMUNITY HOME,CINEWORLD,10.24,EDUC VISITS/HOLS/CAMPS/TOYS,"THEATRICAL PRODUCERS(EXCL MOTION PIX),TICKET AGNCY"
02/12/2017,WOODLANDS COMMUNITY HOME,CINEWORLD,10.24,EDUC VISITS/HOLS/CAMPS/TOYS,"THEATRICAL PRODUCERS(EXCL MOTION PIX),TICKET AGNCY"
02/12/2017,WOODLANDS COMMUNITY HOME,MARKS&SPENCER PLC,42.50,"CLOTHING, UNIFORM AND LAUNDRY","GROCERY STORES, SUPERMARKETS"
02/12/2017,WOODLANDS COMMUNITY HOME,MARKS&SPENCER PLC,38.50,"CLOTHING, UNIFORM AND LAUNDRY","GROCERY STORES, SUPERMARKETS"
02/12/2017,HILLSIDE,SAINSBURYS TO YOU 0675,20.60,PURCHASE OF FOOD (RAW MATERIALS),"GROCERY STORES, SUPERMARKETS"
02/12/2017,HILLSIDE,SAINSBURYS TO YOU 0675,216.65,PURCHASE OF FOOD (RAW MATERIALS),"GROCERY STORES, SUPERMARKETS"
02/12/2017,HILLSIDE,SAINSBURYS TO YOU 0675,-5.25,PURCHASE OF FOOD (RAW MATERIALS),"GROCERY STORES, SUPERMARKETS"
02/12/2017,PSSS VISUALLY IMPAIRED,AMAZON UK RETAIL AMAZO,55.98,EQUIPMENT,MISCELLANEOUS AND SPECIALTY RETAIL STORES
02/12/2017,FAIRCROFT COMMUNITY HOME,3C_ WOKING BOROUGH COU,2.80,MISCELLANEOUS STAFF TRAVEL,AUTOMOBILE PARKING LOTS AND GARAGES
02/12/2017,NW EDUCATION PSYCHOLOGISTS,AMAZON.CO.UK,7.98,EQUIPMENT,BOOK STORES
02/12/2017,ACCESS 2 EDUCATION NW NON-MEDICAL,AMAZON.CO.UK,17.79,BOOKS,BOOK STORES
02/12/2017,FAIRCROFT COMMUNITY HOME,MCDONALDS,11.97,REFRESHMENT COSTS,FAST FOOD RESTAURANTS
02/12/2017,BURBANK COMMUNITY HOME,W M MORRISONS,13.45,PURCHASE OF FOOD (RAW MATERIALS),"GROCERY STORES, SUPERMARKETS"
02/12/2017,BURBANK COMMUNITY HOME,AMAZON UK RETAIL AMAZO,5.00,3RD PARTY PAYMENTS PRIVATE INDIV,MISCELLANEOUS AND SPECIALTY RETAIL STORES
02/12/2017,KARIBU COMMUNITY HOME,POUNDWORLD RETAIL,9.95,EDUC VISITS/HOLS/CAMPS/TOYS,DISCOUNT STORES
02/12/2017,KARIBU COMMUNITY HOME,MCDONALDS,12.75,PURCHASE OF FOOD (RAW MATERIALS),FAST FOOD RESTAURANTS
02/12/2017,KARIBU COMMUNITY HOME,ATG TICKETS,24.50,EDUC VISITS/HOLS/CAMPS/TOYS,"THEATRICAL PRODUCERS(EXCL MOTION PIX),TICKET AGNCY"
02/12/2017,BURBANK COMMUNITY HOME,YE OLDE FISHMARKET,33.90,REFRESHMENT COSTS,FAST FOOD RESTAURANTS
02/12/2017,CHEYNE WALK COMMUNITY HOME,HOMEBASE LTD 087,150.00,EQUIPMENT,"BUILDING MATERIALS, LUMBER STORES"
02/12/2017,YOUTH ENGAGEMENT                        ,AMAZON UK RETAIL AMAZO,29.20,STATIONERY,MISCELLANEOUS AND SPECIALTY RETAIL STORES
02/12/2017,SOLD CATERING,AMAZON.CO.UK,18.99,CLEANING AND DOMESTIC SUPPLIES,BOOK STORES
02/12/2017,CHEYNE WALK COMMUNITY HOME,SAINSBURYS 0026,62.55,PURCHASE OF FOOD (RAW MATERIALS),"GROCERY STORES, SUPERMARKETS"
02/12/2017,CHEYNE WALK COMMUNITY HOME,SAINSBURYS 0026,8.70,LIBRARY RESOURCES,"GROCERY STORES, SUPERMARKETS"
02/12/2017,EXTENDED HOPE,AMAZON.CO.UK,2.45,EQUIPMENT,BOOK STORES
02/12/2017,FAIRCROFT COMMUNITY HOME,MCDONALDS,2.78,REFRESHMENT COSTS,FAST FOOD RESTAURANTS
03/12/2017,BURBANK COMMUNITY HOME,PRIMARK,44.00,3RD PARTY PAYMENTS PRIVATE INDIV,FAMILY CLOTHING STORES
03/12/2017,COVEHAM,AMZ AMAZON.CO.UK,-15.51,STATIONERY,DIRECT MARKETING-OTHER DIRECT MARKETERS/NOT ELSEW.
03/12/2017,ACL CENTRAL EXPENDITURE,AMAZON EU,32.51,EQUIPMENT,DIRECT MARKETING-OTHER DIRECT MARKETERS/NOT ELSEW.
03/12/2017,ACL CENTRAL EXPENDITURE,AMAZON EU,88.53,EQUIPMENT,DIRECT MARKETING-OTHER DIRECT MARKETERS/NOT ELSEW.
03/12/2017,CYWS COMMISSIONING,SAINSBURYS SACAT 0828,7.55,PURCHASE OF FOOD (RAW MATERIALS),"GROCERY STORES, SUPERMARKETS"
03/12/2017,CYWS COMMISSIONING,FOOD FOR THOUGHT,8.35,PURCHASE OF FOOD (RAW MATERIALS),"GROCERY STORES, SUPERMARKETS"
03/12/2017,FAMILIES REIGATE AND BANSTREAD,AMAZON.CO.UK,12.23,CURRICULUM CONSUMABLES,BOOK STORES
03/12/2017,COMMUNICATIONS TEAM,AMAZON UK MARKETPLACE,41.01,STATIONERY,BOOK STORES
03/12/2017,COMMUNICATIONS TEAM,AMAZON UK MARKETPLACE,41.01,STATIONERY,BOOK STORES
03/12/2017,CHAIRMAN,AMAZON EU,33.50,STATIONERY,DIRECT MARKETING-OTHER DIRECT MARKETERS/NOT ELSEW.
03/12/2017,WOODLANDS COMMUNITY HOME,SAINSBURYS TO YOU 0686,6.00,CLEANING MATERIALS,"GROCERY STORES, SUPERMARKETS"
03/12/2017,WOODLANDS COMMUNITY HOME,SAINSBURYS TO YOU 0686,2.80,PURCHASE OF FOOD (RAW MATERIALS),"GROCERY STORES, SUPERMARKETS"
03/12/2017,WOODLANDS COMMUNITY HOME,SAINSBURYS TO YOU 0686,149.95,PURCHASE OF FOOD (RAW MATERIALS),"GROCERY STORES, SUPERMARKETS"
03/12/2017,WOODLANDS COMMUNITY HOME,SAINSBURYS TO YOU 0686,-2.00,PURCHASE OF FOOD (RAW MATERIALS),"GROCERY STORES, SUPERMARKETS"
03/12/2017,EXTENDED HOPE,AMAZON.CO.UK,5.50,EQUIPMENT,BOOK STORES
03/12/2017,FAIRCROFT COMMUNITY HOME,SAINSBURYS SACAT 0687,17.30,PURCHASE OF FOOD (RAW MATERIALS),"GROCERY STORES, SUPERMARKETS"
03/12/2017,FAIRCROFT COMMUNITY HOME,SELFSERVE TICKET,7.20,NON-STAFF RELATED TRANSPORT COSTS,PASSENGER RAILWAYS
03/12/2017,CHEYNE WALK COMMUNITY HOME,ARGOS RETAIL GROUP,19.98,EQUIPMENT,DISCOUNT STORES
03/12/2017,VIRTUAL SCHOOL FOR LAC PUPIL PREMIUM,AMAZON UK MARKETPLACE,215.26,SPECIALIST EDUCATIONAL STATIONERY,BOOK STORES
03/12/2017,VIRTUAL SCHOOL FOR LAC PUPIL PREMIUM,AMAZON EU,120.21,BOOKS,DIRECT MARKETING-OTHER DIRECT MARKETERS/NOT ELSEW.
03/12/2017,VIRTUAL SCHOOL FOR LAC PUPIL PREMIUM,AMAZON.CO.UK,215.38,SPECIALIST EDUCATIONAL STATIONERY,BOOK STORES
03/12/2017,CHEYNE WALK COMMUNITY HOME,SAINSBURYS 2325,22.30,EQUIPMENT,"GROCERY STORES, SUPERMARKETS"
03/12/2017,CHEYNE WALK COMMUNITY HOME,SAINSBURYS 2325,7.75,PURCHASE OF FOOD (RAW MATERIALS),"GROCERY STORES, SUPERMARKETS"
03/12/2017,WOODLANDS COMMUNITY HOME,AMAZON UK PRIME AMZN.C,7.99,SUBSCRIPTIONS,DIRECT MARKETING-CONTINUITY/SUBSCRIPTION MERCHANTS
03/12/2017,APPLEWOOD,AMAZON.CO.UK,26.99,EQUIPMENT,BOOK STORES
03/12/2017,ACL CENTRAL EXPENDITURE,TESCO DELIVERY SAVER2,7.00,REFRESHMENT COSTS,DIRECT MARKETING-CONTINUITY/SUBSCRIPTION MERCHANTS
03/12/2017,HOLLAND CLOSE RESIDENTIAL HOME,KINDLE UNLIMITED AMAZO,7.99,SUBSCRIPTIONS,DIGITAL GOODS AUDIOVISUAL MEDIA
03/12/2017,VIRTUAL SCHOOL FOR LAC PUPIL PREMIUM,AMAZON EU,97.84,BOOKS,DIRECT MARKETING-OTHER DIRECT MARKETERS/NOT ELSEW.
03/12/2017,VIRTUAL SCHOOL FOR LAC PUPIL PREMIUM,AMAZON EU,82.18,BOOKS,DIRECT MARKETING-OTHER DIRECT MARKETERS/NOT ELSEW.
03/12/2017,FAIRCROFT COMMUNITY HOME,AMAZON.CO.UK,2.54,3RD PARTY PAYMENTS PRIVATE INDIV,BOOK STORES
03/12/2017,CORPORATE GROUP - LEGAL SERVICES,AMAZON UK MARKETPLACE,53.82,EQUIPMENT,BOOK STORES
03/12/2017,COMMUNICATIONS TEAM,HOO HOOTSUITE MEDIA I,5.50,SUBSCRIPTIONS,DIRECT MARKETING-CONTINUITY/SUBSCRIPTION MERCHANTS
03/12/2017,COMMUNICATIONS TEAM,AMAZON.CO.UK,43.21,STATIONERY,BOOK STORES
03/12/2017,COMMUNICATIONS TEAM,AMAZON.CO.UK,40.66,STATIONERY,BOOK STORES
03/12/2017,BURBANK COMMUNITY HOME,H&M,67.95,3RD PARTY PAYMENTS PRIVATE INDIV,MEN'S AND WOMEN'S CLOTHING STORES
03/12/2017,BURBANK COMMUNITY HOME,3C_ WOKING BOROUGH COU,1.40,MISCELLANEOUS STAFF TRAVEL,AUTOMOBILE PARKING LOTS AND GARAGES
03/12/2017,RUTH HOUSE,AMAZON UK MARKETPLACE,5.70,EDUC VISITS/HOLS/CAMPS/TOYS,BOOK STORES
03/12/2017,FAIRCROFT COMMUNITY HOME,SAINSBURYS SACAT 0687,35.36,PURCHASE OF FOOD (RAW MATERIALS),"GROCERY STORES, SUPERMARKETS"
04/12/2017,APPLEWOOD,MOTHERCARE DIRECT-E-CO,13.95,EQUIPMENT,DEPARTMENT STORES
04/12/2017,ACCESS PROGRAMMES,ARAB INSTRUMENTS,339.01,CURRIC BOOKS,"MUSIC STORES-INSTRUMENTS, PIANOS, SHEET MUSIC"
04/12/2017,SW CARE - LAC,PREMIER INN 44536485,75.99,OTHER COMMUNITY CARE VOL,"EATING PLACES, RESTAURANTS"
04/12/2017,TARGETED INTERVENTION,TOP GOLF LTD,17.00,EDUC VISITS/HOLS/CAMPS/TOYS,"CLUBS-CNTRY,MBRSHIP(ATHLET,REC,SPRTS,PRIVATE GOLF"
04/12/2017,ACCESS PROGRAMMES,KENDALL CARS GUILDFORD,85.00,HIRE OF VEHICLES,AUTOMOBILE RENTAL AGENCY-NOT ELSEWHERE CLASSIFIED
04/12/2017,TRANSPORT,PAYPAL  PCW PAYPAL,329.99,EQUIPMENT,ELECTRONIC SALES
04/12/2017,FAIRCROFT COMMUNITY HOME,TESCO STORE 2812,142.53,PURCHASE OF FOOD (RAW MATERIALS),"GROCERY STORES, SUPERMARKETS"
04/12/2017,CHMHS RAP TEAM,DISCOUNT-WHOLESALE,908.47,EDUC VISITS/HOLS/CAMPS/TOYS,DISCOUNT STORES
04/12/2017,PROPERTY OPERATIONS TEAM,B & Q 1029,15.18,PURCHASE OF BUILDING MATERIALS,"BUILDING MATERIALS, LUMBER STORES"
04/12/2017,LOWER MOLE COUNTRYSIDE PROJECT,MILL FARM PLANTS,68.40,PURCHASE OF BUILDING MATERIALS,LAWN AND GARDEN SUPPLY STORES
04/12/2017,PSSS VISUALLY IMPAIRED,SAINSBURYS (2269),185.41,EQUIPMENT,"GROCERY STORES, SUPERMARKETS"
04/12/2017,HOPE SERVICE - WEST,SAINSBURYS SACAT 0683,95.25,PURCHASE OF FOOD (RAW MATERIALS),"GROCERY STORES, SUPERMARKETS"
04/12/2017,ACL CENTRAL EXPENDITURE,AMAZON EU,14.97,EQUIPMENT,DIRECT MARKETING-OTHER DIRECT MARKETERS/NOT ELSEW.
04/12/2017,TRANSPORT,GEOGRAPHERS A-Z,-3.60,OPERATIONAL FIRE EQUIPMENT,BOOK STORES
04/12/2017,SOLD ESTATES MANAGEMENT,B & Q 1029,36.00,DAY TO DAY MAINTENANCE,"BUILDING MATERIALS, LUMBER STORES"
04/12/2017,BURBANK COMMUNITY HOME,KWIK FIT,154.00,VEHICLE REPAIRS AND MAINTENANCE,AUTOMOTIVE SERVICE SHOPS
04/12/2017,MALLOW CRESCENT,TESCO STORE 2590,13.10,PURCHASE OF FOOD (RAW MATERIALS),"GROCERY STORES, SUPERMARKETS"
04/12/2017,MALLOW CRESCENT,TESCO STORE 2590,81.41,PURCHASE OF FOOD (RAW MATERIALS),"GROCERY STORES, SUPERMARKETS"
04/12/2017,TRAINING AND DEVELOPMENT,DRIVING STANDARDS,950.00,TRAINING EXPENSES EXTERNAL GENERAL,GOVERNMENT SERVICES-NOT ELSEWHERE CLASSIFIED
04/12/2017,HILLSIDE,LIDL UK,.99,PURCHASE OF FOOD (RAW MATERIALS),"GROCERY STORES, SUPERMARKETS"
04/12/2017,HILLSIDE,LIDL UK,17.48,PURCHASE OF FOOD (RAW MATERIALS),"GROCERY STORES, SUPERMARKETS"
04/12/2017,HILLSIDE,LIDL UK,6.32,PURCHASE OF FOOD (RAW MATERIALS),"GROCERY STORES, SUPERMARKETS"
04/12/2017,TARGETED INTERVENTION,WOKING SNOOKER CENTRE,5.13,EDUC VISITS/HOLS/CAMPS/TOYS,RECREATIONAL AND SPORTING CAMPS
04/12/2017,LIBERTAS COMMUNITY HOME,SAINSBURYS SACAT 0652,6.66,EQUIPMENT,"GROCERY STORES, SUPERMARKETS"
04/12/2017,LIBERTAS COMMUNITY HOME,SAINSBURYS SACAT 0652,49.50,PURCHASE OF FOOD (RAW MATERIALS),"GROCERY STORES, SUPERMARKETS"
04/12/2017,LIBERTAS COMMUNITY HOME,SAINSBURYS SACAT 0652,157.17,PURCHASE OF FOOD (RAW MATERIALS),"GROCERY STORES, SUPERMARKETS"
04/12/2017,COMMUNICATIONS TEAM,AMAZON UK MARKETPLACE,69.98,STATIONERY,BOOK STORES
04/12/2017,CHEYNE WALK COMMUNITY HOME,WAITROSE 527,57.05,EQUIPMENT,"GROCERY STORES, SUPERMARKETS"
04/12/2017,CHEYNE WALK COMMUNITY HOME,SQUIRES GARDEN CENTRE,26.97,EQUIPMENT,LAWN AND GARDEN SUPPLY STORES
04/12/2017,CHEYNE WALK COMMUNITY HOME,TESCO STORES 2812,11.00,EQUIPMENT,"GROCERY STORES, SUPERMARKETS"
04/12/2017,MALLOW CRESCENT,SAINSBURYS TO YOU 0652,15.75,PURCHASE OF FOOD (RAW MATERIALS),"GROCERY STORES, SUPERMARKETS"
04/12/2017,MALLOW CRESCENT,SAINSBURYS TO YOU 0652,115.45,PURCHASE OF FOOD (RAW MATERIALS),"GROCERY STORES, SUPERMARKETS"
04/12/2017,COVEHAM,SAINSBURYS TO YOU 0687,143.39,REFRESHMENT COSTS,"GROCERY STORES, SUPERMARKETS"
04/12/2017,COVEHAM,SAINSBURYS TO YOU 0687,113.65,REFRESHMENT COSTS,"GROCERY STORES, SUPERMARKETS"
04/12/2017,HOPE SERVICE - WEST,SAINSBURYS TO YOU 0686,101.71,PURCHASE OF FOOD (RAW MATERIALS),"GROCERY STORES, SUPERMARKETS"
04/12/2017,MEMBERS EXPENSES (INCL ALLOWANCES),WWW.ICO.GOV.UK,500.00,SUBSCRIPTIONS,GOVERNMENT SERVICES-NOT ELSEWHERE CLASSIFIED
04/12/2017,MEMBERS EXPENSES (INCL ALLOWANCES),WWW.ICO.GOV.UK,35.00,SUBSCRIPTIONS,GOVERNMENT SERVICES-NOT ELSEWHERE CLASSIFIED
04/12/2017,FIRE & RESCUE COMMUNITY SAFETY,SAINSBURYS TO YOU 0687,76.00,REFRESHMENT COSTS,"GROCERY STORES, SUPERMARKETS"
04/12/2017,FAMILIES WAVERLEY,SAINSBURYS SACAT 0670,6.45,PURCHASE OF FOOD (RAW MATERIALS),"GROCERY STORES, SUPERMARKETS"
04/12/2017,TARGETED INTERVENTION,TWO RIVERS CAR PK,1.20,EDUC VISITS/HOLS/CAMPS/TOYS,AUTOMOBILE PARKING LOTS AND GARAGES
04/12/2017,NW CARE - CP & COURT LAC,AMAZON.CO.UK,7.56,CHILDREN ACT SEC 24 PAYMENTS,BOOK STORES
04/12/2017,ASYLUM SEEKERS 18+,WWW.THERANGE.CO.UK,77.94,EQUIPMENT,"EQUIP, FURNITURE, HOME FURNSHNGS STRS (EXCPT APPL)"
04/12/2017,SW CARE - CP & COURT LAC,TRAVELODGE,193.50,INDEPENDENT LIVING PLACEMENTS,TRAVELODGE
04/12/2017,MALLOW CRESCENT,SAINSBURYS TO YOU 0652,17.80,PURCHASE OF FOOD (RAW MATERIALS),"GROCERY STORES, SUPERMARKETS"
04/12/2017,MALLOW CRESCENT,SAINSBURYS TO YOU 0652,103.78,PURCHASE OF FOOD (RAW MATERIALS),"GROCERY STORES, SUPERMARKETS"
04/12/2017,FAIRCROFT COMMUNITY HOME,CHINA CHEF,67.20,REFRESHMENT COSTS,"EATING PLACES, RESTAURANTS"
04/12/2017,FAMILIES SPELTHORNE,TESCO STORE 2047,41.03,REFRESHMENT COSTS,"GROCERY STORES, SUPERMARKETS"
04/12/2017,DOWNLANDS COUNTRYSIDE PROJECT,WILKO RETAIL LIMIT,7.80,EQUIPMENT,HOUSEHOLD APPLIANCE STORES
04/12/2017,MGMT TRAINEE STAFF COSTS,WWW.QA.COM,456.00,TRAINING EXPENSES EXTERNAL GENERAL,SCHOOLS & EDUCATIONAL SVC-NOT ELSEWHERE CLASSIFIED
04/12/2017,COVEHAM,ARGOS RETAIL GROUP,29.99,EQUIPMENT,DISCOUNT STORES
04/12/2017,FAMILIES RUNNYMEDE,ADDLESTONE CHURCH ROAD,7.01,CURRICULUM CONSUMABLES,DEPARTMENT STORES
04/12/2017,FAMILIES ELMBRIDGE,SAINSBURYS 2663,6.40,REFRESHMENT COSTS,"GROCERY STORES, SUPERMARKETS"
04/12/2017,ACCESS 2 EDUCATION SE NON-MEDICAL,ARGOS RETAIL GROUP,11.49,EQUIPMENT,DISCOUNT STORES
04/12/2017,IMT MODERN WORKER,RADTAC LIMITED,420.00,TRAINING EXPENSES EXTERNAL GENERAL,"CONSULTING, MANAGEMENT, AND PUBLIC RELATIONS SVCS"
04/12/2017,HOLLAND CLOSE RESIDENTIAL HOME,"BOOTS,REDHILL",23.99,MEDICAL EXPENSES,"DRUG STORES, PHARMACIES"
04/12/2017,FAMILIES SURREY HEATH,CO-OP GROUP 350033,2.54,REFRESHMENT COSTS,"GROCERY STORES, SUPERMARKETS"
04/12/2017,ACL CENTRAL EXPENDITURE,TESCO STORE 3149,87.98,REFRESHMENT COSTS,"GROCERY STORES, SUPERMARKETS"
04/12/2017,MALLOW CRESCENT,TESCO STORE 2590,10.93,PURCHASE OF FOOD (RAW MATERIALS),"GROCERY STORES, SUPERMARKETS"
04/12/2017,MALLOW CRESCENT,TESCO STORE 2590,89.42,PURCHASE OF FOOD (RAW MATERIALS),"GROCERY STORES, SUPERMARKETS"
04/12/2017,HILLSIDE,SAINSBURYS 0784,3.30,PURCHASE OF FOOD (RAW MATERIALS),"GROCERY STORES, SUPERMARKETS"
04/12/2017,SIGNS OF SAFETY TRAINING,,-7.99,SUBSCRIPTIONS,
05/12/2017,ACCESS 2 EDUCATION NE NON-MEDICAL,SAFE.CO.UK,249.00,EQUIPMENT,"OFFICE, SCHOOL SUPPLY, AND STATIONERY STORES"
05/12/2017,HEAD OF CHILDREN'S SERVICE,NOVOTEL HOTELS,119.00,SUBSISTENCE AND CONFERENCE EXPENSES,NOVOTEL HOTELS
05/12/2017,COUNTY HALL,AMZ AMAZON.CO.UK +44 2,-7.99,SUBSCRIPTIONS,MISCELLANEOUS AND SPECIALTY RETAIL STORES
05/12/2017,SW CARE - CP & COURT LAC,PREMIER INN,81.00,INDEPENDENT LIVING PLACEMENTS,PREMIER INN
05/12/2017,ROW VOLUNTEERS WEST                     ,PANTILES SERVICE STATI,12.00,PETROL/DIESEL ALL OFF BUSINESS,SERVICE STATIONS WITH OR WITHOUT ANCILLARY SERVICE
05/12/2017,ENSEMBLES & TOURS,WWW.MUSICROOM.COM,78.40,CURRIC BOOKS,"MUSIC STORES-INSTRUMENTS, PIANOS, SHEET MUSIC"
05/12/2017,DEVELOPMENT TEAM,"CLOUD9 IDE, INC",44.65,COMPUTER SERVICES,"COMPUTERS, COMPUTER PERIPHERAL EQUIPMENT, SOFTWARE"
05/12/2017,TARGETED INTERVENTION,TOP GOLF LTD,7.95,EDUC VISITS/HOLS/CAMPS/TOYS,"CLUBS-CNTRY,MBRSHIP(ATHLET,REC,SPRTS,PRIVATE GOLF"
05/12/2017,COVEHAM,WWW.WIDERFITSHOES.CO.U,35.00,"CLOTHING, UNIFORM AND LAUNDRY",SHOE STORES
05/12/2017,DOWNLANDS COUNTRYSIDE PROJECT,HALFORDS 0731,11.99,VEHICLE RUNNING COSTS,BICYCLE SHOPS-SALES AND SERVICE
05/12/2017,FAMILIES WOKING,BEEFEATER40011205,180.78,REFRESHMENT COSTS,"EATING PLACES, RESTAURANTS"
05/12/2017,KARIBU COMMUNITY HOME,WAITROSE 104,53.99,PURCHASE OF FOOD (RAW MATERIALS),"GROCERY STORES, SUPERMARKETS"
05/12/2017,FAMILIES WAVERLEY,LIDL UK,3.95,REFRESHMENT COSTS,"GROCERY STORES, SUPERMARKETS"
05/12/2017,DITTONS & CLAYGATE CC,THE CONSORTIUM/WMS,187.26,EQUIPMENT,DIRECT MARKETING-CONTINUITY/SUBSCRIPTION MERCHANTS
05/12/2017,FAIRCROFT COMMUNITY HOME,SAINSBURYS SACAT 0687,14.05,PURCHASE OF FOOD (RAW MATERIALS),"GROCERY STORES, SUPERMARKETS"
05/12/2017,CHEYNE WALK COMMUNITY HOME,AMAZON UK MARKETPLACE,28.42,EQUIPMENT,BOOK STORES
05/12/2017,MASH,AMAZON UK MARKETPLACE,71.97,REFRESHMENT COSTS,BOOK STORES
05/12/2017,SPELTHORNE CMHRS CARE,HMCTS-SURREY125,75.00,FEES,FINES
05/12/2017,TECHNICAL DELIVERY,AMAZON UK MARKETPLACE,72.67,COMPUTER HARDWARE,BOOK STORES
05/12/2017,ACL CENTRAL EXPENDITURE,TESCO STORE 2160,61.48,REFRESHMENT COSTS,"GROCERY STORES, SUPERMARKETS"
05/12/2017,HOPE SERVICE - WEST,NEXT RETAIL LTD,6.00,CURRICULUM CONSUMABLES,FAMILY CLOTHING STORES
05/12/2017,HOPE SERVICE - WEST,SPORTSDIRECT 234,4.00,CURRICULUM CONSUMABLES,SPORTING GOODS STORES
05/12/2017,RIGHTS OF WAY 'STRUCTURES CAPITAL',BRYANT FIXINGS LTD,45.24,CE02 FURNITURE AND EQUIPMENT,MISCELLANEOUS REPAIR SHOPS AND RELATED SERVICES
05/12/2017,ROW VOLUNTEERS WEST                     ,METHOLD VEHICLE HIRE,54.00,HIRE OF VEHICLES,AUTOMOBILE RENTAL AGENCY-NOT ELSEWHERE CLASSIFIED
05/12/2017,TARGETED INTERVENTION,WWW.SURREY.GOV.UK,12.50,EDUC VISITS/HOLS/CAMPS/TOYS,GOVERNMENT SERVICES-NOT ELSEWHERE CLASSIFIED
05/12/2017,COMMUNICATIONS TEAM,AMAZON UK MARKETPLACE,29.99,STATIONERY,BOOK STORES
05/12/2017,FAMILIES MOLE VALLEY,TESCO STORES 2812,11.27,PURCHASE OF FOOD (RAW MATERIALS),"GROCERY STORES, SUPERMARKETS"
05/12/2017,BURBANK COMMUNITY HOME,W M MORRISONS,65.50,3RD PARTY PAYMENTS PRIVATE INDIV,"GROCERY STORES, SUPERMARKETS"
05/12/2017,RUTH HOUSE,SAINSBURYS 0652,41.50,EQUIPMENT,"GROCERY STORES, SUPERMARKETS"
05/12/2017,RUTH HOUSE,SAINSBURYS 0652,13.35,EQUIPMENT,"GROCERY STORES, SUPERMARKETS"
05/12/2017,RUTH HOUSE,WWW.WILSONSBLINDS.CO.U,83.41,EQUIPMENT,"DRAPERY, UPOLSTERY, AND WINDOW COVERINGS STORES"
05/12/2017,RUTH HOUSE,SIMPLY SAFES,26.40,EQUIPMENT,OTHER SERVICES (NOT ELSEWHERE CLASSIFIED)
05/12/2017,RUTH HOUSE,DOMESTIC & GENERAL,80.88,EQUIPMENT,"INSURANCE SALES,UNDERWRITING,AND PREMIUMS"
05/12/2017,SERVICE DELIVERY SENIOR MANAGEMENT,POST OFFICE COUNTER,4.40,POSTAGE AND COURIER CHARGES,POSTAL SERVICES-GOVERNMENT ONLY
05/12/2017,ORBIS HR PROGRAMME AND PERFORMANCE,WWW.AAT-ORG.UK,92.00,SUBSCRIPTIONS,"ACCOUNTING, AUDITING AND BOOKKEEPING SERVICES"
05/12/2017,COVEHAM,ROBERT DYAS HOLDNG LTD,12.47,EQUIPMENT,HARDWARE STORES
05/12/2017,IN HOUSE CAPITAL IMPROVEMENTS,M & S CARPETS & FL,338.00,CE02 WORKS,FLOOR COVERING STORES
05/12/2017,MEMBER DEVELOPMENT/TRAINING,WESTMINSTER FORUM,276.00,TRAINING EXPENSES EXTERNAL GENERAL,"CONSULTING, MANAGEMENT, AND PUBLIC RELATIONS SVCS"
05/12/2017,TARGETED INTERVENTION,WINTER WONDERLAND,16.00,EDUC VISITS/HOLS/CAMPS/TOYS,FAST FOOD RESTAURANTS
05/12/2017,TARGETED INTERVENTION,WINTER WONDERLAND,10.00,EDUC VISITS/HOLS/CAMPS/TOYS,FAST FOOD RESTAURANTS
05/12/2017,TARGETED INTERVENTION,WINTER WONDERLAND,36.00,EDUC VISITS/HOLS/CAMPS/TOYS,FAST FOOD RESTAURANTS
05/12/2017,TARGETED INTERVENTION,HORIZON PARKING LTD,4.00,EDUC VISITS/HOLS/CAMPS/TOYS,AUTOMOBILE PARKING LOTS AND GARAGES
05/12/2017,TARGETED INTERVENTION,NEW SOUTHERN RAILW,43.00,EDUC VISITS/HOLS/CAMPS/TOYS,PASSENGER RAILWAYS
05/12/2017,TARGETED INTERVENTION,PUCCINOS,14.00,EDUC VISITS/HOLS/CAMPS/TOYS,FAST FOOD RESTAURANTS
05/12/2017,TARGETED INTERVENTION,ALLSAINTS,9.70,EDUC VISITS/HOLS/CAMPS/TOYS,"EATING PLACES, RESTAURANTS"
05/12/2017,TARGETED INTERVENTION,COSTA COFFEE 43038140,9.30,EDUC VISITS/HOLS/CAMPS/TOYS,FAST FOOD RESTAURANTS
05/12/2017,TARGETED INTERVENTION,TESCO STORE 2047,19.12,EXAMINATION FEES,"GROCERY STORES, SUPERMARKETS"
05/12/2017,ACL CENTRAL EXPENDITURE,TESCO STORE 2160,102.32,REFRESHMENT COSTS,"GROCERY STORES, SUPERMARKETS"
05/12/2017,TARGETED INTERVENTION,IZ  TAKE IT TO THE,35.00,EDUC VISITS/HOLS/CAMPS/TOYS,OTHER SERVICES (NOT ELSEWHERE CLASSIFIED)
05/12/2017,CHEYNE WALK COMMUNITY HOME,CARD FACTORY,13.80,EQUIPMENT,"GIFT, CARD, NOVELTY AND SOUVENIR SHOPS"
05/12/2017,COVEHAM,NRS HEALTHCARE,75.52,"CLOTHING, UNIFORM AND LAUNDRY",DENTAL/LAB/MED/OPHTHALMIC HOSP EQUIP & SUPPLIES
05/12/2017,CYWS COMMISSIONING,WWW.ONLINEREALITY.CO.U,613.67,FURNITURE,"EQUIP, FURNITURE, HOME FURNSHNGS STRS (EXCPT APPL)"
05/12/2017,EPSOM & EWELL CMHRS CARE,HMCTS-SURREY125,75.00,FEES,FINES
05/12/2017,DOWNLANDS COUNTRYSIDE PROJECT,TIMPSON LTD,18.00,EQUIPMENT,"HAT CLEANING SHOPS, SHOE REPAIR SHOPS, SHOE SHINE"
05/12/2017,DOWNLANDS COUNTRYSIDE PROJECT,MAXWELL AMENITY LTD,228.00,EQUIPMENT,LAWN AND GARDEN SUPPLY STORES
05/12/2017,DOWNLANDS COUNTRYSIDE PROJECT,MOLE COUNTRY STORES,52.19,EQUIPMENT,AGRICULTURAL COOPERATIVES
05/12/2017,DOWNLANDS COUNTRYSIDE PROJECT,WICKES,34.98,EQUIPMENT,"BUILDING MATERIALS, LUMBER STORES"
05/12/2017,HOPE SERVICE - WEST,SAINSBURYS SACAT(4409),3.40,NEWSPAPER AND PERIODICALS,"GROCERY STORES, SUPERMARKETS"
05/12/2017,ASSET PLANNING - OPERATIONS,GOV.UK/DART-CHARGE,3.00,FEES,"BRIDGE AND ROAD FEES, TOLLS"
05/12/2017,PROPERTY BUSINESS & PERFORMANCE TEAM,REIGATE HILL GOLF CLUB,381.50,VENUE COSTS (INCLUDING HIRE OF ROOMS),"CLUBS-CNTRY,MBRSHIP(ATHLET,REC,SPRTS,PRIVATE GOLF"
05/12/2017,CS BUSINESS SUPPORT EAST,LIDL UK,22.00,REFRESHMENT COSTS,"GROCERY STORES, SUPERMARKETS"
05/12/2017,WOODLANDS COMMUNITY HOME,SAINSBURYS SACAT 0686,11.05,PURCHASE OF FOOD (RAW MATERIALS),"GROCERY STORES, SUPERMARKETS"
05/12/2017,WOODLANDS COMMUNITY HOME,SAINSBURYS PFS0487,45.64,"CLOTHING, UNIFORM AND LAUNDRY",SERVICE STATIONS WITH OR WITHOUT ANCILLARY SERVICE
05/12/2017,ISPSB - ADAPTATIONS & IMPROVEMENTS,AMAZON UK MARKETPLACE,20.41,EDUC VISITS/HOLS/CAMPS/TOYS,BOOK STORES
05/12/2017,HILLSIDE,THE CAMBERLEY CLINIC,39.00,MEDICAL EXPENSES,"CHIROPODISTS, PODIATRISTS"
05/12/2017,HILLSIDE,SAINSBURYS 0675,49.66,PURCHASE OF FOOD (RAW MATERIALS),"GROCERY STORES, SUPERMARKETS"
05/12/2017,EARLY HELP HUB NORTH EAST,AMAZON UK MARKETPLACE,68.90,EQUIPMENT,BOOK STORES
05/12/2017,EARLY HELP HUB NORTH WEST,AMAZON UK MARKETPLACE,68.90,EQUIPMENT,BOOK STORES
05/12/2017,EARLY HELP HUB SOUTH WEST,AMAZON.CO.UK,68.90,EQUIPMENT,BOOK STORES
05/12/2017,LOCAL DELIVERY GROUP,MEON LTD,134.28,EQUIPMENT,BUSINESS SERVICES-NOT ELSEWHERE CLASSIFIED
05/12/2017,FAIRCROFT COMMUNITY HOME,HOME BARGAINS,22.41,EQUIPMENT,HARDWARE STORES
05/12/2017,FAIRCROFT COMMUNITY HOME,ASDA STORES 4393,20.05,EQUIPMENT,"GROCERY STORES, SUPERMARKETS"
05/12/2017,ACCESS PROGRAMMES,AMAZON EU,168.92,CURRIC BOOKS,DIRECT MARKETING-OTHER DIRECT MARKETERS/NOT ELSEW.
05/12/2017,ACL CENTRAL EXPENDITURE,AMAZON EU,24.95,EQUIPMENT,DIRECT MARKETING-OTHER DIRECT MARKETERS/NOT ELSEW.
05/12/2017,OCCUPATIONAL HEALTH,CRANLEA & CO,960.00,EQUIPMENT,DIRECT MARKETING-OTHER DIRECT MARKETERS/NOT ELSEW.
05/12/2017,TRANSPORT,AMAZON UK MARKETPLACE,17.00,OPERATIONAL FIRE EQUIPMENT,BOOK STORES
05/12/2017,YOUTH ENGAGEMENT                        ,AMAZON EU,81.76,STATIONERY,DIRECT MARKETING-OTHER DIRECT MARKETERS/NOT ELSEW.
05/12/2017,YOUTH ENGAGEMENT                        ,AMAZON EU,5.84,STATIONERY,DIRECT MARKETING-OTHER DIRECT MARKETERS/NOT ELSEW.
05/12/2017,TRANSPORT,EMJ MANAGEMENT LTD,267.60,"CLOTHING, UNIFORM AND LAUNDRY",INDUSTRIAL SUPPLIES NOT ELSEWHERE CLASSIFIED
05/12/2017,RUTH HOUSE,AMAZON UK MARKETPLACE,20.31,EQUIPMENT,BOOK STORES
05/12/2017,,,"-187,699.22",,
06/12/2017,ADOPTION CARE,WWW.CORAM.ORG.UK,264.00,OTHER COMMUNITY CARE VOL,"ORGANIZATIONS, CHARITABLE AND SOCIAL SERVICES"
06/12/2017,TARGETED INTERVENTION,TOP GOLF LTD,10.90,EDUC VISITS/HOLS/CAMPS/TOYS,"CLUBS-CNTRY,MBRSHIP(ATHLET,REC,SPRTS,PRIVATE GOLF"
06/12/2017,FAIRCROFT COMMUNITY HOME,ARGOS RETAIL GROUP,39.99,3RD PARTY PAYMENTS PRIVATE INDIV,DISCOUNT STORES
06/12/2017,SECTOR MANAGER,AMAZON.CO.UK,29.95,EQUIPMENT,BOOK STORES
06/12/2017,RBDM - GENERAL,SAFE.CO.UK,21.85,STATIONERY,"OFFICE, SCHOOL SUPPLY, AND STATIONERY STORES"
06/12/2017,FAMILIES WAVERLEY,LIPHOOK NORTH 229,2.25,REFRESHMENT COSTS,SERVICE STATIONS WITH OR WITHOUT ANCILLARY SERVICE
06/12/2017,OLD FIRE STN HASLEMERE,SHOECARE,88.00,DAY TO DAY MAINTENANCE,"HAT CLEANING SHOPS, SHOE REPAIR SHOPS, SHOE SHINE"
06/12/2017,TARGETED INTERVENTION,RINGGO PARKING,4.99,EDUC VISITS/HOLS/CAMPS/TOYS,AUTOMOBILE PARKING LOTS AND GARAGES
06/12/2017,TARGETED INTERVENTION,TOP GOLF LTD,50.00,EDUC VISITS/HOLS/CAMPS/TOYS,"CLUBS-CNTRY,MBRSHIP(ATHLET,REC,SPRTS,PRIVATE GOLF"
06/12/2017,IMT CRITICAL ENVIRONMENTS,MILK@MORE ONLINE,28.06,REFRESHMENT COSTS,"MISC FOOD STORE-CONVENIENCE,MRKT,SPLTY,VENDNG MACS"
06/12/2017,IMT CRITICAL ENVIRONMENTS,MILK@MORE ONLINE,26.38,REFRESHMENT COSTS,"MISC FOOD STORE-CONVENIENCE,MRKT,SPLTY,VENDNG MACS"
06/12/2017,HILLSIDE,SAINSBURYS 0675,39.50,PURCHASE OF FOOD (RAW MATERIALS),"GROCERY STORES, SUPERMARKETS"
06/12/2017,HILLSIDE,ARGOS WATCHMOOR PA,74.97,EQUIPMENT,DISCOUNT STORES
06/12/2017,HOPE SERVICE - WEST,SAINSBURYS SACAT 0683,11.25,CURRICULUM CONSUMABLES,"GROCERY STORES, SUPERMARKETS"
06/12/2017,HOPE SERVICE - WEST,SAINSBURYS 0683,11.15,CURRICULUM CONSUMABLES,"GROCERY STORES, SUPERMARKETS"
06/12/2017,TRANSPORT,BUCK & HICKMAN,721.87,OPERATIONAL FIRE EQUIPMENT,HARDWARE EQUIPMENT AND SUPPLIES
06/12/2017,CONSORT HOUSE REDHILL,SCREWFIX DIRECT LT,33.97,EQUIPMENT,"BUILDING MATERIALS, LUMBER STORES"
06/12/2017,DOWNLANDS COUNTRYSIDE PROJECT,TESCO STORES,33.05,REFRESHMENT COSTS,"GROCERY STORES, SUPERMARKETS"
06/12/2017,BURBANK COMMUNITY HOME,SAINSBURYS TO YOU 0686,347.25,PURCHASE OF FOOD (RAW MATERIALS),"GROCERY STORES, SUPERMARKETS"
06/12/2017,READY FOR WORK YSS,VUE NCS CITB HS&E TEST,19.50,FEES,SCHOOLS & EDUCATIONAL SVC-NOT ELSEWHERE CLASSIFIED
06/12/2017,FAMILIES RUNNYMEDE,WAITROSE 181,6.85,PURCHASE OF FOOD (RAW MATERIALS),"GROCERY STORES, SUPERMARKETS"
06/12/2017,FAMILIES GUILDFORD,FREEDOM LEISURE,1.80,REFRESHMENT COSTS,GOVERNMENT SERVICES-NOT ELSEWHERE CLASSIFIED
06/12/2017,FAMILIES ELMBRIDGE,SAINSBURYS 2663,7.55,PURCHASE OF FOOD (RAW MATERIALS),"GROCERY STORES, SUPERMARKETS"
06/12/2017,FAMILIES REIGATE AND BANSTREAD,ALDI 92 776,1.99,PURCHASE OF FOOD (RAW MATERIALS),"GROCERY STORES, SUPERMARKETS"
06/12/2017,FAIRCROFT COMMUNITY HOME,ROBERT DYAS HOLDNG LTD,24.63,EQUIPMENT,HARDWARE STORES
06/12/2017,CHEYNE WALK COMMUNITY HOME,TESCO-STORES 6647,242.66,PURCHASE OF FOOD (RAW MATERIALS),"GROCERY STORES, SUPERMARKETS"
06/12/2017,RBDM - GENERAL,AMAZON.CO.UK,101.88,ITEMS PURCHASED FOR RE-SALE,BOOK STORES
06/12/2017,SECTOR MANAGER,AMAZON UK MARKETPLACE,59.90,EQUIPMENT,BOOK STORES
06/12/2017,SECTOR MANAGER,AMAZON UK MARKETPLACE,59.90,EQUIPMENT,BOOK STORES
06/12/2017,RUTH HOUSE,AMAZON.CO.UK,14.99,EQUIPMENT,BOOK STORES
06/12/2017,RUTH HOUSE,WWW.WALLPAPERWAREHSELT,66.90,EQUIPMENT,"GLASS, PAINT, WALLPAPER STORES"
06/12/2017,LIBERTAS COMMUNITY HOME,LLOYDS AT SAINSBURYS,16.60,EQUIPMENT,"GROCERY STORES, SUPERMARKETS"
06/12/2017,EARLY HELP HUB SOUTH WEST,AMAZON UK MARKETPLACE,68.90,EQUIPMENT,BOOK STORES
06/12/2017,FAIRCROFT COMMUNITY HOME,SAINSBURYS 0687,24.50,PURCHASE OF FOOD (RAW MATERIALS),"GROCERY STORES, SUPERMARKETS"
06/12/2017,SAP COMPETENCY CENTRE,AMAZON MKTPLACE PMTS,370.53,COMPUTER SERVICES,MISCELLANEOUS AND SPECIALTY RETAIL STORES
06/12/2017,LIBERTAS COMMUNITY HOME,1ST HOME CHOICE LTD,20.00,EQUIPMENT,HOUSEHOLD APPLIANCE STORES
06/12/2017,COBHAM CHILDRENS CENTRE,THE BOOK PEOPLE,33.96,EQUIPMENT,BOOK STORES
06/12/2017,NW CARE - LAC,TRAVELODGE,69.25,INDEPENDENT LIVING PLACEMENTS,TRAVELODGE
06/12/2017,HERITAGE PUBLIC SERVICE,W M MORRISONS,19.85,REFRESHMENT COSTS,"GROCERY STORES, SUPERMARKETS"
06/12/2017,ARUNDEL,ASDA SUPERSTORE,79.84,EQUIPMENT,"GROCERY STORES, SUPERMARKETS"
06/12/2017,ARUNDEL,ASDA SUPERSTORE,40.64,REFRESHMENT COSTS,"GROCERY STORES, SUPERMARKETS"
06/12/2017,FAMILIES WAVERLEY,TESCO STORES 6011,6.94,REFRESHMENT COSTS,"GROCERY STORES, SUPERMARKETS"
06/12/2017,FAMILIES RUNNYMEDE,ADDLESTONE CHURCH ROAD,8.00,CURRICULUM CONSUMABLES,DEPARTMENT STORES
06/12/2017,ARUNDEL,HOMEBASE LTD 127,70.00,EQUIPMENT,"BUILDING MATERIALS, LUMBER STORES"
06/12/2017,TRANSPORT,PAYPAL  ANGY20,499.00,FURNITURE,VARIETY STORES
06/12/2017,PROPERTY OPERATIONS TEAM,WICKES,28.77,PURCHASE OF BUILDING MATERIALS,HOME SUPPLY WAREHOUSE STORES
06/12/2017,TRANSPORT,MARGNOR FASTENERS,70.03,VEHICLE REPAIRS AND MAINTENANCE,MISCELLANEOUS AND SPECIALTY RETAIL STORES
06/12/2017,SURREY HILLS AONB,TESCO STORE 2675,62.59,REFRESHMENT COSTS,"GROCERY STORES, SUPERMARKETS"
06/12/2017,TARGETED INTERVENTION,TOP GOLF LTD,36.47,EDUC VISITS/HOLS/CAMPS/TOYS,"CLUBS-CNTRY,MBRSHIP(ATHLET,REC,SPRTS,PRIVATE GOLF"
06/12/2017,ROW VOLUNTEERS WEST                     ,SAINSBURYS SACAT 0764,21.10,TRAINING EXPENSES EXTERNAL GENERAL,"GROCERY STORES, SUPERMARKETS"
06/12/2017,ROW VOLUNTEERS WEST                     ,SHELL HORSLEY,12.00,PETROL/DIESEL ALL OFF BUSINESS,SERVICE STATIONS WITH OR WITHOUT ANCILLARY SERVICE
06/12/2017,FAMILIES SPELTHORNE,SAINSBURYS 0679,15.50,REFRESHMENT COSTS,"GROCERY STORES, SUPERMARKETS"
06/12/2017,FAMILIES SPELTHORNE,HOBBYCRAFT,4.00,STATIONERY,"ARTIST SUPPLY STORES, CRAFT SHOPS"
06/12/2017,MALLOW CRESCENT,EPSOM PLAYHOUSE,62.15,PUBLICITY,MISCELLANEOUS GENERAL MERCHANDISE
06/12/2017,MALLOW CRESCENT,WWW.ARGOS.CO.UK,58.94,EQUIPMENT,DISCOUNT STORES
06/12/2017,EARLY HELP HUB NORTH EAST,AMAZON.CO.UK,9.79,EQUIPMENT,BOOK STORES
06/12/2017,NW CARE - CP & COURT LAC,CENTRAL CARS,130.81,TRANSPORT SOCIAL CARE-TAXI,LIMOUSINES AND TAXICABS
06/12/2017,NW CARE - CP & COURT LAC,G M CAR,220.00,TRANSPORT SOCIAL CARE-TAXI,LIMOUSINES AND TAXICABS
06/12/2017,ACL CENTRAL EXPENDITURE,FARNHAM CASTLE NEWSPAP,240.00,PUBLICITY,ADVERTISING SERVICES
06/12/2017,HOPE SERVICE - WEST,SAINSBURYS SACAT(4409),5.60,PURCHASE OF FOOD (RAW MATERIALS),"GROCERY STORES, SUPERMARKETS"
06/12/2017,HOPE SERVICE - WEST,HOMEBASE LTD 050,5.00,CURRICULUM CONSUMABLES,"BUILDING MATERIALS, LUMBER STORES"
06/12/2017,FAIRCROFT COMMUNITY HOME,SUPERDRUG STORES PLC,10.98,3RD PARTY PAYMENTS PRIVATE INDIV,"DRUG STORES, PHARMACIES"
06/12/2017,EQUIPMENT SCC BUDGET,AJC RETAIL SOLUTIONS L,352.80,EQUIPMENT,MISCELLANEOUS AND SPECIALTY RETAIL STORES
06/12/2017,TRANSPORT,AMAZON UK MARKETPLACE,10.19,STATIONERY,BOOK STORES
06/12/2017,MASH,AMAZON UK MARKETPLACE,89.92,REFRESHMENT COSTS,BOOK STORES
06/12/2017,ARUNDEL,TESCO STORES 5999,128.02,REFRESHMENT COSTS,"GROCERY STORES, SUPERMARKETS"
06/12/2017,ARUNDEL,TESCO STORES 5999,3.60,REFRESHMENT COSTS,"GROCERY STORES, SUPERMARKETS"
06/12/2017,SPELTHORNE CMHRS CARE,TRAVELODGE,57.25,OTHER COMMUNITY CARE PRIV,TRAVELODGE
06/12/2017,SPELTHORNE CMHRS CARE,TRAVELODGE,59.45,OTHER COMMUNITY CARE PRIV,TRAVELODGE
06/12/2017,TECHNICAL DELIVERY,AMAZON UK MARKETPLACE,72.67,COMPUTER HARDWARE,BOOK STORES
06/12/2017,TARGETED INTERVENTION,ODEON UPT,21.00,EDUC VISITS/HOLS/CAMPS/TOYS,MOTION PICTURE THEATERS
06/12/2017,TARGETED INTERVENTION,ODEON,12.90,EDUC VISITS/HOLS/CAMPS/TOYS,MOTION PICTURE THEATERS
06/12/2017,TARGETED INTERVENTION,COSTA ASHFORD,6.40,EDUC VISITS/HOLS/CAMPS/TOYS,"MISC FOOD STORE-CONVENIENCE,MRKT,SPLTY,VENDNG MACS"
06/12/2017,TARGETED INTERVENTION,TESCO STORE 2047,46.80,STATIONERY,"GROCERY STORES, SUPERMARKETS"
06/12/2017,NW CARE - LAC,AMAZON UK MARKETPLACE,72.95,CHILDREN ACT SEC 24 PAYMENTS,BOOK STORES
06/12/2017,TARGETED INTERVENTION,CERAMICS CAFE HERSHAM,30.70,EDUC VISITS/HOLS/CAMPS/TOYS,MISCELLANEOUS HOUSE FURNISHING SPECIALTY SHOPS
06/12/2017,CS BUSINESS SUPPORT WEST,TIMPSON LTD,36.00,EQUIPMENT,"HAT CLEANING SHOPS, SHOE REPAIR SHOPS, SHOE SHINE"
06/12/2017,"NW REF, ASS & INT SERVICE - HUB 1",GRO HM PASSPORT OFFICE,9.25,OTHER COMMUNITY CARE VOL,GOVERNMENT SERVICES-NOT ELSEWHERE CLASSIFIED
06/12/2017,NW CARE - LAC,MERCURE SHEFFIELD PARK,65.50,INDEPENDENT LIVING PLACEMENTS,"LODGING-HOTELS,MOTELS,RESORTS-NOT CLASSIFIED"
06/12/2017,MALLOW CRESCENT,SAINSBURYS TO YOU 0652,16.45,PURCHASE OF FOOD (RAW MATERIALS),"GROCERY STORES, SUPERMARKETS"
06/12/2017,MALLOW CRESCENT,SAINSBURYS TO YOU 0652,140.65,PURCHASE OF FOOD (RAW MATERIALS),"GROCERY STORES, SUPERMARKETS"
06/12/2017,TARGETED INTERVENTION,ODEON,5.35,EDUC VISITS/HOLS/CAMPS/TOYS,MOTION PICTURE THEATERS
06/12/2017,NE CARE - CP & COURT LAC,TRAVELODGE,490.75,INDEPENDENT LIVING PLACEMENTS,TRAVELODGE
06/12/2017,SE CARE - LAC,WESTSUSSEX.GOV.UK,36.45,OTHER COMMUNITY CARE VOL,"COLLEGES, UNIV, PRO SCHOOLS, JUNIOR COLLEGES"
06/12/2017,HOPE SERVICE - WEST,NEXT RETAIL LTD,5.00,CURRICULUM CONSUMABLES,FAMILY CLOTHING STORES
06/12/2017,HOPE SERVICE - WEST,HOMEBASE LTD 050,6.00,CURRICULUM CONSUMABLES,"BUILDING MATERIALS, LUMBER STORES"
06/12/2017,OTHER NON CWD HOME COSTS,CURRYS,558.99,EQUIPMENT,ELECTRONIC SALES
06/12/2017,CYWS COMMISSIONING,WWW.HEALTHANDCARE.CO.U,49.99,EQUIPMENT,DENTAL/LAB/MED/OPHTHALMIC HOSP EQUIP & SUPPLIES
06/12/2017,YSS YOUTH CENTRE IMPROVEMENTS,SCREWFIX DIRECT,24.99,DAY TO DAY MAINTENANCE,"BUILDING MATERIALS, LUMBER STORES"
06/12/2017,TARGETED INTERVENTION,TOP GOLF LTD,50.00,EDUC VISITS/HOLS/CAMPS/TOYS,"CLUBS-CNTRY,MBRSHIP(ATHLET,REC,SPRTS,PRIVATE GOLF"
06/12/2017,RUTH HOUSE,AMAZON UK MARKETPLACE,8.98,EDUC VISITS/HOLS/CAMPS/TOYS,BOOK STORES
06/12/2017,CHILDREN'S RIGHTS TEAM,AMAZON UK MARKETPLACE,30.00,EQUIPMENT,BOOK STORES
06/12/2017,TRANSPORT,AMAZON UK MARKETPLACE,33.98,OPERATIONAL FIRE EQUIPMENT,BOOK STORES
07/12/2017,TARGETED INTERVENTION,TEAM SPORT FARNBOROUGH,90.00,EDUC VISITS/HOLS/CAMPS/TOYS,"AMUSEMENT PARKS,CARNIVALS,CIRCUS,FORTUNE TELLERS"
07/12/2017,ACL CENTRAL EXPENDITURE,AMAZON SVCS EU-UK AMAZ,26.99,EQUIPMENT,BOOK STORES
07/12/2017,LOWER MOLE COUNTRYSIDE PROJECT,ERNEST DOE  SONS,37.00,EQUIPMENT,MISC/AUTO/AIRCRAFT/FARM EQUIP  NOT ELSEWHERE CLASS
07/12/2017,ISPSB - ADAPTATIONS & IMPROVEMENTS,AMAZON UK MARKETPLACE,72.90,EDUC VISITS/HOLS/CAMPS/TOYS,BOOK STORES
07/12/2017,TARGETED INTERVENTION,FARNBOROUGH RECREATION,5.70,EDUC VISITS/HOLS/CAMPS/TOYS,"CLUBS-CNTRY,MBRSHIP(ATHLET,REC,SPRTS,PRIVATE GOLF"
07/12/2017,TRAVEL AND TRANSPORT GROUP,POUNDLAND,12.05,STATIONERY,DISCOUNT STORES
07/12/2017,YSS YOUTH CENTRE IMPROVEMENTS,WWW.NISBETS.COM,76.75,EQUIPMENT,DIRECT MARKETING-CATALOG MERCHANTS
07/12/2017,COVEHAM,AMAZON EU,14.06,STATIONERY,DIRECT MARKETING-OTHER DIRECT MARKETERS/NOT ELSEW.
07/12/2017,CYWS COMMISSIONING,WH SMITH,22.44,PUBLICITY,NEWS DEALERS AND NEWSSTANDS
07/12/2017,SUNBURY YC,ASDA  STORES,10.75,EQUIPMENT,"GROCERY STORES, SUPERMARKETS"
07/12/2017,FAIRCROFT COMMUNITY HOME,LLOYDS AT SAINSBURYS,1.20,PURCHASE OF FOOD (RAW MATERIALS),"GROCERY STORES, SUPERMARKETS"
07/12/2017,FAIRCROFT COMMUNITY HOME,SAINSBURYS SACAT 0687,31.20,PURCHASE OF FOOD (RAW MATERIALS),"GROCERY STORES, SUPERMARKETS"
07/12/2017,FAIRCROFT COMMUNITY HOME,SAINSBURYS 0687,6.70,PURCHASE OF FOOD (RAW MATERIALS),"GROCERY STORES, SUPERMARKETS"
07/12/2017,HERITAGE PUBLIC SERVICE,W M MORRISONS,11.67,REFRESHMENT COSTS,"GROCERY STORES, SUPERMARKETS"
07/12/2017,EXTENDED HOPE,TESCO STORE 2590,133.81,PURCHASE OF FOOD (RAW MATERIALS),"GROCERY STORES, SUPERMARKETS"
07/12/2017,EXTENDED HOPE,TESCO STORE 2590,8.72,PURCHASE OF FOOD (RAW MATERIALS),"GROCERY STORES, SUPERMARKETS"
07/12/2017,WOODLANDS COMMUNITY HOME,SAINSBURYS TO YOU 0686,20.50,PURCHASE OF FOOD (RAW MATERIALS),"GROCERY STORES, SUPERMARKETS"
07/12/2017,WOODLANDS COMMUNITY HOME,SAINSBURYS TO YOU 0686,133.24,PURCHASE OF FOOD (RAW MATERIALS),"GROCERY STORES, SUPERMARKETS"
07/12/2017,ARUNDEL,AMAZON UK MARKETPLACE,27.90,EQUIPMENT,BOOK STORES
07/12/2017,HOPE SERVICE - WEST,NEXT RETAIL LTD,5.00,CURRICULUM CONSUMABLES,FAMILY CLOTHING STORES
07/12/2017,DEPUTYSHIP TEAM,SURREY CC CARD PAY,11.00,3RD PARTY PAYMENTS PRIVATE INDIV,COMPUTER NETWORK/INFORMATION SERVICES
07/12/2017,SURREY ARTS GENERAL,AMAZON UK MARKETPLACE,10.65,EQUIPMENT,BOOK STORES
07/12/2017,SURREY ARTS GENERAL,AMAZON EU,9.74,EQUIPMENT,DIRECT MARKETING-OTHER DIRECT MARKETERS/NOT ELSEW.
07/12/2017,SURREY ARTS GENERAL,AMAZON SVCS EU-UK AMAZ,4.75,EQUIPMENT,BOOK STORES
07/12/2017,BURBANK COMMUNITY HOME,B & Q 1029,114.38,PURCHASE OF BUILDING MATERIALS,"BUILDING MATERIALS, LUMBER STORES"
07/12/2017,BURBANK COMMUNITY HOME,B & Q 1029,32.84,DAY TO DAY MAINTENANCE,"BUILDING MATERIALS, LUMBER STORES"
07/12/2017,BURBANK COMMUNITY HOME,WICKES,54.27,DAY TO DAY MAINTENANCE,"BUILDING MATERIALS, LUMBER STORES"
07/12/2017,BURBANK COMMUNITY HOME,CURRYS S/S,34.99,EDUC VISITS/HOLS/CAMPS/TOYS,ELECTRONIC SALES
07/12/2017,CHEYNE WALK COMMUNITY HOME,AMAZON UK MARKETPLACE,19.99,EQUIPMENT,BOOK STORES
07/12/2017,KARIBU COMMUNITY HOME,CEX,61.60,EDUC VISITS/HOLS/CAMPS/TOYS,ELECTRICAL PARTS AND EQUIPMENT
07/12/2017,KARIBU COMMUNITY HOME,BREWERS FAYRE 41013530,78.39,EDUC VISITS/HOLS/CAMPS/TOYS,"EATING PLACES, RESTAURANTS"
07/12/2017,FAMILIES WAVERLEY,SAINSBURYS SACAT 0670,10.67,PURCHASE OF FOOD (RAW MATERIALS),"GROCERY STORES, SUPERMARKETS"
07/12/2017,FAMILIES TANDRIDGE,WAITROSE 838,2.00,REFRESHMENT COSTS,"GROCERY STORES, SUPERMARKETS"
07/12/2017,FAMILIES TANDRIDGE,THE WORKS,3.50,EQUIPMENT,DISCOUNT STORES
07/12/2017,FAMILIES TANDRIDGE,W M MORRISONS,5.60,REFRESHMENT COSTS,"GROCERY STORES, SUPERMARKETS"
07/12/2017,FAMILIES TANDRIDGE,W M MORRISONS,5.67,PURCHASE OF FOOD (RAW MATERIALS),"GROCERY STORES, SUPERMARKETS"
07/12/2017,YSS YOUTH CENTRE IMPROVEMENTS,AMAZON UK MARKETPLACE,32.36,EQUIPMENT,BOOK STORES
07/12/2017,ELMBRIDGE CMHRS CARE,HMCTS-SURREY125,75.00,FEES,FINES
07/12/2017,KARIBU COMMUNITY HOME,CLINTONS 4255,10.50,EQUIPMENT,"GIFT, CARD, NOVELTY AND SOUVENIR SHOPS"
07/12/2017,HILLSIDE,MATALAN,170.00,"CLOTHING, UNIFORM AND LAUNDRY",MEN'S AND WOMEN'S CLOTHING STORES
07/12/2017,SPELTHORNE CMHRS CARE,TRAVELODGE,986.25,OTHER COMMUNITY CARE PRIV,TRAVELODGE
07/12/2017,TRANSPORT PROJECTS TEAM,DVLA VEHICLE TAX,93.25,VEHICLE RUNNING COSTS,GOVERNMENT SERVICES-NOT ELSEWHERE CLASSIFIED
07/12/2017,MISC EDCAT SUPPORT,WWW.CIMAGLOBAL.COM,278.00,SUBSCRIPTIONS,"COLLEGES, UNIV, PRO SCHOOLS, JUNIOR COLLEGES"
07/12/2017,MALLOW CRESCENT,CURRYS SUPERSTORE,15.00,EQUIPMENT,ELECTRONIC SALES
07/12/2017,HILLSIDE,SAINSBURYS 0675,28.79,PURCHASE OF FOOD (RAW MATERIALS),"GROCERY STORES, SUPERMARKETS"
07/12/2017,HILLSIDE,ESSO FRIMLEY RD SSTN,71.35,PETROL/DIESEL ALL OFF BUSINESS,SERVICE STATIONS WITH OR WITHOUT ANCILLARY SERVICE
07/12/2017,FIRE EQUIPMENT (ERR),TOOLSTATION LTD,33.76,CE03 CAPITAL VEHICLES AND PLANT,HARDWARE STORES
07/12/2017,WOODLANDS COMMUNITY HOME,POST OFFICE COUNTER,16.80,POSTAGE AND COURIER CHARGES,POSTAL SERVICES-GOVERNMENT ONLY
07/12/2017,HOPE SERVICE - WEST,SAINSBURYS SACAT 0683,29.65,CURRICULUM CONSUMABLES,"GROCERY STORES, SUPERMARKETS"
07/12/2017,HOPE SERVICE - WEST,ODEON/BOOKIT,91.75,EDUC VISITS/HOLS/CAMPS/TOYS,MOTION PICTURE THEATERS
07/12/2017,EARLY HELP HUB SOUTH EAST,AMAZON UK MARKETPLACE,9.79,EQUIPMENT,BOOK STORES
07/12/2017,EARLY HELP HUB SOUTH WEST,AMAZON UK MARKETPLACE,9.79,EQUIPMENT,BOOK STORES
07/12/2017,EARLY HELP HUB NORTH WEST,AMAZON UK MARKETPLACE,9.79,EQUIPMENT,BOOK STORES
07/12/2017,VIRTUAL SCHOOL FOR LAC PUPIL PREMIUM,AMAZON UK MARKETPLACE,12.58,BOOKS,BOOK STORES
07/12/2017,ARUNDEL,AMAZON UK MARKETPLACE,18.00,EQUIPMENT,BOOK STORES
07/12/2017,MERSTHAM YOUTH CENTRE,JCM LOCKSMITHS LTD,14.40,SECURITY ALARM MAINTENANCE,HARDWARE STORES
07/12/2017,CHEYNE WALK COMMUNITY HOME,AMAZON UK MARKETPLACE,55.40,EQUIPMENT,BOOK STORES
07/12/2017,CHEYNE WALK COMMUNITY HOME,AMAZON EU,9.75,EQUIPMENT,DIRECT MARKETING-OTHER DIRECT MARKETERS/NOT ELSEW.
07/12/2017,PE/CDT MAINTENANCE OVERHEADS,SCREWFIX DIRECT,139.98,EQUIPMENT,"BUILDING MATERIALS, LUMBER STORES"
07/12/2017,COUNTY HALL,TLC (SOUTHERN) LTD,101.40,DAY TO DAY MAINTENANCE,HOUSEHOLD APPLIANCE STORES
07/12/2017,COUNTY HALL,AMAZON EU,10.36,EQUIPMENT,DIRECT MARKETING-OTHER DIRECT MARKETERS/NOT ELSEW.
07/12/2017,RUTH HOUSE,ASDA STORES 4823,255.48,EDUC VISITS/HOLS/CAMPS/TOYS,"GROCERY STORES, SUPERMARKETS"
07/12/2017,KARIBU COMMUNITY HOME,HOUSE OF FRASER,46.75,EQUIPMENT,DEPARTMENT STORES
07/12/2017,KARIBU COMMUNITY HOME,PANDORA CPT-EPSOM,220.00,"CLOTHING, UNIFORM AND LAUNDRY","CLOCK, JEWELRY, WATCH, AND SILVERWARE STORE"
07/12/2017,KARIBU COMMUNITY HOME,BOOTS 0809,31.97,EQUIPMENT,"DRUG STORES, PHARMACIES"
07/12/2017,ASSET PLANNING - OPERATIONS,POST OFFICE COUNTER,23.14,POSTAGE AND COURIER CHARGES,POSTAL SERVICES-GOVERNMENT ONLY
07/12/2017,CS BUSINESS SUPPORT WEST,AMAZON EU,43.23,STATIONERY,DIRECT MARKETING-OTHER DIRECT MARKETERS/NOT ELSEW.
07/12/2017,TARGETED INTERVENTION,AMAZON EU,17.85,CURRICULUM CONSUMABLES,DIRECT MARKETING-OTHER DIRECT MARKETERS/NOT ELSEW.
07/12/2017,YSS YOUTH CENTRE IMPROVEMENTS,AMZ DIRECT SOCCER LT,52.93,EQUIPMENT,COMPUTER NETWORK/INFORMATION SERVICES
07/12/2017,FAMILIES SURREY HEATH,HARVESTER KINGS HE,100.00,REFRESHMENT COSTS,"EATING PLACES, RESTAURANTS"
07/12/2017,RBDM - GENERAL,AMAZON UK MARKETPLACE,12.98,EQUIPMENT,BOOK STORES
07/12/2017,COBHAM CHILDRENS CENTRE,WAITROSE 176,10.85,REFRESHMENT COSTS,"GROCERY STORES, SUPERMARKETS"
07/12/2017,KARIBU COMMUNITY HOME,J D SPORTS 674,273.05,"CLOTHING, UNIFORM AND LAUNDRY",SPORTING GOODS STORES
07/12/2017,LOCAL ASSISTANCE SCHEME,AMAZON UK MARKETPLACE,60.99,FURNITURE,BOOK STORES
07/12/2017,LOCAL ASSISTANCE SCHEME,TESCO - SELLER_IST_1_2,199.99,FURNITURE,MISCELLANEOUS AND SPECIALTY RETAIL STORES
07/12/2017,MALLOW CRESCENT,WWW.ARGOS.CO.UK,33.93,EQUIPMENT,DISCOUNT STORES
07/12/2017,WORKPLACE COMMERCIAL TEAM,OCEANMEDIA.CO.UK,924.80,PUBLICITY,BUSINESS SERVICES-NOT ELSEWHERE CLASSIFIED
07/12/2017,MARCH OF THE WOMEN,WWW.SOG.ORG.UK,30.00,SUBSISTENCE AND CONFERENCE EXPENSES,BUSINESS SERVICES-NOT ELSEWHERE CLASSIFIED
07/12/2017,FAMILIES WAVERLEY,LIDL UK,14.88,REFRESHMENT COSTS,"GROCERY STORES, SUPERMARKETS"
07/12/2017,TARGETED INTERVENTION,FARNBOROUGH RECREATION,4.50,EDUC VISITS/HOLS/CAMPS/TOYS,"CLUBS-CNTRY,MBRSHIP(ATHLET,REC,SPRTS,PRIVATE GOLF"
07/12/2017,TARGETED INTERVENTION,ALLSAINTS,10.80,EDUC VISITS/HOLS/CAMPS/TOYS,"EATING PLACES, RESTAURANTS"
07/12/2017,TARGETED INTERVENTION,BLETCHINGLEY GOLF CLUB,4.50,EDUC VISITS/HOLS/CAMPS/TOYS,SPORTING GOODS STORES
07/12/2017,TARGETED INTERVENTION,VUE BSL-ATM,37.56,EDUC VISITS/HOLS/CAMPS/TOYS,MOTION PICTURE THEATERS
07/12/2017,CHMHS RAP TEAM,WWW.GOHOVERCART.CO,"3,339.87",EDUC VISITS/HOLS/CAMPS/TOYS,HOUSEHOLD APPLIANCE STORES
07/12/2017,CHMHS RAP TEAM,LOVE2SHOP.CO.UK,"3,512.95",EDUC VISITS/HOLS/CAMPS/TOYS,"ASSOCIATIONS-CIVIC, SOCIAL, AND FRATERNAL"
07/12/2017,PROPERTY OPERATIONS TEAM,PLUMBERS MATE LTD,15.00,PURCHASE OF BUILDING MATERIALS,PLUMBING AND HEATING EQUIPMENT
07/12/2017,PROPERTY OPERATIONS TEAM,SCREWFIX DIR. LTD,9.99,PURCHASE OF BUILDING MATERIALS,"BUILDING MATERIALS, LUMBER STORES"
07/12/2017,TARGETED INTERVENTION,VUE BSL-SITE,5.28,EDUC VISITS/HOLS/CAMPS/TOYS,MOTION PICTURE THEATERS
07/12/2017,SE CARE - LAC,TRAVELODGE,362.00,INDEPENDENT LIVING PLACEMENTS,TRAVELODGE
07/12/2017,TARGETED INTERVENTION,BLETCHINGLEY GOLF CLUB,6.75,EDUC VISITS/HOLS/CAMPS/TOYS,SPORTING GOODS STORES
07/12/2017,CS BUSINESS SUPPORT WEST,SCREWFIX DIRECT,15.99,EQUIPMENT,"BUILDING MATERIALS, LUMBER STORES"
07/12/2017,COMMUNICATIONS TEAM,AMAZON UK MARKETPLACE,19.99,STATIONERY,BOOK STORES
07/12/2017,COMMUNICATIONS TEAM,AMAZON EU,350.36,STATIONERY,DIRECT MARKETING-OTHER DIRECT MARKETERS/NOT ELSEW.
07/12/2017,HOPE SERVICE - WEST,SAINSBURYS TO YOU 0686,119.04,PURCHASE OF FOOD (RAW MATERIALS),"GROCERY STORES, SUPERMARKETS"
07/12/2017,PROPERTY OPERATIONS TEAM,SCREWFIX DIR. LTD,50.26,PURCHASE OF BUILDING MATERIALS,"BUILDING MATERIALS, LUMBER STORES"
07/12/2017,SURREY FRS INITIAL RESPONSE VEHICLES,PRECISION UNITS,907.20,CE03 CAPITAL VEHICLES AND PLANT,"CONTRACTORS,SPECIAL TRADE-NOT ELSEWHERE CLASSIFIED"
07/12/2017,SECTOR MANAGER,AMAZON UK MARKETPLACE,59.90,EQUIPMENT,BOOK STORES
07/12/2017,SECTOR MANAGER,AMAZON UK MARKETPLACE,59.90,EQUIPMENT,BOOK STORES
07/12/2017,SECTOR MANAGER,AMAZON UK MARKETPLACE,59.90,EQUIPMENT,BOOK STORES
07/12/2017,CSF BUSINESS SUPPORT EDUCATION,AMAZON UK MARKETPLACE,3.87,STATIONERY,BOOK STORES
07/12/2017,CHEYNE WALK COMMUNITY HOME,AMAZON UK MARKETPLACE,12.95,EQUIPMENT,BOOK STORES
07/12/2017,YSS YOUTH CENTRE IMPROVEMENTS,AMAZON UK MARKETPLACE,32.37,EQUIPMENT,BOOK STORES
08/12/2017,ROAD SAFETY TEAM,WWW.NECCONTRACT.COM,68.20,BOOKS,MISCELLANEOUS PUBLISHING AND PRINTING
08/12/2017,MALLOW CRESCENT,AMAZON EU,34.99,EQUIPMENT,DIRECT MARKETING-OTHER DIRECT MARKETERS/NOT ELSEW.
08/12/2017,SPEECH & LANGUAGE THERAPY,WWW.INFORMA.COM,79.98,BOOKS,MISCELLANEOUS PUBLISHING AND PRINTING
08/12/2017,HOPE SERVICE - WEST,SAINSBURYS SACAT 0683,18.05,CURRICULUM CONSUMABLES,"GROCERY STORES, SUPERMARKETS"
08/12/2017,HOPE SERVICE - WEST,SAINSBURYS SACAT 0683,5.00,CURRICULUM CONSUMABLES,"GROCERY STORES, SUPERMARKETS"
08/12/2017,CHILDREN'S RIGHTS TEAM,ARGOS LTD,53.97,EQUIPMENT,DISCOUNT STORES
08/12/2017,ACL CENTRAL EXPENDITURE,SURREY & HANTS NEWS LT,180.00,PUBLICITY,DIRECT MARKETING-OTHER DIRECT MARKETERS/NOT ELSEW.
08/12/2017,ARUNDEL,ASDA SUPERSTORE,172.88,REFRESHMENT COSTS,"GROCERY STORES, SUPERMARKETS"
08/12/2017,ARUNDEL,ASDA SUPERSTORE,24.97,REFRESHMENT COSTS,"GROCERY STORES, SUPERMARKETS"
08/12/2017,ARUNDEL,ASDA SUPERSTORE,14.44,REFRESHMENT COSTS,"GROCERY STORES, SUPERMARKETS"
08/12/2017,HOPE SERVICE - WEST,SAINSBURYS SACAT(4409),1.30,PURCHASE OF FOOD (RAW MATERIALS),"GROCERY STORES, SUPERMARKETS"
08/12/2017,SURREY ARTS GENERAL,AMAZON UK MARKETPLACE,7.99,EQUIPMENT,BOOK STORES
08/12/2017,SURREY ARTS GENERAL,AMAZON UK MARKETPLACE,7.47,EQUIPMENT,BOOK STORES
08/12/2017,SERVICE DELIVERY RESOURCES,NORTHERN DIVER (INTNL),77.40,OPERATIONAL FIRE EQUIPMENT,SPORTING GOODS STORES
08/12/2017,ARUNDEL,ASDA SUPERSTORE,22.00,EQUIPMENT,"GROCERY STORES, SUPERMARKETS"
08/12/2017,PROPERTY OPERATIONS TEAM,SCREWFIX DIR. LTD,12.49,PURCHASE OF BUILDING MATERIALS,"BUILDING MATERIALS, LUMBER STORES"
08/12/2017,WOODLANDS COMMUNITY HOME,AMAZON UK MARKETPLACE,43.89,3RD PARTY PAYMENTS PRIVATE INDIV,BOOK STORES
08/12/2017,WOODLANDS COMMUNITY HOME,AMAZON UK MARKETPLACE,8.99,3RD PARTY PAYMENTS PRIVATE INDIV,BOOK STORES
08/12/2017,WOODLANDS COMMUNITY HOME,AMAZON.CO.UK,86.10,3RD PARTY PAYMENTS PRIVATE INDIV,BOOK STORES
08/12/2017,TRANSPORT,PP ANSON U.K. LTD,436.66,OPERATIONAL FIRE EQUIPMENT,DENTAL/LAB/MED/OPHTHALMIC HOSP EQUIP & SUPPLIES
08/12/2017,TRANSPORT,CONDOR GROUP LTD,139.93,OPERATIONAL FIRE EQUIPMENT,"CLOCK, JEWELRY, AND WATCH REPAIR SHOPS"
08/12/2017,FIRE & RESCUE COMMUNITY SAFETY,CLARK'S CAFE,180.00,REFRESHMENT COSTS,FAST FOOD RESTAURANTS
08/12/2017,FAMILIES WAVERLEY,HOBBYCRAFT GROUP L,12.25,EQUIPMENT,"ARTIST SUPPLY STORES, CRAFT SHOPS"
08/12/2017,HILLSIDE,SAINSBURYS 0675,48.90,PURCHASE OF FOOD (RAW MATERIALS),"GROCERY STORES, SUPERMARKETS"
08/12/2017,HILLSIDE,SAINSBURYS PFS 0103,36.16,NON-STAFF RELATED TRANSPORT COSTS,SERVICE STATIONS WITH OR WITHOUT ANCILLARY SERVICE
08/12/2017,TARGETED INTERVENTION,NIKE STORE 00542,51.00,EXAMINATION FEES,"SPORTS APPAREL, RIDING APPAREL STORES"
08/12/2017,TARGETED INTERVENTION,GUNWHARF QUAYS,2.90,EDUC VISITS/HOLS/CAMPS/TOYS,AUTOMOBILE PARKING LOTS AND GARAGES
08/12/2017,TARGETED INTERVENTION,CREAMS,19.10,EDUC VISITS/HOLS/CAMPS/TOYS,"EATING PLACES, RESTAURANTS"
08/12/2017,TARGETED INTERVENTION,TOP SHOP/TOPMAN,6.50,EDUC VISITS/HOLS/CAMPS/TOYS,MEN'S AND WOMEN'S CLOTHING STORES
08/12/2017,TARGETED INTERVENTION,PRIMARK STORES 655,15.50,EDUC VISITS/HOLS/CAMPS/TOYS,FAMILY CLOTHING STORES
08/12/2017,TARGETED INTERVENTION,3C_ WOKING BOROUGH COU,2.80,MISCELLANEOUS STAFF TRAVEL,AUTOMOBILE PARKING LOTS AND GARAGES
08/12/2017,TARGETED INTERVENTION,STARBUCKS,14.18,EDUC VISITS/HOLS/CAMPS/TOYS,"EATING PLACES, RESTAURANTS"
08/12/2017,FAMILIES REIGATE AND BANSTREAD,WWW.REIGATEONICE.CO.UK,68.80,EDUC VISITS/HOLS/CAMPS/TOYS,RECREATIONAL AND SPORTING CAMPS
08/12/2017,FAMILIES REIGATE AND BANSTREAD,AMAZON EU AMAZON.CO.UK,7.50,CURRICULUM CONSUMABLES,MISCELLANEOUS AND SPECIALTY RETAIL STORES
08/12/2017,RBDM - GENERAL,AMAZON UK MARKETPLACE,145.99,EQUIPMENT,BOOK STORES
08/12/2017,ARUNDEL,TESCO STORES 5999,154.89,REFRESHMENT COSTS,"GROCERY STORES, SUPERMARKETS"
08/12/2017,SPELTHORNE CMHRS CARE,711 CARS LIMITED,38.50,OTHER COMMUNITY CARE PRIV,LIMOUSINES AND TAXICABS
08/12/2017,COVEHAM,M&S FOOD ORDER,30.00,REFRESHMENT COSTS,"GROCERY STORES, SUPERMARKETS"
08/12/2017,LOCAL ASSISTANCE SCHEME,TESCO - SELLER_IST_1_2,84.99,FURNITURE,MISCELLANEOUS AND SPECIALTY RETAIL STORES
08/12/2017,NW CARE - LAC,WWW.AIRHOPTRAMPELINEOA,39.00,CHILDREN ACT SEC 17 PAYMENTS,RECREATIONAL AND SPORTING CAMPS
08/12/2017,SE CARE - CP & COURT LAC,CINEWORLD,37.50,CHILDREN ACT SEC 17 PAYMENTS,"THEATRICAL PRODUCERS(EXCL MOTION PIX),TICKET AGNCY"
08/12/2017,ACL CENTRAL EXPENDITURE,WWWCMACCCTVCOUK,149.00,DAY TO DAY MAINTENANCE,ELECTRONIC SALES
08/12/2017,TARGETED INTERVENTION,COSTA @ DEBENHAMS 4303,11.00,EDUC VISITS/HOLS/CAMPS/TOYS,FAST FOOD RESTAURANTS
08/12/2017,TARGETED INTERVENTION,FUDGE KITCHEN LTD,100.00,EDUC VISITS/HOLS/CAMPS/TOYS,"MISC FOOD STORE-CONVENIENCE,MRKT,SPLTY,VENDNG MACS"
08/12/2017,TARGETED INTERVENTION,COSTA COFFEE,9.30,EDUC VISITS/HOLS/CAMPS/TOYS,FAST FOOD RESTAURANTS
08/12/2017,SE CARE - CP & COURT LAC,CINEWORLD,42.00,CHILDREN ACT SEC 17 PAYMENTS,"THEATRICAL PRODUCERS(EXCL MOTION PIX),TICKET AGNCY"
08/12/2017,TARGETED INTERVENTION,3C_ WOKING BOROUGH COU,2.80,EDUC VISITS/HOLS/CAMPS/TOYS,AUTOMOBILE PARKING LOTS AND GARAGES
08/12/2017,TARGETED INTERVENTION,WOKING SNOOKER CENTRE,7.13,EDUC VISITS/HOLS/CAMPS/TOYS,RECREATIONAL AND SPORTING CAMPS
08/12/2017,LIBERTAS COMMUNITY HOME,SAINSBURYS SACAT 0652,25.95,PURCHASE OF FOOD (RAW MATERIALS),"GROCERY STORES, SUPERMARKETS"
08/12/2017,LIBERTAS COMMUNITY HOME,SAINSBURYS SACAT 0652,10.00,EQUIPMENT,"GROCERY STORES, SUPERMARKETS"
08/12/2017,LIBERTAS COMMUNITY HOME,SAINSBURYS SACAT 0652,159.20,PURCHASE OF FOOD (RAW MATERIALS),"GROCERY STORES, SUPERMARKETS"
08/12/2017,E&I - COMMUNITY RECYCLING CENTRES       ,GOOGLE  ADWS2060179426,500.00,PUBLICITY,DIRECT MARKETING-CONTINUITY/SUBSCRIPTION MERCHANTS
08/12/2017,RUTH HOUSE,SAINSBURYS TO YOU 0686,37.70,PURCHASE OF FOOD (RAW MATERIALS),"GROCERY STORES, SUPERMARKETS"
08/12/2017,RUTH HOUSE,SAINSBURYS TO YOU 0686,265.15,PURCHASE OF FOOD (RAW MATERIALS),"GROCERY STORES, SUPERMARKETS"
08/12/2017,RUTH HOUSE,ARGOS RETAIL GROUP,251.97,EQUIPMENT,DISCOUNT STORES
08/12/2017,FAMILIES EPSOM AND EWELL,WWW.PUREGYM.COM,85.99,EDUC VISITS/HOLS/CAMPS/TOYS,"CLUBS-CNTRY,MBRSHIP(ATHLET,REC,SPRTS,PRIVATE GOLF"
08/12/2017,APPLEWOOD,ASDA HOME SHOPPING,189.99,PURCHASE OF FOOD (RAW MATERIALS),"GROCERY STORES, SUPERMARKETS"
08/12/2017,FAMILIES EPSOM AND EWELL,THE WORKS,10.00,CURRICULUM CONSUMABLES,DISCOUNT STORES
08/12/2017,APPLEWOOD,ASDA HOME SHOPPING,-1.89,PURCHASE OF FOOD (RAW MATERIALS),"GROCERY STORES, SUPERMARKETS"
08/12/2017,DEVELOPMENT TEAM,AMAZON UK MARKETPLACE,22.36,BOOKS,BOOK STORES
08/12/2017,CS BUSINESS SUPPORT WEST,AMAZON UK MARKETPLACE,33.45,STATIONERY,BOOK STORES
08/12/2017,LOCAL ASSISTANCE SCHEME,AMAZON UK MARKETPLACE,27.99,FURNITURE,BOOK STORES
09/12/2017,WOODLANDS COMMUNITY HOME,WWW.TICKETS.REALLYUSEF,105.00,EDUC VISITS/HOLS/CAMPS/TOYS,"THEATRICAL PRODUCERS(EXCL MOTION PIX),TICKET AGNCY"
09/12/2017,FAIRCROFT COMMUNITY HOME,SAINSBURYS 0687,54.15,PURCHASE OF FOOD (RAW MATERIALS),"GROCERY STORES, SUPERMARKETS"
09/12/2017,FAIRCROFT COMMUNITY HOME,HAMPTON COURT PALACE I,54.00,EDUC VISITS/HOLS/CAMPS/TOYS,RECREATION SERVICES (NOT ELSEWHERE CLASSIFIED)
09/12/2017,FAIRCROFT COMMUNITY HOME,HISTORIC ROYAL,1.60,MISCELLANEOUS STAFF TRAVEL,AUTOMOBILE PARKING LOTS AND GARAGES
09/12/2017,DOWNLANDS COUNTRYSIDE PROJECT,HOME BARGAINS,12.00,REFRESHMENT COSTS,HARDWARE STORES
09/12/2017,ARUNDEL,SAINSBURYS 0683,162.75,EQUIPMENT,"GROCERY STORES, SUPERMARKETS"
09/12/2017,WOODLANDS COMMUNITY HOME,RONTEC CONCESSIONS,34.10,PURCHASE OF FOOD (RAW MATERIALS),"EATING PLACES, RESTAURANTS"
09/12/2017,ARUNDEL,TESCO STORES 5999,-1.75,REFRESHMENT COSTS,"GROCERY STORES, SUPERMARKETS"
09/12/2017,HILLSIDE,WWW.CASHS.CO.UK,35.71,"CLOTHING, UNIFORM AND LAUNDRY",MEN'S AND BOY'S CLOTHING AND ACCESSORIES STORES
09/12/2017,EXTENDED HOPE,FREEDOM LEISURE,100.00,EDUC VISITS/HOLS/CAMPS/TOYS,GOVERNMENT SERVICES-NOT ELSEWHERE CLASSIFIED
09/12/2017,COVEHAM,SAINSBURYS SACAT 0687,21.35,REFRESHMENT COSTS,"GROCERY STORES, SUPERMARKETS"
09/12/2017,LIBERTAS COMMUNITY HOME,TESCO STORE 2047,40.00,EDUC VISITS/HOLS/CAMPS/TOYS,"GROCERY STORES, SUPERMARKETS"
09/12/2017,MALLOW CRESCENT,SAINSBURYS 0686,7.00,EQUIPMENT,"GROCERY STORES, SUPERMARKETS"
09/12/2017,HOLLAND CLOSE RESIDENTIAL HOME,TESCO-STORES 6647,136.95,PURCHASE OF FOOD (RAW MATERIALS),"GROCERY STORES, SUPERMARKETS"
09/12/2017,BURBANK COMMUNITY HOME,POUNDWORLD RETAIL,29.05,EQUIPMENT,DISCOUNT STORES
09/12/2017,BURBANK COMMUNITY HOME,THE KETCH FISH BAR,7.50,REFRESHMENT COSTS,FAST FOOD RESTAURANTS
09/12/2017,BURBANK COMMUNITY HOME,3C_ WOKING BOROUGH COU,2.80,MISCELLANEOUS STAFF TRAVEL,AUTOMOBILE PARKING LOTS AND GARAGES
09/12/2017,HILLSIDE,SAINSBURYS TO YOU 0675,20.60,PURCHASE OF FOOD (RAW MATERIALS),"GROCERY STORES, SUPERMARKETS"
09/12/2017,HILLSIDE,SAINSBURYS TO YOU 0675,258.58,PURCHASE OF FOOD (RAW MATERIALS),"GROCERY STORES, SUPERMARKETS"
09/12/2017,CHEYNE WALK COMMUNITY HOME,TESCO STORE 2675,149.43,"CLOTHING, UNIFORM AND LAUNDRY","GROCERY STORES, SUPERMARKETS"
09/12/2017,CHEYNE WALK COMMUNITY HOME,NEW SOUTHERN RAILW,50.00,STUDENT FARE CARD (STUDENTFARECARDRAIL),PASSENGER RAILWAYS
09/12/2017,CHEYNE WALK COMMUNITY HOME,TESCO STORE 2560,26.65,PURCHASE OF FOOD (RAW MATERIALS),"GROCERY STORES, SUPERMARKETS"
09/12/2017,DOWNLANDS COUNTRYSIDE PROJECT,TESCO STORE 2535,53.00,REFRESHMENT COSTS,"GROCERY STORES, SUPERMARKETS"
09/12/2017,RUTH HOUSE,AMAZON UK MARKETPLACE,6.30,EDUC VISITS/HOLS/CAMPS/TOYS,BOOK STORES
09/12/2017,WOODLANDS COMMUNITY HOME,AMAZON UK MARKETPLACE,21.80,3RD PARTY PAYMENTS PRIVATE INDIV,BOOK STORES
09/12/2017,WOODLANDS COMMUNITY HOME,AMAZON.CO.UK,5.53,DAY TO DAY MAINTENANCE,BOOK STORES
09/12/2017,HILLSIDE,BAYFIELDS OPTICIANS -,256.50,EQUIPMENT,"OPTICIANS,OPTICAL GOODS & EYEGLASSES"
09/12/2017,APPLEWOOD,ASDA HOME SHOPPING,256.99,PURCHASE OF FOOD (RAW MATERIALS),"GROCERY STORES, SUPERMARKETS"
09/12/2017,APPLEWOOD,ASDA HOME SHOPPING,-4.50,PURCHASE OF FOOD (RAW MATERIALS),"GROCERY STORES, SUPERMARKETS"
10/12/2017,KARIBU COMMUNITY HOME,RIVER ISLAND 400,6.00,EDUC VISITS/HOLS/CAMPS/TOYS,MEN'S AND WOMEN'S CLOTHING STORES
10/12/2017,CHMHS RAP TEAM,KINDLE UNLIMITED,7.99,EDUC VISITS/HOLS/CAMPS/TOYS,RECORD SHOPS
10/12/2017,WOODLANDS COMMUNITY HOME,WWW.PAPAJOHNS.CO.U,4.99,PURCHASE OF FOOD (RAW MATERIALS),"EATING PLACES, RESTAURANTS"
10/12/2017,COVEHAM,SAINSBURYS SACAT 0687,25.55,REFRESHMENT COSTS,"GROCERY STORES, SUPERMARKETS"
10/12/2017,HOLLAND CLOSE RESIDENTIAL HOME,AMAZON UK PRIME AMZN.C,79.00,EDUC VISITS/HOLS/CAMPS/TOYS,DIRECT MARKETING-CONTINUITY/SUBSCRIPTION MERCHANTS
10/12/2017,HERITAGE PUBLIC SERVICE,AMAZON PRIME,7.99,PURCHASE CARD TRANSACTION LOG DEFAULT,DIRECT MARKETING-CONTINUITY/SUBSCRIPTION MERCHANTS
10/12/2017,FAIRCROFT COMMUNITY HOME,KFC,12.47,REFRESHMENT COSTS,FAST FOOD RESTAURANTS
10/12/2017,FAIRCROFT COMMUNITY HOME,MCDONALDS,15.87,REFRESHMENT COSTS,FAST FOOD RESTAURANTS
10/12/2017,FAIRCROFT COMMUNITY HOME,HARRY RAMSDENS,17.98,REFRESHMENT COSTS,"MISC FOOD STORE-CONVENIENCE,MRKT,SPLTY,VENDNG MACS"
10/12/2017,FAIRCROFT COMMUNITY HOME,PAPA JOHNS,7.14,REFRESHMENT COSTS,"MISC FOOD STORE-CONVENIENCE,MRKT,SPLTY,VENDNG MACS"
10/12/2017,WOODLANDS COMMUNITY HOME,SAINSBURYS TO YOU 0686,17.95,PURCHASE OF FOOD (RAW MATERIALS),"GROCERY STORES, SUPERMARKETS"
10/12/2017,WOODLANDS COMMUNITY HOME,SAINSBURYS TO YOU 0686,90.24,PURCHASE OF FOOD (RAW MATERIALS),"GROCERY STORES, SUPERMARKETS"
10/12/2017,RUTH HOUSE,AMAZON UK MARKETPLACE,45.37,EDUC VISITS/HOLS/CAMPS/TOYS,BOOK STORES
10/12/2017,KARIBU COMMUNITY HOME,TICKETS 08712200260,112.00,EDUC VISITS/HOLS/CAMPS/TOYS,"THEATRICAL PRODUCERS(EXCL MOTION PIX),TICKET AGNCY"
10/12/2017,KARIBU COMMUNITY HOME,TESCO STORE 2812,251.63,PURCHASE OF FOOD (RAW MATERIALS),"GROCERY STORES, SUPERMARKETS"
10/12/2017,WOODLANDS COMMUNITY HOME,NETFLIX.COM,7.49,EDUC VISITS/HOLS/CAMPS/TOYS,"CABLE, SATELLITE, OTHER PAY TELEVISION, RADIO SVCS"
10/12/2017,WOODLANDS COMMUNITY HOME,AMAZON.CO.UK,12.99,3RD PARTY PAYMENTS PRIVATE INDIV,BOOK STORES
11/12/2017,NIL RECOURSE PUBLIC FNDG 18+ ASYLUM SKR,TVLICENSING.CO.UK,147.00,EQUIPMENT,"CONSULTING, MANAGEMENT, AND PUBLIC RELATIONS SVCS"
11/12/2017,LEAVING CARE PACKAGES,TVLICENSING.CO.UK,147.00,EQUIPMENT,"CONSULTING, MANAGEMENT, AND PUBLIC RELATIONS SVCS"
11/12/2017,PRISON CAPITATION                       ,AMAZON SVCS EU-UK AMAZ,48.88,LIBRARY RESOURCES,BOOK STORES
11/12/2017,NW CARE - CP & COURT LAC,PAYPAL  SPORT,-84.00,OTHER COMMUNITY CARE VOL,PROFESSIONAL SERVICES-NOT ELSEWHERE CLASSIFIED
11/12/2017,ACL CENTRAL EXPENDITURE,AMAZON EU AMAZON.CO.UK,26.75,EQUIPMENT,MISCELLANEOUS AND SPECIALTY RETAIL STORES
11/12/2017,DEVELOPMENT TEAM,GITHUB.COM  6BH7W,33.16,COMPUTER SERVICES,"COMPUTERS, COMPUTER PERIPHERAL EQUIPMENT, SOFTWARE"
11/12/2017,FAIRCROFT COMMUNITY HOME,PRIMARK,10.00,"CLOTHING, UNIFORM AND LAUNDRY",FAMILY CLOTHING STORES
11/12/2017,LIBERTAS COMMUNITY HOME,WWW.ARGOS.CO.UK,93.94,3RD PARTY PAYMENTS PRIVATE INDIV,DISCOUNT STORES
11/12/2017,LIBERTAS COMMUNITY HOME,JD SPORTS INTERNET,120.00,3RD PARTY PAYMENTS PRIVATE INDIV,SPORTING GOODS STORES
11/12/2017,TARGETED INTERVENTION,THE HUB CAFE,5.30,EDUC VISITS/HOLS/CAMPS/TOYS,"EATING PLACES, RESTAURANTS"
11/12/2017,NW CARE - CP & COURT LAC,PAYPAL  SPORT,84.00,OTHER COMMUNITY CARE VOL,PROFESSIONAL SERVICES-NOT ELSEWHERE CLASSIFIED
11/12/2017,SOLD CURRICULUM PROGRAMME DELIVERY,THE POST OFFICE,2.84,POSTAGE AND COURIER CHARGES,POSTAL SERVICES-GOVERNMENT ONLY
11/12/2017,SOLD PROFESSIONAL TRAINING AND DEVLPMNT,MOUNTAIN TRAINING,18.00,FEES,COMPUTER SOFTWARE STORES
11/12/2017,HOPE SERVICE - WEST,SAINSBURYS SACAT(4409),1.50,PURCHASE OF FOOD (RAW MATERIALS),"GROCERY STORES, SUPERMARKETS"
11/12/2017,HERITAGE PUBLIC SERVICE,AMAZON PRIME,-7.99,PURCHASE CARD TRANSACTION LOG DEFAULT,DIRECT MARKETING-CONTINUITY/SUBSCRIPTION MERCHANTS
11/12/2017,MALLOW CRESCENT,SAINSBURYS TO YOU 0652,23.90,PURCHASE OF FOOD (RAW MATERIALS),"GROCERY STORES, SUPERMARKETS"
11/12/2017,MALLOW CRESCENT,SAINSBURYS TO YOU 0652,97.97,PURCHASE OF FOOD (RAW MATERIALS),"GROCERY STORES, SUPERMARKETS"
11/12/2017,MALLOW CRESCENT,SAINSBURYS TO YOU 0652,-2.05,PURCHASE OF FOOD (RAW MATERIALS),"GROCERY STORES, SUPERMARKETS"
11/12/2017,NE CARE - NON-LAC CP & COURT,TRAVELODGE,162.50,FEES,TRAVELODGE
11/12/2017,STUDENT FARECARD,SURREY CC CARD PAY,10.00,NON-STAFF RELATED TRANSPORT COSTS,COMPUTER NETWORK/INFORMATION SERVICES
11/12/2017,STUDENT FARECARD,SURREY CC CARD PAY,-10.00,NON-STAFF RELATED TRANSPORT COSTS,COMPUTER NETWORK/INFORMATION SERVICES
11/12/2017,HERITAGE PUBLIC SERVICE,TESCO STORES 2025,12.00,REFRESHMENT COSTS,"GROCERY STORES, SUPERMARKETS"
11/12/2017,BURBANK COMMUNITY HOME,WWW.SURREYCC.GOV.UK,50.00,REFRESHMENT COSTS,GOVERNMENT SERVICES-NOT ELSEWHERE CLASSIFIED
11/12/2017,BURBANK COMMUNITY HOME,WWW.SURREYCC.GOV.UK,50.00,PURCHASE OF FOOD (RAW MATERIALS),GOVERNMENT SERVICES-NOT ELSEWHERE CLASSIFIED
11/12/2017,HOPE SERVICE - WEST,SAINSBURYS SACAT 0683,85.99,PURCHASE OF FOOD (RAW MATERIALS),"GROCERY STORES, SUPERMARKETS"
11/12/2017,HOPE SERVICE - WEST,EPSOM AND EWELL PARKIN,4.00,NON-STAFF RELATED TRANSPORT COSTS,AUTOMOBILE PARKING LOTS AND GARAGES
11/12/2017,HOPE SERVICE - WEST,EPSOM AND EWELL PARKIN,4.00,NON-STAFF RELATED TRANSPORT COSTS,AUTOMOBILE PARKING LOTS AND GARAGES
11/12/2017,MALLOW CRESCENT,SAINSBURYS SACAT 0652,12.00,PURCHASE OF FOOD (RAW MATERIALS),"GROCERY STORES, SUPERMARKETS"
11/12/2017,MALLOW CRESCENT,ARGOS BURPHAM,39.99,EQUIPMENT,DISCOUNT STORES
11/12/2017,MALLOW CRESCENT,TESCO STORE 2590,3.10,PURCHASE OF FOOD (RAW MATERIALS),"GROCERY STORES, SUPERMARKETS"
11/12/2017,MALLOW CRESCENT,TESCO STORE 2590,96.55,PURCHASE OF FOOD (RAW MATERIALS),"GROCERY STORES, SUPERMARKETS"
11/12/2017,LOCAL ASSISTANCE SCHEME,TESCO - SELLER_IST_1_2,199.99,FURNITURE,MISCELLANEOUS AND SPECIALTY RETAIL STORES
11/12/2017,LOCAL ASSISTANCE SCHEME,TESCO - SELLER_IST_1_2,144.99,FURNITURE,MISCELLANEOUS AND SPECIALTY RETAIL STORES
11/12/2017,ACL CENTRAL EXPENDITURE,SAINSBURYS 0686,35.95,REFRESHMENT COSTS,"GROCERY STORES, SUPERMARKETS"
11/12/2017,ACL CENTRAL EXPENDITURE,WAITROSE 181,8.03,REFRESHMENT COSTS,"GROCERY STORES, SUPERMARKETS"
11/12/2017,SECTOR MANAGER,WWW.REXINTER.COM,602.21,ITEMS PURCHASED FOR RE-SALE,"GIFT, CARD, NOVELTY AND SOUVENIR SHOPS"
11/12/2017,DITTONS LIBRARY,AMZ AMAZON.CO.UK,-4.75,EQUIPMENT,DIRECT MARKETING-OTHER DIRECT MARKETERS/NOT ELSEW.
11/12/2017,BURBANK COMMUNITY HOME,LLOYDS AT SAINSBURYS,14.50,MEDICAL EXPENSES,"GROCERY STORES, SUPERMARKETS"
11/12/2017,BURBANK COMMUNITY HOME,SAINSBURYS SACAT 0686,9.00,PURCHASE OF FOOD (RAW MATERIALS),"GROCERY STORES, SUPERMARKETS"
11/12/2017,BURBANK COMMUNITY HOME,3C_ WOKING BOROUGH COU,4.20,MISCELLANEOUS STAFF TRAVEL,AUTOMOBILE PARKING LOTS AND GARAGES
11/12/2017,LIBERTAS COMMUNITY HOME,SAINSBURYS SACAT 0652,10.86,EQUIPMENT,"GROCERY STORES, SUPERMARKETS"
11/12/2017,LIBERTAS COMMUNITY HOME,SAINSBURYS SACAT 0652,33.25,PURCHASE OF FOOD (RAW MATERIALS),"GROCERY STORES, SUPERMARKETS"
11/12/2017,LIBERTAS COMMUNITY HOME,SAINSBURYS SACAT 0652,160.20,PURCHASE OF FOOD (RAW MATERIALS),"GROCERY STORES, SUPERMARKETS"
11/12/2017,CHEYNE WALK COMMUNITY HOME,FORTUNE GARDEN,44.10,PURCHASE OF FOOD (RAW MATERIALS),FAST FOOD RESTAURANTS
11/12/2017,CHEYNE WALK COMMUNITY HOME,TESCO STORES 2560,44.15,PURCHASE OF FOOD (RAW MATERIALS),"GROCERY STORES, SUPERMARKETS"
11/12/2017,CHEYNE WALK COMMUNITY HOME,TESCO STORES 6999,15.08,PURCHASE OF FOOD (RAW MATERIALS),"GROCERY STORES, SUPERMARKETS"
11/12/2017,CHEYNE WALK COMMUNITY HOME,CURRY INN,10.40,PURCHASE OF FOOD (RAW MATERIALS),"EATING PLACES, RESTAURANTS"
11/12/2017,CHEYNE WALK COMMUNITY HOME,DOMINOS PIZZA,7.99,PURCHASE OF FOOD (RAW MATERIALS),"EATING PLACES, RESTAURANTS"
11/12/2017,MALLOW CRESCENT,SAINSBURYS TO YOU 0652,5.60,PURCHASE OF FOOD (RAW MATERIALS),"GROCERY STORES, SUPERMARKETS"
11/12/2017,MALLOW CRESCENT,SAINSBURYS TO YOU 0652,122.25,PURCHASE OF FOOD (RAW MATERIALS),"GROCERY STORES, SUPERMARKETS"
11/12/2017,HOPE SERVICE - WEST,SAINSBURYS TO YOU 0686,106.39,PURCHASE OF FOOD (RAW MATERIALS),"GROCERY STORES, SUPERMARKETS"
11/12/2017,HERITAGE ENTERPRISE (SCAU),PASTHORIZON,101.94,EQUIPMENT,"DURABLE GOODS, NOT ELSEWHERE CLASSIFIED"
11/12/2017,FIRE & RESCUE COMMUNITY SAFETY,AMAZON SVCS EU-UK AMAZ,31.15,OPERATIONAL FIRE EQUIPMENT,BOOK STORES
11/12/2017,PE/CDT MAINTENANCE OVERHEADS,HOMEBASE LTD 127,19.98,DAY TO DAY MAINTENANCE,"BUILDING MATERIALS, LUMBER STORES"
11/12/2017,RUTH HOUSE,SAINSBURYS TO YOU 0686,13.50,EDUC VISITS/HOLS/CAMPS/TOYS,"GROCERY STORES, SUPERMARKETS"
11/12/2017,MALLOW CRESCENT,TESCO STORE 2590,6.85,PURCHASE OF FOOD (RAW MATERIALS),"GROCERY STORES, SUPERMARKETS"
11/12/2017,MALLOW CRESCENT,TESCO STORE 2590,61.31,PURCHASE OF FOOD (RAW MATERIALS),"GROCERY STORES, SUPERMARKETS"
11/12/2017,CS BUSINESS SUPPORT WEST,AMAZON UK MARKETPLACE,12.95,STATIONERY,BOOK STORES
11/12/2017,YSS YOUTH CENTRE IMPROVEMENTS,SAINSBURYS 0686,19.95,EQUIPMENT,"GROCERY STORES, SUPERMARKETS"
11/12/2017,ACL CENTRAL EXPENDITURE,AMAZON UK MARKETPLACE,27.79,EQUIPMENT,BOOK STORES
11/12/2017,TRANSPORT,BEW ELECTRICAL DISTRIB,55.80,EQUIPMENT,ELECTRONIC SALES
11/12/2017,TRANSPORT,MACHINE MART LTD,277.17,EQUIPMENT,HOUSEHOLD APPLIANCE STORES
11/12/2017,TRANSPORT,MACHINE MART LTD,289.17,EQUIPMENT,"EQUIPMENT RENTAL&LEASING SVS, FURNTURE/TOOL RENTAL"
11/12/2017,FAMILIES WAVERLEY,SAINSBURYS SACAT 0670,6.10,PURCHASE OF FOOD (RAW MATERIALS),"GROCERY STORES, SUPERMARKETS"
11/12/2017,FAMILIES WAVERLEY,HOMEBASE LTD 305,16.79,EQUIPMENT,"BUILDING MATERIALS, LUMBER STORES"
11/12/2017,TARGETED INTERVENTION,STARBUCKS,9.50,EDUC VISITS/HOLS/CAMPS/TOYS,"EATING PLACES, RESTAURANTS"
11/12/2017,FAIRCROFT COMMUNITY HOME,3C_ WOKING BOROUGH COU,1.40,MISCELLANEOUS STAFF TRAVEL,AUTOMOBILE PARKING LOTS AND GARAGES
11/12/2017,FAIRCROFT COMMUNITY HOME,SHOE ZONE LTD,12.99,"CLOTHING, UNIFORM AND LAUNDRY",SHOE STORES
11/12/2017,FAIRCROFT COMMUNITY HOME,TESCO STORE 2160,12.05,"CLOTHING, UNIFORM AND LAUNDRY","GROCERY STORES, SUPERMARKETS"
11/12/2017,FAIRCROFT COMMUNITY HOME,TESCO STORE 2812,224.36,PURCHASE OF FOOD (RAW MATERIALS),"GROCERY STORES, SUPERMARKETS"
11/12/2017,FAIRMOUNT HOUSE LEATHERHEAD,WWW.NISBETS.COM,197.94,EQUIPMENT,DIRECT MARKETING-CATALOG MERCHANTS
11/12/2017,PROPERTY OPERATIONS TEAM,HOMEBASE LTD 247,9.19,PURCHASE OF BUILDING MATERIALS,"BUILDING MATERIALS, LUMBER STORES"
11/12/2017,MGMT - ORBIS (MANAGEMENT TEAM & SUPPORT),CUSTOMER THERMOMETER,91.60,FEES,COMPUTER SOFTWARE STORES
11/12/2017,FAMILIES WOKING,SAINSBURYS 0686,26.25,REFRESHMENT COSTS,"GROCERY STORES, SUPERMARKETS"
11/12/2017,CYWS COMMISSIONING,VESTA VODAFONE,10.00,TELECOMMUNICATION CHARGES,TELECOM INCL PREPAID/RECURRING PHONE SVCS
11/12/2017,FAMILIES ELMBRIDGE,SAINSBURYS 2663,7.80,POSTAGE AND COURIER CHARGES,"GROCERY STORES, SUPERMARKETS"
11/12/2017,EXTENDED HOPE,TESCO STORE 2590,53.93,PURCHASE OF FOOD (RAW MATERIALS),"GROCERY STORES, SUPERMARKETS"
11/12/2017,EXTENDED HOPE,TESCO STORE 2590,9.72,PURCHASE OF FOOD (RAW MATERIALS),"GROCERY STORES, SUPERMARKETS"
11/12/2017,COVEHAM,SAINSBURYS TO YOU 0687,205.59,REFRESHMENT COSTS,"GROCERY STORES, SUPERMARKETS"
11/12/2017,IT TRAINING,WWW.QA.COM,"2,556.48",TRAINING EXPENSES EXTERNAL GENERAL,SCHOOLS & EDUCATIONAL SVC-NOT ELSEWHERE CLASSIFIED
11/12/2017,ACL CENTRAL EXPENDITURE,PAYPAL  CARTRIDGEPE,131.52,EQUIPMENT,PROFESSIONAL SERVICES-NOT ELSEWHERE CLASSIFIED
11/12/2017,MEMBERS EXPENSES (INCL ALLOWANCES),WWW.ICO.GOV.UK,35.00,SUBSCRIPTIONS,GOVERNMENT SERVICES-NOT ELSEWHERE CLASSIFIED
11/12/2017,TARGETED INTERVENTION,FREEDOM LEISURE,7.10,EDUC VISITS/HOLS/CAMPS/TOYS,GOVERNMENT SERVICES-NOT ELSEWHERE CLASSIFIED
11/12/2017,WOEKPLACE TEAM,AMAZON UK MARKETPLACE,10.98,EQUIPMENT,BOOK STORES
12/12/2017,DEVELOPMENT TEAM,MSFT  <E01004UUTA>,267.06,SUBSCRIPTIONS,"COMPUTERS, COMPUTER PERIPHERAL EQUIPMENT, SOFTWARE"
12/12/2017,DEVELOPMENT TEAM,MSFT  <E01004UUVO>,280.77,SUBSCRIPTIONS,"COMPUTERS, COMPUTER PERIPHERAL EQUIPMENT, SOFTWARE"
12/12/2017,BURBANK COMMUNITY HOME,BP MERROW CONVENIENCE,5.24,REFRESHMENT COSTS,SERVICE STATIONS WITH OR WITHOUT ANCILLARY SERVICE
12/12/2017,TARGETED INTERVENTION,TOP GOLF LTD,6.20,EDUC VISITS/HOLS/CAMPS/TOYS,"CLUBS-CNTRY,MBRSHIP(ATHLET,REC,SPRTS,PRIVATE GOLF"
12/12/2017,WOODLANDS COMMUNITY HOME,ARGOS RETAIL GROUP,24.99,EQUIPMENT,DISCOUNT STORES
12/12/2017,WOODLANDS COMMUNITY HOME,ARGOS RETAIL GROUP,-24.99,EQUIPMENT,DISCOUNT STORES
12/12/2017,SE CARE - NON-LAC CP & COURT,PREMIER INN,98.00,INDEPENDENT LIVING PLACEMENTS,PREMIER INN
12/12/2017,TARGETED INTERVENTION,STARBUCKS WISLEY SOUTH,7.85,EDUC VISITS/HOLS/CAMPS/TOYS,"MISC FOOD STORE-CONVENIENCE,MRKT,SPLTY,VENDNG MACS"
12/12/2017,TARGETED INTERVENTION,COSTA COFFEE,13.85,EDUC VISITS/HOLS/CAMPS/TOYS,FAST FOOD RESTAURANTS
12/12/2017,TARGETED INTERVENTION,FREEDOM LEISURE,10.00,EDUC VISITS/HOLS/CAMPS/TOYS,GOVERNMENT SERVICES-NOT ELSEWHERE CLASSIFIED
12/12/2017,TARGETED INTERVENTION,FREEDOM LEISURE,-10.00,EDUC VISITS/HOLS/CAMPS/TOYS,GOVERNMENT SERVICES-NOT ELSEWHERE CLASSIFIED
12/12/2017,TARGETED INTERVENTION,ALLSAINTS,2.80,EDUC VISITS/HOLS/CAMPS/TOYS,"EATING PLACES, RESTAURANTS"
12/12/2017,TARGETED INTERVENTION,TOP GOLF LTD,18.25,EDUC VISITS/HOLS/CAMPS/TOYS,"CLUBS-CNTRY,MBRSHIP(ATHLET,REC,SPRTS,PRIVATE GOLF"
12/12/2017,TARGETED INTERVENTION,CHESSINGTON GARDEN CTR,8.95,EDUC VISITS/HOLS/CAMPS/TOYS,LAWN AND GARDEN SUPPLY STORES
12/12/2017,TARGETED INTERVENTION,GOALS SUTTON,8.00,EDUC VISITS/HOLS/CAMPS/TOYS,RECREATIONAL AND SPORTING CAMPS
12/12/2017,WOODLANDS COMMUNITY HOME,WAITROSE 181,3.00,PURCHASE OF FOOD (RAW MATERIALS),"GROCERY STORES, SUPERMARKETS"
12/12/2017,WOODLANDS COMMUNITY HOME,WAITROSE 181,43.73,PURCHASE OF FOOD (RAW MATERIALS),"GROCERY STORES, SUPERMARKETS"
12/12/2017,HOPE SERVICE - WEST,SAINSBURYS SACAT 0683,22.45,CURRICULUM CONSUMABLES,"GROCERY STORES, SUPERMARKETS"
12/12/2017,FAIRCROFT COMMUNITY HOME,WELCOME BREAK STARBUCK,7.70,REFRESHMENT COSTS,"MISC FOOD STORE-CONVENIENCE,MRKT,SPLTY,VENDNG MACS"
12/12/2017,PRISON CAPITATION                       ,AMAZON SVCS EU-UK AMAZ,19.98,LIBRARY RESOURCES,BOOK STORES
12/12/2017,PRISON CAPITATION                       ,AMAZON SVCS EU-UK AMAZ,15.78,LIBRARY RESOURCES,BOOK STORES
12/12/2017,BURBANK COMMUNITY HOME,WICKES,7.28,DAY TO DAY MAINTENANCE,HOME SUPPLY WAREHOUSE STORES
12/12/2017,BURBANK COMMUNITY HOME,ASDA STORES 4823,3.60,PURCHASE OF FOOD (RAW MATERIALS),"GROCERY STORES, SUPERMARKETS"
12/12/2017,TRANSPORT,REIGATE GARDEN CEN,76.99,FURNITURE,LAWN AND GARDEN SUPPLY STORES
12/12/2017,SOLD ESTATES MANAGEMENT,SCREWFIX,79.03,"CLOTHING, UNIFORM AND LAUNDRY","BUILDING MATERIALS, LUMBER STORES"
12/12/2017,FAMILIES MOLE VALLEY,TESCO STORE 2812,53.15,PURCHASE OF FOOD (RAW MATERIALS),"GROCERY STORES, SUPERMARKETS"
12/12/2017,CHEYNE WALK COMMUNITY HOME,SAINSBURYS 0026,61.59,EQUIPMENT,"GROCERY STORES, SUPERMARKETS"
12/12/2017,CHEYNE WALK COMMUNITY HOME,MARKS&SPENCER PLC SF,11.00,PURCHASE OF FOOD (RAW MATERIALS),"GROCERY STORES, SUPERMARKETS"
12/12/2017,CHEYNE WALK COMMUNITY HOME,CO-OP GROUP PETROL,1.72,PURCHASE OF FOOD (RAW MATERIALS),SERVICE STATIONS WITH OR WITHOUT ANCILLARY SERVICE
12/12/2017,EPSOM & EWELL CMHRS CARE,HMCTS-SURREY125,75.00,FEES,FINES
12/12/2017,HILLSIDE,AMAZON UK MARKETPLACE,16.89,EQUIPMENT,BOOK STORES
12/12/2017,ACL CENTRAL EXPENDITURE,RSM DOMESTIC APPLI,115.00,DAY TO DAY MAINTENANCE,ELECTRONIC SALES
12/12/2017,KARIBU COMMUNITY HOME,THE NORTH STAR,73.43,PURCHASE OF FOOD (RAW MATERIALS),"EATING PLACES, RESTAURANTS"
12/12/2017,ACL CENTRAL EXPENDITURE,WAITROSE 181,7.88,REFRESHMENT COSTS,"GROCERY STORES, SUPERMARKETS"
12/12/2017,ACL CENTRAL EXPENDITURE,TESCO STORE 2160,87.46,REFRESHMENT COSTS,"GROCERY STORES, SUPERMARKETS"
12/12/2017,ACL CENTRAL EXPENDITURE,W M MORRISONS,31.38,REFRESHMENT COSTS,"GROCERY STORES, SUPERMARKETS"
12/12/2017,NE CARE - NON-LAC CP & COURT,HM PASSPORT,180.00,OTHER COMMUNITY CARE VOL,GOVERNMENT SERVICES-NOT ELSEWHERE CLASSIFIED
12/12/2017,NE CARE - NON-LAC CP & COURT,SURREY CC CARD PAY,28.00,OTHER COMMUNITY CARE VOL,COMPUTER NETWORK/INFORMATION SERVICES
12/12/2017,BURBANK COMMUNITY HOME,W M MORRISONS,5.53,REFRESHMENT COSTS,"GROCERY STORES, SUPERMARKETS"
12/12/2017,FINANCIAL STRATEGY & REPORTING TEAM,COMPANIES HOUSE,13.00,FEES,GOVERNMENT SERVICES-NOT ELSEWHERE CLASSIFIED
12/12/2017,TRANSPORT,PAYPAL  LMELECTRICA,8.95,DAY TO DAY MAINTENANCE,ELECTRONIC SALES
12/12/2017,FAIRCROFT COMMUNITY HOME,WAITROSE 513,97.00,REFRESHMENT COSTS,"GROCERY STORES, SUPERMARKETS"
12/12/2017,FAIRMOUNT HOUSE LEATHERHEAD,TOOLSTATION LTD,23.88,EQUIPMENT,HARDWARE STORES
12/12/2017,PROPERTY OPERATIONS TEAM,THE FASCIA PLACE,288.00,PURCHASE OF BUILDING MATERIALS,"BUILDING MATERIALS, LUMBER STORES"
12/12/2017,WOODLANDS COMMUNITY HOME,AMAZON EU AMAZON.CO.UK,18.97,3RD PARTY PAYMENTS PRIVATE INDIV,MISCELLANEOUS AND SPECIALTY RETAIL STORES
12/12/2017,TARGETED INTERVENTION,COSTA COFFEE 43037185,4.50,EDUC VISITS/HOLS/CAMPS/TOYS,FAST FOOD RESTAURANTS
12/12/2017,PASSENGER TRANSPORT CO-ORDINATION CENTRE,AMAZON UK MARKETPLACE,157.50,EQUIPMENT,BOOK STORES
12/12/2017,SOLD PROFESSIONAL TRAINING AND DEVLPMNT,CIEH,52.00,TRAINING EXPENSES EXTERNAL GENERAL,"ORGANIZATIONS, MEMBERSHIP-NOT ELSEWHERE CLASSIFIED"
12/12/2017,SOLD PROFESSIONAL TRAINING AND DEVLPMNT,CIEH,324.00,TRAINING EXPENSES EXTERNAL GENERAL,"ORGANIZATIONS, MEMBERSHIP-NOT ELSEWHERE CLASSIFIED"
12/12/2017,HERITAGE MANAGER,W M MORRISONS,27.55,REFRESHMENT COSTS,"GROCERY STORES, SUPERMARKETS"
12/12/2017,HILLSIDE,SAINSBURYS 0675,43.52,PURCHASE OF FOOD (RAW MATERIALS),"GROCERY STORES, SUPERMARKETS"
12/12/2017,QUADRANT COURT WOKING,HORACE SMITH LOCKSMITH,15.90,EQUIPMENT,HARDWARE STORES
12/12/2017,PE/CDT MAINTENANCE OVERHEADS,SCREWFIX DIRECT,259.98,ITEMS PURCHASED FOR RE-SALE,"BUILDING MATERIALS, LUMBER STORES"
12/12/2017,HOPE SERVICE - WEST,TESCO STORES 6669,15.00,PURCHASE OF FOOD (RAW MATERIALS),"GROCERY STORES, SUPERMARKETS"
12/12/2017,SERVICES DELIVERY TEAM,WP-THE INSTITUTION,450.00,SUBSCRIPTIONS,"ORGANIZATIONS, MEMBERSHIP-NOT ELSEWHERE CLASSIFIED"
12/12/2017,CHEYNE WALK COMMUNITY HOME,SENSORY DIRECT,17.29,EQUIPMENT,"GAME, TOY, AND HOBBY SHOPS"
12/12/2017,PROPERTY OPERATIONS TEAM,ALSFORD TIMBER LTD,30.52,PURCHASE OF BUILDING MATERIALS,"BUILDING MATERIALS, LUMBER STORES"
12/12/2017,PROPERTY OPERATIONS TEAM,ISMASH UK TRADING LTD,74.98,PURCHASE OF BUILDING MATERIALS,COMPUTER MAIN./REPAIR/SERVICES NOT ELSEWHERE CLASS
12/12/2017,MGMT TRAINEE STAFF COSTS,WWW.QA.COM,456.00,TRAINING EXPENSES EXTERNAL GENERAL,SCHOOLS & EDUCATIONAL SVC-NOT ELSEWHERE CLASSIFIED
12/12/2017,FAMILIES RUNNYMEDE,THE BIG APPLE,135.50,EDUC VISITS/HOLS/CAMPS/TOYS,BOWLING ALLEYS
12/12/2017,FAMILIES RUNNYMEDE,MCDONALDS,131.37,REFRESHMENT COSTS,FAST FOOD RESTAURANTS
12/12/2017,FAMILIES RUNNYMEDE,MCDONALDS,1.29,REFRESHMENT COSTS,FAST FOOD RESTAURANTS
12/12/2017,DITTONS & CLAYGATE CC,J K PAULL LIMITED,50.00,REFRESHMENT COSTS,"GROCERY STORES, SUPERMARKETS"
12/12/2017,TARGETED INTERVENTION,PIZZA HUT 344,38.70,EDUC VISITS/HOLS/CAMPS/TOYS,"EATING PLACES, RESTAURANTS"
13/12/2017,WOODLANDS COMMUNITY HOME,AMAZON SVCS EU-UK AMAZ,48.50,EDUC VISITS/HOLS/CAMPS/TOYS,BOOK STORES
13/12/2017,TARGETED INTERVENTION,HARRIS AND HOOLE ADDLE,2.00,EDUC VISITS/HOLS/CAMPS/TOYS,"EATING PLACES, RESTAURANTS"
13/12/2017,MISC EDCAT SUPPORT,AMAZON EU AMAZON.CO.UK,11.23,EQUIPMENT,MISCELLANEOUS AND SPECIALTY RETAIL STORES
13/12/2017,RUTH HOUSE,WWW.ARGOS.CO.UK,70.92,EQUIPMENT,DISCOUNT STORES
13/12/2017,LOCAL ASSISTANCE SCHEME,WWW.JOHNLEWIS.COM,375.00,FURNITURE,DEPARTMENT STORES
13/12/2017,LOCAL ASSISTANCE SCHEME,WWW.JOHNLEWIS.COM,74.99,FURNITURE,DEPARTMENT STORES
13/12/2017,TARGETED INTERVENTION,TOP GOLF LTD,5.50,EDUC VISITS/HOLS/CAMPS/TOYS,"CLUBS-CNTRY,MBRSHIP(ATHLET,REC,SPRTS,PRIVATE GOLF"
13/12/2017,PRISON CAPITATION                       ,AMAZON SVCS EU-UK AMAZ,74.93,LIBRARY RESOURCES,BOOK STORES
13/12/2017,WOODLANDS COMMUNITY HOME,AMAZON SVCS EU-UK AMAZ,25.74,3RD PARTY PAYMENTS PRIVATE INDIV,BOOK STORES
13/12/2017,MALLOW CRESCENT,SAINSBURYS TO YOU 0652,35.00,PURCHASE OF FOOD (RAW MATERIALS),"GROCERY STORES, SUPERMARKETS"
13/12/2017,MALLOW CRESCENT,SAINSBURYS TO YOU 0652,83.90,PURCHASE OF FOOD (RAW MATERIALS),"GROCERY STORES, SUPERMARKETS"
13/12/2017,RUTH HOUSE,PARKER BELL (INSTRUMEN,94.20,EQUIPMENT,HOUSEHOLD APPLIANCE STORES
13/12/2017,RUTH HOUSE,NBBMATTING.CO.UK,145.20,EQUIPMENT,"DURABLE GOODS, NOT ELSEWHERE CLASSIFIED"
13/12/2017,PROPERTY OPERATIONS TEAM,TOOLSTATION LTD,113.90,PURCHASE OF BUILDING MATERIALS,HARDWARE STORES
13/12/2017,PROPERTY OPERATIONS TEAM,SCREWFIX DIRECT,169.95,PURCHASE OF BUILDING MATERIALS,"BUILDING MATERIALS, LUMBER STORES"
13/12/2017,PROPERTY OPERATIONS TEAM,SCREWFIX DIRECT,-6.99,PURCHASE OF BUILDING MATERIALS,"BUILDING MATERIALS, LUMBER STORES"
13/12/2017,FAMILIES EPSOM AND EWELL,CO-OP GROUP FOOD,23.25,PURCHASE OF FOOD (RAW MATERIALS),"GROCERY STORES, SUPERMARKETS"
13/12/2017,FAMILIES RUNNYMEDE,BILLS WOKING,23.51,REFRESHMENT COSTS,"EATING PLACES, RESTAURANTS"
13/12/2017,FAMILIES RUNNYMEDE,BILLS WOKING,235.05,REFRESHMENT COSTS,"EATING PLACES, RESTAURANTS"
13/12/2017,CYWS COMMISSIONING,AMAZON PRIME,7.99,DAY TO DAY MAINTENANCE,DIRECT MARKETING-CONTINUITY/SUBSCRIPTION MERCHANTS
13/12/2017,FAMILIES REIGATE AND BANSTREAD,TESCO STORE 3235,20.79,PURCHASE OF FOOD (RAW MATERIALS),"GROCERY STORES, SUPERMARKETS"
13/12/2017,FAMILIES GUILDFORD,FREEDOM LEISURE,1.80,REFRESHMENT COSTS,GOVERNMENT SERVICES-NOT ELSEWHERE CLASSIFIED
13/12/2017,FAMILIES SPELTHORNE,TESCO STORE 3220,12.90,PURCHASE OF FOOD (RAW MATERIALS),"GROCERY STORES, SUPERMARKETS"
13/12/2017,ACCESS 2 EDUCATION SE NON-MEDICAL,BOOK PEOPLE VOUCHER,12.00,BOOKS,BOOK STORES
13/12/2017,SECTOR MANAGER,AMAZON SVCS EU-UK AMAZ,329.75,EQUIPMENT,BOOK STORES
13/12/2017,ENSEMBLES & TOURS,AMAZON SVCS EU-UK AMAZ,40.46,EQUIPMENT,BOOK STORES
13/12/2017,ARUNDEL,TESCO STORES 5999,111.75,REFRESHMENT COSTS,"GROCERY STORES, SUPERMARKETS"
13/12/2017,ARUNDEL,TESCO STORES 5999,6.00,REFRESHMENT COSTS,"GROCERY STORES, SUPERMARKETS"
13/12/2017,IMT MANAGEMENT TEAM,DOD`S PARLIAMENTARY CO,720.00,TRAINING EXPENSES EXTERNAL GENERAL,BUSINESS SERVICES-NOT ELSEWHERE CLASSIFIED
13/12/2017,DEVELOPMENT TEAM,UNIVERSITY OF SURREY,599.00,TRAINING EXPENSES EXTERNAL GENERAL,"COLLEGES, UNIV, PRO SCHOOLS, JUNIOR COLLEGES"
13/12/2017,MALLOW CRESCENT,CLEARWELL MOBILITY LTD,107.91,EQUIPMENT,ORTHOPEDIC GOODS-ARTIFICIAL LIMB STORES
13/12/2017,FAIRCROFT COMMUNITY HOME,TESCO STORE 2812,64.20,PURCHASE OF FOOD (RAW MATERIALS),"GROCERY STORES, SUPERMARKETS"
13/12/2017,FAIRCROFT COMMUNITY HOME,CFC TICKETS,53.00,EDUC VISITS/HOLS/CAMPS/TOYS,"CLUBS-CNTRY,MBRSHIP(ATHLET,REC,SPRTS,PRIVATE GOLF"
13/12/2017,ORBIS HEAD OF PROCUREMENT,PLACES FOR PEOPLE,732.90,VENUE COSTS (INCLUDING HIRE OF ROOMS),REAL ESTATE AGENTS AND MANAGERS-RENTALS
13/12/2017,KARIBU COMMUNITY HOME,WWW.FREEDOM-LEISURE.CO,15.54,EDUC VISITS/HOLS/CAMPS/TOYS,RECREATION SERVICES (NOT ELSEWHERE CLASSIFIED)
13/12/2017,NE CARE - CP & COURT LAC,TRAVELODGE,471.00,INDEPENDENT LIVING PLACEMENTS,TRAVELODGE
13/12/2017,HOLLAND CLOSE RESIDENTIAL HOME,WILKO RETAIL LIMIT,22.00,FIXTURES AND FITTINGS,HOUSEHOLD APPLIANCE STORES
13/12/2017,DOWNLANDS COUNTRYSIDE PROJECT,MILL FARM PLANTS,175.20,UPKEEP OF GROUNDS,LAWN AND GARDEN SUPPLY STORES
13/12/2017,EXTENDED HOPE,SAINSBURYS 0652,100.00,PURCHASE OF FOOD (RAW MATERIALS),"GROCERY STORES, SUPERMARKETS"
13/12/2017,EXTENDED HOPE,WWW.JOHNLEWIS.COM,308.50,FURNITURE,DEPARTMENT STORES
13/12/2017,WOODLANDS COMMUNITY HOME,SAINSBURYS TO YOU 0686,8.95,PURCHASE OF FOOD (RAW MATERIALS),"GROCERY STORES, SUPERMARKETS"
13/12/2017,WOODLANDS COMMUNITY HOME,SAINSBURYS TO YOU 0686,114.75,PURCHASE OF FOOD (RAW MATERIALS),"GROCERY STORES, SUPERMARKETS"
13/12/2017,BURBANK COMMUNITY HOME,HOBBYCRAFT,10.05,EQUIPMENT,"ARTIST SUPPLY STORES, CRAFT SHOPS"
13/12/2017,PROPERTY OPERATIONS TEAM,SELCO BUILDERS,16.38,PURCHASE OF BUILDING MATERIALS,"BUILDING MATERIALS, LUMBER STORES"
13/12/2017,WOODLANDS COMMUNITY HOME,AMAZON SVCS EU-UK AMAZ,8.95,3RD PARTY PAYMENTS PRIVATE INDIV,BOOK STORES
13/12/2017,ISPSB - ADAPTATIONS & IMPROVEMENTS,QBITUS PRODUCTS,34.74,EQUIPMENT,NONDURABLE GOODS (NOT ELSEWHERE CLASSIFIED)
13/12/2017,TARGETED INTERVENTION,3C_ WOKING BOROUGH COU,1.40,EDUC VISITS/HOLS/CAMPS/TOYS,AUTOMOBILE PARKING LOTS AND GARAGES
13/12/2017,TARGETED INTERVENTION,TWO RIVERS CAR PK,1.20,EDUC VISITS/HOLS/CAMPS/TOYS,AUTOMOBILE PARKING LOTS AND GARAGES
13/12/2017,DOWNLANDS COUNTRYSIDE PROJECT,RADMORETUCKER.CO.U,157.50,EQUIPMENT,HARDWARE STORES
13/12/2017,MISC EDCAT SUPPORT,AMAZON UK MARKETPLACE,63.48,EQUIPMENT,BOOK STORES
13/12/2017,HERITAGE PUBLIC SERVICE,BOOKER LIMITED ALDERSH,64.71,REFRESHMENT COSTS,CATERERS
13/12/2017,SOLD DAY TO DAY OPERATIONS,SAINSBURYS 2053,10.40,EQUIPMENT,"GROCERY STORES, SUPERMARKETS"
13/12/2017,IMT CRITICAL ENVIRONMENTS,AMAZON EU,17.50,CLEANING AND DOMESTIC SUPPLIES,DIRECT MARKETING-OTHER DIRECT MARKETERS/NOT ELSEW.
13/12/2017,HILLSIDE,SAINSBURYS 0675,1.00,PURCHASE OF FOOD (RAW MATERIALS),"GROCERY STORES, SUPERMARKETS"
13/12/2017,HILLSIDE,SAINSBURYS 0675,52.50,PURCHASE OF FOOD (RAW MATERIALS),"GROCERY STORES, SUPERMARKETS"
13/12/2017,CORONER,AMAZON SVCS EU-UK AMAZ,20.00,PRINTING,BOOK STORES
13/12/2017,HOPE SERVICE - WEST,SAINSBURYS SACAT 0683,5.00,CURRICULUM CONSUMABLES,"GROCERY STORES, SUPERMARKETS"
13/12/2017,FAMILIES WAVERLEY,CO-OP GROUP 500340,7.14,PURCHASE OF FOOD (RAW MATERIALS),"GROCERY STORES, SUPERMARKETS"
13/12/2017,FAMILIES TANDRIDGE,WAITROSE 178,6.05,PURCHASE OF FOOD (RAW MATERIALS),"GROCERY STORES, SUPERMARKETS"
13/12/2017,REMA ETHNIC/LANGUAGE MINORITY SUPPORT,PAYPAL  TWINKL LTD,67.56,SUBSCRIPTIONS,"ORGANIZATIONS, MEMBERSHIP-NOT ELSEWHERE CLASSIFIED"
13/12/2017,HOPE SERVICE - WEST,ARGOS LTD,4.99,CURRICULUM CONSUMABLES,DISCOUNT STORES
13/12/2017,HOPE SERVICE - WEST,SPORTSDIRECT 234,5.00,CURRICULUM CONSUMABLES,SPORTING GOODS STORES
13/12/2017,EQUIPMENT SCC BUDGET,METCALFE CATERING,73.20,EQUIPMENT,"EQUIP, FURNITURE, HOME FURNSHNGS STRS (EXCPT APPL)"
13/12/2017,FIRE & RESCUE COMMUNITY SAFETY,AMAZON SVCS EU-UK AMAZ,115.20,OPERATIONAL FIRE EQUIPMENT,BOOK STORES
13/12/2017,SOLD ESTATES MANAGEMENT,SCREWFIX GUILDFORD,12.75,DAY TO DAY MAINTENANCE,"BUILDING MATERIALS, LUMBER STORES"
13/12/2017,CONSORT HOUSE REDHILL,IRONMONGERY DIRECT LTD,86.88,EQUIPMENT,"GLASS, PAINT, WALLPAPER STORES"
13/12/2017,PE/CDT MAINTENANCE OVERHEADS,SCREWFIX DIRECT,43.27,ITEMS PURCHASED FOR RE-SALE,"BUILDING MATERIALS, LUMBER STORES"
13/12/2017,DOWNLANDS COUNTRYSIDE PROJECT,TESCO STORE 3066,36.30,REFRESHMENT COSTS,"GROCERY STORES, SUPERMARKETS"
13/12/2017,CHEYNE WALK COMMUNITY HOME,SAINSBURYS TO YOU 0026,253.19,PURCHASE OF FOOD (RAW MATERIALS),"GROCERY STORES, SUPERMARKETS"
13/12/2017,BURBANK COMMUNITY HOME,SAINSBURYS TO YOU 0686,331.36,PURCHASE OF FOOD (RAW MATERIALS),"GROCERY STORES, SUPERMARKETS"
13/12/2017,BURBANK COMMUNITY HOME,B & Q 1029,158.08,DAY TO DAY MAINTENANCE,"BUILDING MATERIALS, LUMBER STORES"
13/12/2017,BURBANK COMMUNITY HOME,ARGOS LTD,15.98,EQUIPMENT,DISCOUNT STORES
13/12/2017,BURBANK COMMUNITY HOME,CO-OP GROUP FOOD,7.38,PURCHASE OF FOOD (RAW MATERIALS),"GROCERY STORES, SUPERMARKETS"
13/12/2017,CORPORATE GROUP - LEGAL SERVICES,AMAZON SVCS EU-UK AMAZ,7.56,STATIONERY,BOOK STORES
13/12/2017,TARGETED INTERVENTION,FENG TECH LIMITED,9.99,EDUC VISITS/HOLS/CAMPS/TOYS,WOMEN'S ACCESSORY AND SPECIALTY STORES
13/12/2017,TARGETED INTERVENTION,WH SMITH,23.40,EDUC VISITS/HOLS/CAMPS/TOYS,NEWS DEALERS AND NEWSSTANDS
13/12/2017,TARGETED INTERVENTION,ALLSAINTS,5.60,EDUC VISITS/HOLS/CAMPS/TOYS,"EATING PLACES, RESTAURANTS"
13/12/2017,TARGETED INTERVENTION,TESCO STORE 2047,16.62,EDUC VISITS/HOLS/CAMPS/TOYS,"GROCERY STORES, SUPERMARKETS"
13/12/2017,TARGETED INTERVENTION,STARBUCKS,12.58,EDUC VISITS/HOLS/CAMPS/TOYS,"EATING PLACES, RESTAURANTS"
13/12/2017,WOODLANDS COMMUNITY HOME,WWW.PRIORYCOFE.COM,100.00,PURCHASE OF FOOD (RAW MATERIALS),CATERERS
13/12/2017,TARGETED INTERVENTION,COSTA @ DEBENHAMS 4303,6.45,EDUC VISITS/HOLS/CAMPS/TOYS,FAST FOOD RESTAURANTS
13/12/2017,TARGETED INTERVENTION,3C_ WOKING BOROUGH COU,2.80,EDUC VISITS/HOLS/CAMPS/TOYS,AUTOMOBILE PARKING LOTS AND GARAGES
13/12/2017,TARGETED INTERVENTION,WOKING SNOOKER CENTRE,8.00,EDUC VISITS/HOLS/CAMPS/TOYS,RECREATIONAL AND SPORTING CAMPS
13/12/2017,FAMILIES MOLE VALLEY,MARKS&SPENCER PLC,8.10,PURCHASE OF FOOD (RAW MATERIALS),"GROCERY STORES, SUPERMARKETS"
13/12/2017,FIRE SERVICES IT,AMAZON UK MARKETPLACE,101.90,COMPUTER HARDWARE,BOOK STORES
13/12/2017,RUTH HOUSE,G J HONOUR,125.92,PURCHASE OF FOOD (RAW MATERIALS),"MISC FOOD STORE-CONVENIENCE,MRKT,SPLTY,VENDNG MACS"
13/12/2017,RUTH HOUSE,G J HONOUR,168.23,PURCHASE OF FOOD (RAW MATERIALS),"MISC FOOD STORE-CONVENIENCE,MRKT,SPLTY,VENDNG MACS"
13/12/2017,BURBANK COMMUNITY HOME,CHINA CHEF,56.70,REFRESHMENT COSTS,FAST FOOD RESTAURANTS
13/12/2017,CHEYNE WALK COMMUNITY HOME,SAINSBURYS SACAT 0779,9.45,PURCHASE OF FOOD (RAW MATERIALS),"GROCERY STORES, SUPERMARKETS"
13/12/2017,CHEYNE WALK COMMUNITY HOME,MATALAN,195.00,EQUIPMENT,MEN'S AND WOMEN'S CLOTHING STORES
13/12/2017,CHEYNE WALK COMMUNITY HOME,COSTA COFFEE 43035640,8.05,REFRESHMENT COSTS,FAST FOOD RESTAURANTS
13/12/2017,CHEYNE WALK COMMUNITY HOME,COUNTY MALL CAR PARK,2.50,VEHICLE RUNNING COSTS,AUTOMOBILE PARKING LOTS AND GARAGES
13/12/2017,CHEYNE WALK COMMUNITY HOME,J D SPORTS PLC,45.05,"CLOTHING, UNIFORM AND LAUNDRY",SPORTING GOODS STORES
13/12/2017,CHEYNE WALK COMMUNITY HOME,SUPERDRY,129.99,"CLOTHING, UNIFORM AND LAUNDRY",WOMEN'S ACCESSORY AND SPECIALTY STORES
13/12/2017,CHEYNE WALK COMMUNITY HOME,T K MAXX,6.97,3RD PARTY PAYMENTS PRIVATE INDIV,VARIETY STORES
13/12/2017,SERVICE DELIVERY RESOURCES,DOMINOS,76.76,REFRESHMENT COSTS,FAST FOOD RESTAURANTS
14/12/2017,LOCAL ASSISTANCE SCHEME,WWW.JOHNLEWIS.COM,436.00,FURNITURE,DEPARTMENT STORES
14/12/2017,LOCAL ASSISTANCE SCHEME,WWW.JOHNLEWIS.COM,620.00,FURNITURE,DEPARTMENT STORES
14/12/2017,LOCAL ASSISTANCE SCHEME,WWW.JOHNLEWIS.COM,58.00,FURNITURE,DEPARTMENT STORES
14/12/2017,HOPE SERVICE - WEST,ODEON/BOOKIT,86.00,EDUC VISITS/HOLS/CAMPS/TOYS,MOTION PICTURE THEATERS
14/12/2017,HOPE SERVICE - WEST,ODEON,6.00,REFRESHMENT COSTS,MOTION PICTURE THEATERS
14/12/2017,COVEHAM,TIP TOP COMPUTERS,78.00,COMPUTER CONSUMABLES,COMPUTER MAIN./REPAIR/SERVICES NOT ELSEWHERE CLASS
14/12/2017,TARGETED INTERVENTION,TOP GOLF LTD,6.65,EDUC VISITS/HOLS/CAMPS/TOYS,"CLUBS-CNTRY,MBRSHIP(ATHLET,REC,SPRTS,PRIVATE GOLF"
14/12/2017,CHMHS RAP TEAM,SPORTSDIRECT.COM,228.79,EDUC VISITS/HOLS/CAMPS/TOYS,SPORTING GOODS STORES
14/12/2017,WOODLANDS COMMUNITY HOME,AMAZON EU AMAZON.CO.UK,5.63,3RD PARTY PAYMENTS PRIVATE INDIV,MISCELLANEOUS AND SPECIALTY RETAIL STORES
14/12/2017,FAIRCROFT COMMUNITY HOME,AMAZON SVCS EU-UK AMAZ,73.34,3RD PARTY PAYMENTS PRIVATE INDIV,BOOK STORES
14/12/2017,ROW VOLUNTEERS WEST                     ,PANTILES SERVICE STATI,12.00,PETROL/DIESEL ALL OFF BUSINESS,SERVICE STATIONS WITH OR WITHOUT ANCILLARY SERVICE
14/12/2017,WOODLANDS COMMUNITY HOME,AMAZON EU AMAZON.CO.UK,21.21,3RD PARTY PAYMENTS PRIVATE INDIV,MISCELLANEOUS AND SPECIALTY RETAIL STORES
14/12/2017,TRANSPORT,PAYPAL  AQUALEISURE,222.36,OPERATIONAL FIRE EQUIPMENT,"MARINAS, MARINE SERVICE/SUPPLIES"
14/12/2017,LOWER MOLE COUNTRYSIDE PROJECT,SAINSBURYS 0683,58.40,REFRESHMENT COSTS,"GROCERY STORES, SUPERMARKETS"
14/12/2017,LOWER MOLE COUNTRYSIDE PROJECT,SAINSBURYS 0683,54.40,REFRESHMENT COSTS,"GROCERY STORES, SUPERMARKETS"
14/12/2017,LOWER MOLE COUNTRYSIDE PROJECT,TESCO STORES 6320,3.70,REFRESHMENT COSTS,"GROCERY STORES, SUPERMARKETS"
14/12/2017,KARIBU COMMUNITY HOME,THE GRANARY,19.00,BOOKS,TOURIST ATTRACTIONS AND EXHIBITS
14/12/2017,TARGETED INTERVENTION,ARGOS LTD,9.99,EDUC VISITS/HOLS/CAMPS/TOYS,DISCOUNT STORES
14/12/2017,HILLSIDE,SAINSBURYS 0675,43.87,PURCHASE OF FOOD (RAW MATERIALS),"GROCERY STORES, SUPERMARKETS"
14/12/2017,RUTH HOUSE,WILKO WOKING,32.05,EDUC VISITS/HOLS/CAMPS/TOYS,HOUSEHOLD APPLIANCE STORES
14/12/2017,RUTH HOUSE,DEBENHAMS,38.55,"CLOTHING, UNIFORM AND LAUNDRY",DEPARTMENT STORES
14/12/2017,RUTH HOUSE,TESCO STORES-2160,37.20,EDUC VISITS/HOLS/CAMPS/TOYS,"GROCERY STORES, SUPERMARKETS"
14/12/2017,KARIBU COMMUNITY HOME,COSTA COFFEE,8.90,PURCHASE OF FOOD (RAW MATERIALS),"EATING PLACES, RESTAURANTS"
14/12/2017,YSS YOUTH CENTRE IMPROVEMENTS,WAITROSE 189,17.73,REFRESHMENT COSTS,"GROCERY STORES, SUPERMARKETS"
14/12/2017,FAMILIES WOKING,SAINSBURYS 0686,33.25,REFRESHMENT COSTS,"GROCERY STORES, SUPERMARKETS"
14/12/2017,FAMILIES ELMBRIDGE,PIZZA EXPRESS,105.85,REFRESHMENT COSTS,"EATING PLACES, RESTAURANTS"
14/12/2017,SPELTHORNE CMHRS CARE,TRAVELODGE,783.50,FEES,TRAVELODGE
14/12/2017,HOLLAND CLOSE RESIDENTIAL HOME,AMAZON UK MARKETPLACE,19.98,EDUC VISITS/HOLS/CAMPS/TOYS,BOOK STORES
14/12/2017,HERITAGE,UCLONLINESTORE,95.00,TRAINING EXPENSES EXTERNAL GENERAL,"COLLEGES, UNIV, PRO SCHOOLS, JUNIOR COLLEGES"
14/12/2017,RBDM - GENERAL,CURRYS ONLINE,254.98,EQUIPMENT,ELECTRONIC SALES
14/12/2017,TARGETED INTERVENTION,WOKING SNOOKER CENTRE,3.63,EDUC VISITS/HOLS/CAMPS/TOYS,RECREATIONAL AND SPORTING CAMPS
14/12/2017,TARGETED INTERVENTION,T.K MAXX,19.98,EXAMINATION FEES,VARIETY STORES
14/12/2017,E&I - COMMUNITY RECYCLING CENTRES       ,GOOGLE  ADWS2060179426,500.00,PUBLICITY,DIRECT MARKETING-CONTINUITY/SUBSCRIPTION MERCHANTS
14/12/2017,FAMILIES MOLE VALLEY,ASDA SUPERSTORE,73.68,PURCHASE OF FOOD (RAW MATERIALS),"GROCERY STORES, SUPERMARKETS"
14/12/2017,CHEYNE WALK COMMUNITY HOME,NEWBRIDGE GARDEN,57.44,EQUIPMENT,LAWN AND GARDEN SUPPLY STORES
14/12/2017,CHEYNE WALK COMMUNITY HOME,NEWBRIDGE GARDEN,5.25,REFRESHMENT COSTS,LAWN AND GARDEN SUPPLY STORES
14/12/2017,HOPE SERVICE - WEST,SAINSBURYS TO YOU 0686,49.45,PURCHASE OF FOOD (RAW MATERIALS),"GROCERY STORES, SUPERMARKETS"
14/12/2017,DOWNLANDS COUNTRYSIDE PROJECT,MOLE COUNTRY STORES,109.26,EQUIPMENT,AGRICULTURAL COOPERATIVES
14/12/2017,LOCAL ASSISTANCE SCHEME,AMAZON UK MARKETPLACE,73.80,FURNITURE,BOOK STORES
14/12/2017,LOCAL ASSISTANCE SCHEME,TESCO - SELLER_IST_1_2,744.96,FURNITURE,MISCELLANEOUS AND SPECIALTY RETAIL STORES
14/12/2017,SE CARE - NON-LAC CP & COURT,TRAVELODGE,67.25,INDEPENDENT LIVING PLACEMENTS,TRAVELODGE
14/12/2017,ROW VOLUNTEERS WEST                     ,WICKES,13.99,EQUIPMENT,"BUILDING MATERIALS, LUMBER STORES"
14/12/2017,ROW VOLUNTEERS WEST                     ,METHOLD VEHICLE HIRE,54.00,HIRE OF VEHICLES,AUTOMOBILE RENTAL AGENCY-NOT ELSEWHERE CLASSIFIED
14/12/2017,FAMILIES WAVERLEY,WAITROSE 216,6.00,PURCHASE OF FOOD (RAW MATERIALS),"GROCERY STORES, SUPERMARKETS"
14/12/2017,TARGETED INTERVENTION,TESCO STORE 2047,27.24,EDUC VISITS/HOLS/CAMPS/TOYS,"GROCERY STORES, SUPERMARKETS"
14/12/2017,TARGETED INTERVENTION,WWW.TEAM-SPORT.CO.UK,60.00,EDUC VISITS/HOLS/CAMPS/TOYS,"AMUSEMENT PARKS,CARNIVALS,CIRCUS,FORTUNE TELLERS"
14/12/2017,TARGETED INTERVENTION,TOP GOLF LTD,9.25,EDUC VISITS/HOLS/CAMPS/TOYS,"CLUBS-CNTRY,MBRSHIP(ATHLET,REC,SPRTS,PRIVATE GOLF"
14/12/2017,TARGETED INTERVENTION,COSTA COFFEE,7.40,EDUC VISITS/HOLS/CAMPS/TOYS,FAST FOOD RESTAURANTS
14/12/2017,FAIRCROFT COMMUNITY HOME,SAINSBURYS SACAT 0687,11.00,EQUIPMENT,"GROCERY STORES, SUPERMARKETS"
14/12/2017,FAIRCROFT COMMUNITY HOME,WWW.THEHOWARD.ORG,16.00,EDUC VISITS/HOLS/CAMPS/TOYS,"SCHOOLS, ELEMENTARY AND SECONDARY"
14/12/2017,CHAIRMAN,STATIONERY OFFICE BOOK,53.30,NEWSPAPER AND PERIODICALS,BOOK STORES
14/12/2017,SURREY WASTE PARTNERSHIP,LOCKSHOPWAREHOUSE,70.15,EQUIPMENT,DEPARTMENT STORES
14/12/2017,LOCAL ASSISTANCE SCHEME,AMAZON PRIME,7.99,SUBSCRIPTIONS,DIRECT MARKETING-CONTINUITY/SUBSCRIPTION MERCHANTS
14/12/2017,BURBANK COMMUNITY HOME,WILKO WOKING,5.25,EDUC VISITS/HOLS/CAMPS/TOYS,HOUSEHOLD APPLIANCE STORES
14/12/2017,BURBANK COMMUNITY HOME,TIGER,13.00,EDUC VISITS/HOLS/CAMPS/TOYS,"GIFT, CARD, NOVELTY AND SOUVENIR SHOPS"
14/12/2017,TRANSPORT,AMAZON SVCS EU-UK AMAZ,34.99,FURNITURE,BOOK STORES
14/12/2017,SOLD ESTATES MANAGEMENT,MERITYRE SPECIALISTS,84.52,VEHICLE REPAIRS AND MAINTENANCE,"AUTOMOTIVE PARTS, ACCESSORIES STORES"
14/12/2017,LIBERTAS COMMUNITY HOME,LAURA ASHLEY GUILDFORD,101.00,EDUC VISITS/HOLS/CAMPS/TOYS,MISCELLANEOUS HOUSE FURNISHING SPECIALTY SHOPS
14/12/2017,DOWNLANDS COUNTRYSIDE PROJECT,TESCO STORES,24.00,REFRESHMENT COSTS,"GROCERY STORES, SUPERMARKETS"
14/12/2017,ESTATES TEAM,AMAZON UK MARKETPLACE,43.38,EQUIPMENT,BOOK STORES
14/12/2017,ARUNDEL,TESCO STORES 2191,16.20,REFRESHMENT COSTS,"GROCERY STORES, SUPERMARKETS"
14/12/2017,BURBANK COMMUNITY HOME,W M MORRISONS,33.71,PURCHASE OF FOOD (RAW MATERIALS),"GROCERY STORES, SUPERMARKETS"
14/12/2017,PE/CDT MAINTENANCE OVERHEADS,SCREWFIX DIRECT,-139.98,ITEMS PURCHASED FOR RE-SALE,"BUILDING MATERIALS, LUMBER STORES"
14/12/2017,COUNTY HALL,TLC (SOUTHERN) LTD,278.35,DAY TO DAY MAINTENANCE,HOUSEHOLD APPLIANCE STORES
14/12/2017,RUTH HOUSE,WWW.PECS.ORG.UK,243.60,EDUC VISITS/HOLS/CAMPS/TOYS,SCHOOLS & EDUCATIONAL SVC-NOT ELSEWHERE CLASSIFIED
14/12/2017,SE NIL RECOURSE TO PUBLIC FUNDS CARE,HOTEL ON BOOKING.COM,"1,455.90",INDEPENDENT LIVING PLACEMENTS,"LODGING-HOTELS,MOTELS,RESORTS-NOT CLASSIFIED"
14/12/2017,WOODLANDS COMMUNITY HOME,SAINSBURYS 0686,55.00,3RD PARTY PAYMENTS PRIVATE INDIV,"GROCERY STORES, SUPERMARKETS"
14/12/2017,WOODLANDS COMMUNITY HOME,SAINSBURYS 0686,21.35,PURCHASE OF FOOD (RAW MATERIALS),"GROCERY STORES, SUPERMARKETS"
14/12/2017,WOODLANDS COMMUNITY HOME,SAINSBURYS 0686,8.25,EQUIPMENT,"GROCERY STORES, SUPERMARKETS"
14/12/2017,TARGETED INTERVENTION,SAINSBURYS 0686,13.00,EDUC VISITS/HOLS/CAMPS/TOYS,"GROCERY STORES, SUPERMARKETS"
14/12/2017,TARGETED INTERVENTION,COSTA COFFEE,5.35,EDUC VISITS/HOLS/CAMPS/TOYS,FAST FOOD RESTAURANTS
14/12/2017,TARGETED INTERVENTION,3C_ WOKING BOROUGH COU,1.40,EDUC VISITS/HOLS/CAMPS/TOYS,AUTOMOBILE PARKING LOTS AND GARAGES
14/12/2017,TARGETED INTERVENTION,STARBUCKS,5.80,EDUC VISITS/HOLS/CAMPS/TOYS,FAST FOOD RESTAURANTS
14/12/2017,TARGETED INTERVENTION,COSTA @ DEBENHAMS 4303,5.30,EDUC VISITS/HOLS/CAMPS/TOYS,FAST FOOD RESTAURANTS
14/12/2017,TARGETED INTERVENTION,3C_ WOKING BOROUGH COU,2.80,EDUC VISITS/HOLS/CAMPS/TOYS,AUTOMOBILE PARKING LOTS AND GARAGES
14/12/2017,TARGETED INTERVENTION,JD SPORTS PLC,40.00,EXAMINATION FEES,SPORTING GOODS STORES
14/12/2017,CORONER,AMAZON SVCS EU-UK AMAZ,144.00,PRINTING,BOOK STORES
14/12/2017,CHILDREN'S RIGHTS TEAM,STARBUCKS,13.30,REFRESHMENT COSTS,FAST FOOD RESTAURANTS
14/12/2017,ACL CENTRAL EXPENDITURE,TEXTMARKETER,90.00,PUBLICITY,COMPUTER SOFTWARE STORES
14/12/2017,ACL CENTRAL EXPENDITURE,TEXTMARKETER,90.00,PUBLICITY,COMPUTER SOFTWARE STORES
14/12/2017,FAIRCROFT COMMUNITY HOME,TESCO STORE 2160,69.10,EQUIPMENT,"GROCERY STORES, SUPERMARKETS"
14/12/2017,ACCESS PROGRAMMES,KENDALL CARS GUILDFORD,50.00,HIRE OF VEHICLES,AUTOMOBILE RENTAL AGENCY-NOT ELSEWHERE CLASSIFIED
14/12/2017,RESOURCES FUND,FRITH COLLECTION,17.00,LIBRARY RESOURCES,ART DEALERS AND GALLERIES
14/12/2017,PRISON CAPITATION                       ,AMAZON SVCS EU-UK AMAZ,51.12,LIBRARY RESOURCES,BOOK STORES
14/12/2017,BURBANK COMMUNITY HOME,3C_ WOKING BOROUGH COU,1.40,MISCELLANEOUS STAFF TRAVEL,AUTOMOBILE PARKING LOTS AND GARAGES
14/12/2017,BURBANK COMMUNITY HOME,3C_ WOKING BOROUGH COU,2.80,MISCELLANEOUS STAFF TRAVEL,AUTOMOBILE PARKING LOTS AND GARAGES
14/12/2017,BURBANK COMMUNITY HOME,MUFFIN BREAK,10.00,PURCHASE OF FOOD (RAW MATERIALS),FAST FOOD RESTAURANTS
15/12/2017,THAMESIDE CENTRE,DRI BENQ,267.01,EQUIPMENT,COMPUTER SOFTWARE STORES
15/12/2017,HOPE SERVICE - WEST,FREEDOM LEISURE,47.90,EDUC VISITS/HOLS/CAMPS/TOYS,GOVERNMENT SERVICES-NOT ELSEWHERE CLASSIFIED
15/12/2017,PERFORMANCE TEAM,AMAZON UK MARKETPLACE,14.99,EQUIPMENT,BOOK STORES
15/12/2017,QUADRANT COURT WOKING,WWW.STAPLES.CO.UK,36.00,STATIONERY,"OFFICE, SCHOOL SUPPLY, AND STATIONERY STORES"
15/12/2017,AREA SCHOOLS OFFICER (SW),JACQUIE LAWSON.COM,13.00,EXPENSES,DIRECT MARKETING-CONTINUITY/SUBSCRIPTION MERCHANTS
15/12/2017,SIGNS OF SAFETY TRAINING,AMAZON UK MARKETPLACE,249.70,EQUIPMENT,BOOK STORES
15/12/2017,ARUNDEL,TESCO STORES 5999,143.85,REFRESHMENT COSTS,"GROCERY STORES, SUPERMARKETS"
15/12/2017,SPELTHORNE CMHRS CARE,HMCTS-SURREY125,75.00,FEES,FINES
15/12/2017,COBHAM CHILDRENS CENTRE,WAITROSE 176,27.52,REFRESHMENT COSTS,"GROCERY STORES, SUPERMARKETS"
15/12/2017,MALLOW CRESCENT,BLINDS4UK,268.68,EQUIPMENT,"DRAPERY, UPOLSTERY, AND WINDOW COVERINGS STORES"
15/12/2017,COVEHAM,AMAZON UK MARKETPLACE,87.53,DAY TO DAY MAINTENANCE,BOOK STORES
15/12/2017,LOCAL ASSISTANCE SCHEME,WWW.JOHNLEWIS.COM,213.00,FURNITURE,DEPARTMENT STORES
15/12/2017,WOODLANDS COMMUNITY HOME,SAINSBURYS 0686,16.60,PURCHASE OF FOOD (RAW MATERIALS),"GROCERY STORES, SUPERMARKETS"
15/12/2017,WOODLANDS COMMUNITY HOME,SAINSBURYS 0686,111.44,PURCHASE OF FOOD (RAW MATERIALS),"GROCERY STORES, SUPERMARKETS"
15/12/2017,HOPE SERVICE - WEST,SAINSBURYS SACAT 0683,16.00,CURRICULUM CONSUMABLES,"GROCERY STORES, SUPERMARKETS"
15/12/2017,HOPE SERVICE - WEST,SAINSBURYS SACAT 0683,.50,CURRICULUM CONSUMABLES,"GROCERY STORES, SUPERMARKETS"
15/12/2017,CHILDREN'S RIGHTS TEAM,WWW.ARGOS.CO.UK,30.39,EQUIPMENT,DISCOUNT STORES
15/12/2017,CHILDREN'S RIGHTS TEAM,WWW.ARGOS.CO.UK,8.94,EQUIPMENT,DISCOUNT STORES
15/12/2017,HOPE SERVICE - WEST,SAINSBURYS SACAT(4409),2.45,PURCHASE OF FOOD (RAW MATERIALS),"GROCERY STORES, SUPERMARKETS"
15/12/2017,HOPE SERVICE - WEST,TESCO-STORES 2590,6.18,PURCHASE OF FOOD (RAW MATERIALS),"GROCERY STORES, SUPERMARKETS"
15/12/2017,RESOURCES FUND,ACTIVE MINDS,92.49,LIBRARY RESOURCES,"ARTIST SUPPLY STORES, CRAFT SHOPS"
15/12/2017,SECTOR MANAGER,WWW.REXINTER.COM,-36.72,ITEMS PURCHASED FOR RE-SALE,"GIFT, CARD, NOVELTY AND SOUVENIR SHOPS"
15/12/2017,COVEHAM,AMAZON UK MARKETPLACE,29.50,STATIONERY,BOOK STORES
15/12/2017,COVEHAM,SAINSBURYS SACAT 0687,31.00,REFRESHMENT COSTS,"GROCERY STORES, SUPERMARKETS"
15/12/2017,COVEHAM,WWW.ICELAND.CO.UK,105.45,REFRESHMENT COSTS,"GROCERY STORES, SUPERMARKETS"
15/12/2017,FAMILIES EPSOM AND EWELL,SAINSBURYS 0683,98.45,CURRICULUM CONSUMABLES,"GROCERY STORES, SUPERMARKETS"
15/12/2017,FAMILIES EPSOM AND EWELL,SAINSBURYS 0683,97.45,CURRICULUM CONSUMABLES,"GROCERY STORES, SUPERMARKETS"
15/12/2017,FAMILIES EPSOM AND EWELL,SAINSBURYS 0683,8.00,CURRICULUM CONSUMABLES,"GROCERY STORES, SUPERMARKETS"
15/12/2017,CYWS COMMISSIONING,POSTOFFICE SELFSERVICE,4.48,PUBLICITY,POSTAL SERVICES-GOVERNMENT ONLY
15/12/2017,FAIRCROFT COMMUNITY HOME,SAINSBURYS PFS0473,20.00,3RD PARTY PAYMENTS PRIVATE INDIV,SERVICE STATIONS WITH OR WITHOUT ANCILLARY SERVICE
15/12/2017,WOODLANDS COMMUNITY HOME,ASDA STORES 4823,14.00,PURCHASE OF FOOD (RAW MATERIALS),"GROCERY STORES, SUPERMARKETS"
15/12/2017,WOODLANDS COMMUNITY HOME,ASDA STORES 4823,32.74,PURCHASE OF FOOD (RAW MATERIALS),"GROCERY STORES, SUPERMARKETS"
15/12/2017,BURBANK COMMUNITY HOME,BOOTS 2142,16.00,3RD PARTY PAYMENTS PRIVATE INDIV,"DRUG STORES, PHARMACIES"
15/12/2017,BURBANK COMMUNITY HOME,WILKO WOKING,5.75,3RD PARTY PAYMENTS PRIVATE INDIV,HOUSEHOLD APPLIANCE STORES
15/12/2017,BURBANK COMMUNITY HOME,PRIMARK,11.00,"CLOTHING, UNIFORM AND LAUNDRY",FAMILY CLOTHING STORES
15/12/2017,LEGAL EXPENSES CHILD ADULT EDUC TEAM,SURREY CC CARD PAY,11.00,FEES,COMPUTER NETWORK/INFORMATION SERVICES
15/12/2017,FAIRCROFT COMMUNITY HOME,MCDONALDS,3.38,REFRESHMENT COSTS,FAST FOOD RESTAURANTS
15/12/2017,TARGETED INTERVENTION,ALLSAINTS,5.50,EDUC VISITS/HOLS/CAMPS/TOYS,"EATING PLACES, RESTAURANTS"
15/12/2017,TARGETED INTERVENTION,ALLSAINTS,9.80,EDUC VISITS/HOLS/CAMPS/TOYS,"EATING PLACES, RESTAURANTS"
15/12/2017,TARGETED INTERVENTION,KINGSCROFT SUBWAY,3.50,EDUC VISITS/HOLS/CAMPS/TOYS,"EATING PLACES, RESTAURANTS"
15/12/2017,TARGETED INTERVENTION,TOP GOLF LTD,15.50,EDUC VISITS/HOLS/CAMPS/TOYS,"CLUBS-CNTRY,MBRSHIP(ATHLET,REC,SPRTS,PRIVATE GOLF"
15/12/2017,TARGETED INTERVENTION,TOP GOLF LTD,6.65,EDUC VISITS/HOLS/CAMPS/TOYS,"CLUBS-CNTRY,MBRSHIP(ATHLET,REC,SPRTS,PRIVATE GOLF"
15/12/2017,TARGETED INTERVENTION,TOP GOLF LTD,-6.00,EDUC VISITS/HOLS/CAMPS/TOYS,"CLUBS-CNTRY,MBRSHIP(ATHLET,REC,SPRTS,PRIVATE GOLF"
15/12/2017,LIBERTAS COMMUNITY HOME,SAINSBURYS SACAT 0652,1.00,EQUIPMENT,"GROCERY STORES, SUPERMARKETS"
15/12/2017,LIBERTAS COMMUNITY HOME,SAINSBURYS SACAT 0652,26.10,EQUIPMENT,"GROCERY STORES, SUPERMARKETS"
15/12/2017,LIBERTAS COMMUNITY HOME,SAINSBURYS SACAT 0652,163.23,EQUIPMENT,"GROCERY STORES, SUPERMARKETS"
15/12/2017,LIBERTAS COMMUNITY HOME,SAINSBURYS 0652,85.00,EQUIPMENT,"GROCERY STORES, SUPERMARKETS"
15/12/2017,TRAINING COMMUNICATIONS,D & A D,"2,400.00",TRAINING EXPENSES EXTERNAL GENERAL,"ORGANIZATIONS, CHARITABLE AND SOCIAL SERVICES"
15/12/2017,HOPE SERVICE - WEST,SAINSBURYS TO YOU 0686,91.26,PURCHASE OF FOOD (RAW MATERIALS),"GROCERY STORES, SUPERMARKETS"
15/12/2017,MOLE VALLEY CMHRS CARE,HMCTS-SURREY125,75.00,FEES,FINES
15/12/2017,FIRE SERVICES IT,AMAZON SVCS EU-UK AMAZ,83.88,COMPUTER HARDWARE,BOOK STORES
15/12/2017,TRANSPORT,AMAZON SVCS EU-UK AMAZ,40.97,FURNITURE,BOOK STORES
15/12/2017,DOWNLANDS COUNTRYSIDE PROJECT,TESCO STORE 2535,51.30,REFRESHMENT COSTS,"GROCERY STORES, SUPERMARKETS"
15/12/2017,DOWNLANDS COUNTRYSIDE PROJECT,TESCO STORE 2535,12.50,REFRESHMENT COSTS,"GROCERY STORES, SUPERMARKETS"
15/12/2017,HOPE SERVICE - WEST,AMAZON UK MARKETPLACE,4.56,BOOKS,BOOK STORES
15/12/2017,SE CARE - CP & COURT LAC,ANYVANUK,203.00,OTHER COMMUNITY CARE VOL,"COURIER SVC-AIR & GROUND, FREIGHT FORWARDERS"
15/12/2017,BURBANK COMMUNITY HOME,WAITROSE 189,5.97,PURCHASE OF FOOD (RAW MATERIALS),"GROCERY STORES, SUPERMARKETS"
15/12/2017,PROPERTY OPERATIONS TEAM,B & Q 1029,36.88,PURCHASE OF BUILDING MATERIALS,"BUILDING MATERIALS, LUMBER STORES"
15/12/2017,APPLEWOOD,ASDA HOME SHOPPING,182.50,PURCHASE OF FOOD (RAW MATERIALS),"GROCERY STORES, SUPERMARKETS"
15/12/2017,APPLEWOOD,ASDA HOME SHOPPING,-.46,PURCHASE OF FOOD (RAW MATERIALS),"GROCERY STORES, SUPERMARKETS"
15/12/2017,TARGETED INTERVENTION,FREEDOM LEISURE,8.40,EDUC VISITS/HOLS/CAMPS/TOYS,GOVERNMENT SERVICES-NOT ELSEWHERE CLASSIFIED
15/12/2017,FAIRCROFT COMMUNITY HOME,AMAZON EU,50.00,3RD PARTY PAYMENTS PRIVATE INDIV,DIRECT MARKETING-OTHER DIRECT MARKETERS/NOT ELSEW.
15/12/2017,FAIRCROFT COMMUNITY HOME,AMAZON SVCS EU-UK AMAZ,9.98,3RD PARTY PAYMENTS PRIVATE INDIV,BOOK STORES
15/12/2017,TANDRIDGE LOCALITY TEAM,AMAZON UK MARKETPLACE,32.40,EQUIPMENT,BOOK STORES
15/12/2017,HILLSIDE,SAINSBURYS 0675,53.76,PURCHASE OF FOOD (RAW MATERIALS),"GROCERY STORES, SUPERMARKETS"
15/12/2017,BURBANK COMMUNITY HOME,HOBBYCRAFT,4.00,EQUIPMENT,"ARTIST SUPPLY STORES, CRAFT SHOPS"
15/12/2017,ACL CENTRAL EXPENDITURE,B&Q DIRECT,114.00,EQUIPMENT,"BUILDING MATERIALS, LUMBER STORES"
15/12/2017,RUTH HOUSE,SAINSBURYS TO YOU 0686,22.60,PURCHASE OF FOOD (RAW MATERIALS),"GROCERY STORES, SUPERMARKETS"
15/12/2017,RUTH HOUSE,SAINSBURYS TO YOU 0686,112.80,PURCHASE OF FOOD (RAW MATERIALS),"GROCERY STORES, SUPERMARKETS"
15/12/2017,KARIBU COMMUNITY HOME,FREEDOM LEISURE,11.20,EDUC VISITS/HOLS/CAMPS/TOYS,GOVERNMENT SERVICES-NOT ELSEWHERE CLASSIFIED
15/12/2017,NORTH WEST AREA TEAM,WWW.ARGOS.CO.UK,142.73,EQUIPMENT,DISCOUNT STORES
15/12/2017,FOSTERING SERVICE CENTRAL COSTS,PARTRIDGE & PRINT,71.25,BOOKS,SCHOOLS & EDUCATIONAL SVC-NOT ELSEWHERE CLASSIFIED
15/12/2017,FOSTERING SERVICE CENTRAL COSTS,PARTRIDGE & PRINT,6.60,BOOKS,SCHOOLS & EDUCATIONAL SVC-NOT ELSEWHERE CLASSIFIED
15/12/2017,HOLLAND CLOSE RESIDENTIAL HOME,WINTER WONDERLAND/PWR,63.90,EDUC VISITS/HOLS/CAMPS/TOYS,"THEATRICAL PRODUCERS(EXCL MOTION PIX),TICKET AGNCY"
15/12/2017,CORPORATE GROUP - LEGAL SERVICES,ELIOR@WEST SUSSEX COUN,104.28,REFRESHMENT COSTS,CATERERS
15/12/2017,CORPORATE GROUP - LEGAL SERVICES,ELIOR@WEST SUSSEX COUN,101.16,REFRESHMENT COSTS,CATERERS
15/12/2017,NW CARE - LAC,EXPEDIA 7316055289837,34.99,NON-STAFF RELATED TRANSPORT COSTS,TRAVEL AGENCIES AND TOUR OPERATORS
15/12/2017,NW CARE - LAC,EXPEDIA 7316055289837,2.10,NON-STAFF RELATED TRANSPORT COSTS,TRAVEL AGENCIES AND TOUR OPERATORS
15/12/2017,NW CARE - LAC,EASYJET,72.49,NON-STAFF RELATED TRANSPORT COSTS,EASYJET
15/12/2017,EAST CWD NON-LAC CARE,ARGOS RETAIL GROUP,139.00,EQUIPMENT,DISCOUNT STORES
15/12/2017,ACL CENTRAL EXPENDITURE,WWW.CASSART.CO.UK,109.50,EQUIPMENT,"ARTIST SUPPLY STORES, CRAFT SHOPS"
15/12/2017,ACL CENTRAL EXPENDITURE,IKEA ONLINE,254.00,EQUIPMENT,MISCELLANEOUS HOUSE FURNISHING SPECIALTY SHOPS
15/12/2017,TARGETED INTERVENTION,SUPERDRUG STORES PLC,39.00,EXAMINATION FEES,"DRUG STORES, PHARMACIES"
15/12/2017,TARGETED INTERVENTION,STARBUCKS,8.40,EDUC VISITS/HOLS/CAMPS/TOYS,"EATING PLACES, RESTAURANTS"
15/12/2017,TARGETED INTERVENTION,TOP GOLF LTD,24.75,EDUC VISITS/HOLS/CAMPS/TOYS,"CLUBS-CNTRY,MBRSHIP(ATHLET,REC,SPRTS,PRIVATE GOLF"
15/12/2017,TARGETED INTERVENTION,TOP GOLF LTD,2.35,EDUC VISITS/HOLS/CAMPS/TOYS,"CLUBS-CNTRY,MBRSHIP(ATHLET,REC,SPRTS,PRIVATE GOLF"
15/12/2017,TARGETED INTERVENTION,TOP GOLF LTD,19.40,EDUC VISITS/HOLS/CAMPS/TOYS,"CLUBS-CNTRY,MBRSHIP(ATHLET,REC,SPRTS,PRIVATE GOLF"
16/12/2017,FAIRCROFT COMMUNITY HOME,Q PARK CHINATOWN,40.00,MISCELLANEOUS STAFF TRAVEL,AUTOMOBILE PARKING LOTS AND GARAGES
16/12/2017,KARIBU COMMUNITY HOME,AMAZON UK MARKETPLACE,14.98,EDUC VISITS/HOLS/CAMPS/TOYS,BOOK STORES
16/12/2017,WOODLANDS COMMUNITY HOME,GO OUTDOORS,45.42,EDUC VISITS/HOLS/CAMPS/TOYS,SPORTING GOODS STORES
16/12/2017,BURBANK COMMUNITY HOME,SAINSBURYS 0802,4.40,REFRESHMENT COSTS,"GROCERY STORES, SUPERMARKETS"
16/12/2017,FAIRCROFT COMMUNITY HOME,CHIQUITO 2010,20.80,REFRESHMENT COSTS,"EATING PLACES, RESTAURANTS"
16/12/2017,FAIRCROFT COMMUNITY HOME,CHIQUITO 2010,195.97,REFRESHMENT COSTS,"EATING PLACES, RESTAURANTS"
16/12/2017,FAIRCROFT COMMUNITY HOME,Q PARK CHINATOWN,40.00,MISCELLANEOUS STAFF TRAVEL,AUTOMOBILE PARKING LOTS AND GARAGES
16/12/2017,CHEYNE WALK COMMUNITY HOME,AMAZON UK PRIME AMZN.C,7.99,EDUC VISITS/HOLS/CAMPS/TOYS,DIRECT MARKETING-CONTINUITY/SUBSCRIPTION MERCHANTS
16/12/2017,BURBANK COMMUNITY HOME,3C_ WOKING BOROUGH COU,2.80,MISCELLANEOUS STAFF TRAVEL,AUTOMOBILE PARKING LOTS AND GARAGES
16/12/2017,SERVICE DELIVERY RESOURCES,AMAZON SVCS EU-UK AMAZ,100.97,STATIONERY,BOOK STORES
16/12/2017,LIBERTAS COMMUNITY HOME,ROBERT DYAS HOLDNG LTD,9.76,CLEANING MATERIALS,HARDWARE STORES
16/12/2017,LIBERTAS COMMUNITY HOME,LAKELAND LIMITED,45.04,EQUIPMENT,ACCESSORY AND APPAREL STORES-MISCELLANEOUS
16/12/2017,LIBERTAS COMMUNITY HOME,EE LIMITED R483,39.99,TELECOMMUNICATION CHARGES,TELECOMMUNICATION EQUIPMENT INCL TELEPHONE SALES
16/12/2017,HOLLAND CLOSE RESIDENTIAL HOME,TESCO-STORES 6647,166.10,PURCHASE OF FOOD (RAW MATERIALS),"GROCERY STORES, SUPERMARKETS"
16/12/2017,EXTENDED HOPE,ODEON/BOOKIT,43.50,EDUC VISITS/HOLS/CAMPS/TOYS,MOTION PICTURE THEATERS
16/12/2017,CAMHS OTHER,ODEON/BOOKIT,43.50,EDUC VISITS/HOLS/CAMPS/TOYS,MOTION PICTURE THEATERS
16/12/2017,HILLSIDE,SAINSBURYS TO YOU 0675,16.30,PURCHASE OF FOOD (RAW MATERIALS),"GROCERY STORES, SUPERMARKETS"
16/12/2017,HILLSIDE,SAINSBURYS TO YOU 0675,213.58,PURCHASE OF FOOD (RAW MATERIALS),"GROCERY STORES, SUPERMARKETS"
17/12/2017,EXTENDED HOPE,WWW.ARGOS.CO.UK,29.13,EQUIPMENT,DISCOUNT STORES
17/12/2017,EXTENDED HOPE,AMAZON EU AMAZON.CO.UK,47.14,PURCHASE OF FOOD (RAW MATERIALS),MISCELLANEOUS AND SPECIALTY RETAIL STORES
17/12/2017,ARUNDEL,ASDA SUPERSTORE,30.00,CLEANING MATERIALS,"GROCERY STORES, SUPERMARKETS"
17/12/2017,CORE ACTIVITY                           ,MAILCHIMP    MONTHLY,22.78,COMPUTER SOFTWARE,DIRECT MARKETING-CONTINUITY/SUBSCRIPTION MERCHANTS
17/12/2017,KARIBU COMMUNITY HOME,AMAZON UK MARKETPLACE,3.99,EDUC VISITS/HOLS/CAMPS/TOYS,BOOK STORES
17/12/2017,CHEYNE WALK COMMUNITY HOME,AMAZON SVCS EU-UK AMAZ,66.99,EQUIPMENT,BOOK STORES
17/12/2017,EXTENDED HOPE,ODEON,3.39,REFRESHMENT COSTS,MOTION PICTURE THEATERS
17/12/2017,WOODLANDS COMMUNITY HOME,SAINSBURYS TO YOU 0686,4.00,PURCHASE OF FOOD (RAW MATERIALS),"GROCERY STORES, SUPERMARKETS"
17/12/2017,WOODLANDS COMMUNITY HOME,SAINSBURYS TO YOU 0686,56.90,PURCHASE OF FOOD (RAW MATERIALS),"GROCERY STORES, SUPERMARKETS"
17/12/2017,FAIRCROFT COMMUNITY HOME,DEEP BLUE,53.20,REFRESHMENT COSTS,"EATING PLACES, RESTAURANTS"
17/12/2017,FAIRCROFT COMMUNITY HOME,DOMINOS,5.99,REFRESHMENT COSTS,FAST FOOD RESTAURANTS
17/12/2017,COVEHAM,SAINSBURYS 0687,18.12,REFRESHMENT COSTS,"GROCERY STORES, SUPERMARKETS"
17/12/2017,BURBANK COMMUNITY HOME,WWW.GEAR4MUSIC.COM,105.98,EDUC VISITS/HOLS/CAMPS/TOYS,"MUSIC STORES-INSTRUMENTS, PIANOS, SHEET MUSIC"
17/12/2017,RUTH HOUSE,AMAZON UK MARKETPLACE,23.97,EQUIPMENT,BOOK STORES
17/12/2017,RUTH HOUSE,AMAZON UK MARKETPLACE,35.99,EDUC VISITS/HOLS/CAMPS/TOYS,BOOK STORES
17/12/2017,CHEYNE WALK COMMUNITY HOME,TESCO STORE 2560,42.80,PURCHASE OF FOOD (RAW MATERIALS),"GROCERY STORES, SUPERMARKETS"
17/12/2017,EXTENDED HOPE,AMAZON EU,13.45,EQUIPMENT,DIRECT MARKETING-OTHER DIRECT MARKETERS/NOT ELSEW.
17/12/2017,EXTENDED HOPE,SUBWAY,9.99,REFRESHMENT COSTS,"EATING PLACES, RESTAURANTS"
17/12/2017,EXTENDED HOPE,TESCO STORE 2590,4.07,PURCHASE OF FOOD (RAW MATERIALS),"GROCERY STORES, SUPERMARKETS"
17/12/2017,EXTENDED HOPE,TESCO STORE 2590,89.96,PURCHASE OF FOOD (RAW MATERIALS),"GROCERY STORES, SUPERMARKETS"
17/12/2017,EXTENDED HOPE,TESCO-STORES 2590,2.20,PURCHASE OF FOOD (RAW MATERIALS),"GROCERY STORES, SUPERMARKETS"
17/12/2017,EXTENDED HOPE,TESCO-STORES 2590,6.48,PURCHASE OF FOOD (RAW MATERIALS),"GROCERY STORES, SUPERMARKETS"
17/12/2017,EXTENDED HOPE,ODEON,6.60,REFRESHMENT COSTS,MOTION PICTURE THEATERS
17/12/2017,EXTENDED HOPE,ODEON,4.45,REFRESHMENT COSTS,MOTION PICTURE THEATERS
17/12/2017,SW EDUCATION PSYCHOLOGISTS,AMAZON EU AMAZON.CO.UK,45.00,SPECIALIST EDUCATIONAL STATIONERY,MISCELLANEOUS AND SPECIALTY RETAIL STORES
17/12/2017,ARUNDEL,AMAZON PRIME,7.99,EDUC VISITS/HOLS/CAMPS/TOYS,DIRECT MARKETING-CONTINUITY/SUBSCRIPTION MERCHANTS
17/12/2017,CORPORATE GROUP - LEGAL SERVICES,AMAZON EU AMAZON.CO.UK,51.78,LIBRARY RESOURCES,MISCELLANEOUS AND SPECIALTY RETAIL STORES
18/12/2017,NW CARE - CP & COURT LAC,MOTHERCARE DIRECT-E-CO,74.99,OTHER COMMUNITY CARE VOL,DEPARTMENT STORES
18/12/2017,CHEYNE WALK COMMUNITY HOME,WWW.JOHNLEWIS.COM,175.00,EQUIPMENT,DEPARTMENT STORES
18/12/2017,COUNTY HALL,TVLICENSING.CO.UK,147.00,SUBSCRIPTIONS,"CONSULTING, MANAGEMENT, AND PUBLIC RELATIONS SVCS"
18/12/2017,YSS YOUTH CENTRE IMPROVEMENTS,TVLICENSING.CO.UK,147.00,FEES,"CONSULTING, MANAGEMENT, AND PUBLIC RELATIONS SVCS"
18/12/2017,YSS YOUTH CENTRE IMPROVEMENTS,TVLICENSING.CO.UK,147.00,FEES,"CONSULTING, MANAGEMENT, AND PUBLIC RELATIONS SVCS"
18/12/2017,TARGETED INTERVENTION,MARSDEN NURSERIES LTD,12.65,EDUC VISITS/HOLS/CAMPS/TOYS,LAWN AND GARDEN SUPPLY STORES
18/12/2017,TARGETED INTERVENTION,PRIMARK,5.10,EXAMINATION FEES,FAMILY CLOTHING STORES
18/12/2017,SPELTHORNE CMHRS CARE,PREMIER INN,215.98,FEES,PREMIER INN
18/12/2017,LOCAL ASSISTANCE SCHEME,WWW.JOHNLEWIS.COM,149.00,FURNITURE,DEPARTMENT STORES
18/12/2017,TARGETED INTERVENTION,HARRIS AND HOOLE  GUIL,3.25,EDUC VISITS/HOLS/CAMPS/TOYS,"EATING PLACES, RESTAURANTS"
18/12/2017,WOODLANDS COMMUNITY HOME,AMAZON SVCS EU-UK AMAZ,6.99,EDUC VISITS/HOLS/CAMPS/TOYS,BOOK STORES
18/12/2017,FAIRCROFT COMMUNITY HOME,TFS STORES LTD - CRAWL,46.50,3RD PARTY PAYMENTS PRIVATE INDIV,COSMETIC STORES
18/12/2017,EXTENDED HOPE,TESCO STORE 2590,18.55,PURCHASE OF FOOD (RAW MATERIALS),"GROCERY STORES, SUPERMARKETS"
18/12/2017,EXTENDED HOPE,TESCO STORE 2590,63.09,PURCHASE OF FOOD (RAW MATERIALS),"GROCERY STORES, SUPERMARKETS"
18/12/2017,EXTENDED HOPE,TESCO STORE 2590,-74.13,PURCHASE OF FOOD (RAW MATERIALS),"GROCERY STORES, SUPERMARKETS"
18/12/2017,EXTENDED HOPE,TESCO STORE 2590,-12.90,PURCHASE OF FOOD (RAW MATERIALS),"GROCERY STORES, SUPERMARKETS"
18/12/2017,WORKPLACE COMMERCIAL TEAM,IMMEDIATE MEDIA CO,900.00,PUBLICITY,"BOOKS,PERIODICALS AND NEWSPAPERS"
18/12/2017,FAIRCROFT COMMUNITY HOME,TESCO STORE 2812,175.43,PURCHASE OF FOOD (RAW MATERIALS),"GROCERY STORES, SUPERMARKETS"
18/12/2017,WOODLANDS COMMUNITY HOME,SAINSBURYS SACAT 0391,34.55,PURCHASE OF FOOD (RAW MATERIALS),"GROCERY STORES, SUPERMARKETS"
18/12/2017,ESTATES DELIVERY MANAGER,RICS SUBS UK CYBS,286.00,SUBSCRIPTIONS,"ORGANIZATIONS, MEMBERSHIP-NOT ELSEWHERE CLASSIFIED"
18/12/2017,TS SERVICE MANAGEMENT,WWW.APEA.ORG.UK,50.00,SUBSCRIPTIONS,CHEMICALS/ALLIED PRODUCTS NOT ELSEWHERE CLASSIFIED
18/12/2017,GUILDFORD LIBRARY,BANNER GROUP LTD,11.81,EQUIPMENT,"OFFICE, SCHOOL SUPPLY, AND STATIONERY STORES"
18/12/2017,SECTOR MANAGER,AMZ POS DISPLAY SHOP,-59.90,EQUIPMENT,MISCELLANEOUS AND SPECIALTY RETAIL STORES
18/12/2017,HOLLAND CLOSE RESIDENTIAL HOME,AMAZON UK MARKETPLACE,2.68,EDUC VISITS/HOLS/CAMPS/TOYS,BOOK STORES
18/12/2017,HOLLAND CLOSE RESIDENTIAL HOME,AMAZON UK MARKETPLACE,6.38,EDUC VISITS/HOLS/CAMPS/TOYS,BOOK STORES
18/12/2017,ACL CENTRAL EXPENDITURE,AMAZON UK MARKETPLACE,14.48,EQUIPMENT,BOOK STORES
18/12/2017,TANDRIDGE LOCALITY TEAM,AMAZON EU AMAZON.CO.UK,37.50,EQUIPMENT,MISCELLANEOUS AND SPECIALTY RETAIL STORES
18/12/2017,WOODLANDS COMMUNITY HOME,SAINSBURYS 0686,53.90,PURCHASE OF FOOD (RAW MATERIALS),"GROCERY STORES, SUPERMARKETS"
18/12/2017,LIBERTAS COMMUNITY HOME,RED PEPPERS,58.10,3RD PARTY PAYMENTS PRIVATE INDIV,"EATING PLACES, RESTAURANTS"
18/12/2017,LIBERTAS COMMUNITY HOME,H SAMUEL,39.99,3RD PARTY PAYMENTS PRIVATE INDIV,"CLOCK, JEWELRY, WATCH, AND SILVERWARE STORE"
18/12/2017,FAMILIES WAVERLEY,SAINSBURYS SACAT 0670,31.05,PURCHASE OF FOOD (RAW MATERIALS),"GROCERY STORES, SUPERMARKETS"
18/12/2017,FAMILIES TANDRIDGE,WAITROSE 838,2.45,REFRESHMENT COSTS,"GROCERY STORES, SUPERMARKETS"
18/12/2017,FAMILIES TANDRIDGE,WAITROSE 838,6.75,REFRESHMENT COSTS,"GROCERY STORES, SUPERMARKETS"
18/12/2017,FAMILIES TANDRIDGE,WAITROSE 838,4.99,PURCHASE OF FOOD (RAW MATERIALS),"GROCERY STORES, SUPERMARKETS"
18/12/2017,CORPORATE GROUP - LEGAL SERVICES,AMAZON UK MARKETPLACE,46.45,STATIONERY,BOOK STORES
18/12/2017,TARGETED INTERVENTION,TESCO STORE 2047,6.49,EDUC VISITS/HOLS/CAMPS/TOYS,"GROCERY STORES, SUPERMARKETS"
18/12/2017,TARGETED INTERVENTION,WILKO RETAIL LIMIT,4.50,EXAMINATION FEES,HOUSEHOLD APPLIANCE STORES
18/12/2017,TARGETED INTERVENTION,SURREY HEATH BOROUGH C,1.80,MISCELLANEOUS STAFF TRAVEL,GOVERNMENT SERVICES-NOT ELSEWHERE CLASSIFIED
18/12/2017,TARGETED INTERVENTION,WAITROSE 216,7.09,EDUC VISITS/HOLS/CAMPS/TOYS,"GROCERY STORES, SUPERMARKETS"
18/12/2017,TARGETED INTERVENTION,KNIGHTS,5.20,EDUC VISITS/HOLS/CAMPS/TOYS,LAWN AND GARDEN SUPPLY STORES
18/12/2017,WOODLANDS COMMUNITY HOME,SAINSBURYS 0686,55.18,PURCHASE OF FOOD (RAW MATERIALS),"GROCERY STORES, SUPERMARKETS"
18/12/2017,WOODLANDS COMMUNITY HOME,LONGACRES GARDEN CENTR,40.95,EQUIPMENT,LAWN AND GARDEN SUPPLY STORES
18/12/2017,HOPE SERVICE - WEST,SAINSBURYS SACAT 0683,110.71,PURCHASE OF FOOD (RAW MATERIALS),"GROCERY STORES, SUPERMARKETS"
18/12/2017,RESOURCES FUND,ACTIVTOSHAR,139.96,LIBRARY RESOURCES,DENTAL/LAB/MED/OPHTHALMIC HOSP EQUIP & SUPPLIES
18/12/2017,TRANSPORT,REIGATE GARDEN CEN,453.88,FURNITURE,LAWN AND GARDEN SUPPLY STORES
18/12/2017,HOPE SERVICE - WEST,TESCO STORE 2590,8.00,CURRICULUM CONSUMABLES,"GROCERY STORES, SUPERMARKETS"
18/12/2017,MAINTENANCE SURVEYING TEAM,RICS,334.80,TRAINING EXPENSES EXTERNAL GENERAL,"ORGANIZATIONS, MEMBERSHIP-NOT ELSEWHERE CLASSIFIED"
18/12/2017,MAINTENANCE SURVEYING TEAM,PAYPAL  CPDESSENTIA,138.00,TRAINING EXPENSES EXTERNAL GENERAL,SCHOOLS & EDUCATIONAL SVC-NOT ELSEWHERE CLASSIFIED
18/12/2017,ACL CENTRAL EXPENDITURE,WWW.OFFICEFURNITUREONL,350.40,EQUIPMENT,"EQUIP, FURNITURE, HOME FURNSHNGS STRS (EXCPT APPL)"
18/12/2017,ACL CENTRAL EXPENDITURE,AMAZON EU AMAZON.CO.UK,42.99,EQUIPMENT,MISCELLANEOUS AND SPECIALTY RETAIL STORES
18/12/2017,MALLOW CRESCENT,TESCO STORE 2590,40.03,PURCHASE OF FOOD (RAW MATERIALS),"GROCERY STORES, SUPERMARKETS"
18/12/2017,MALLOW CRESCENT,TESCO STORE 2590,160.53,PURCHASE OF FOOD (RAW MATERIALS),"GROCERY STORES, SUPERMARKETS"
18/12/2017,ORBIS PROCUREMENT TRAINING,WWW.CIPS.ORG,187.68,EXAMINATION FEES,"ORGANIZATIONS, MEMBERSHIP-NOT ELSEWHERE CLASSIFIED"
18/12/2017,MALLOW CRESCENT,SAINSBURYS TO YOU 0652,27.00,PURCHASE OF FOOD (RAW MATERIALS),"GROCERY STORES, SUPERMARKETS"
18/12/2017,MALLOW CRESCENT,SAINSBURYS TO YOU 0652,129.23,PURCHASE OF FOOD (RAW MATERIALS),"GROCERY STORES, SUPERMARKETS"
18/12/2017,MALLOW CRESCENT,BLUE BADGE PYMENT MOTO,10.00,EQUIPMENT,GOVERNMENT SERVICES-NOT ELSEWHERE CLASSIFIED
18/12/2017,COMLIANCE TEAM,WWW.ELMHURSTENERGY.CO.,"2,602.00",TRAINING EXPENSES EXTERNAL GENERAL,"SCHOOLS, BUSINESS AND SECRETARIAL"
18/12/2017,MAINTENANCE SURVEYING TEAM,WWW.LABC.UK.COM,180.00,TRAINING EXPENSES EXTERNAL GENERAL,BUSINESS SERVICES-NOT ELSEWHERE CLASSIFIED
18/12/2017,2 ST JAMES AVENUE FARNHAM,CURRYS ONLINE,135.00,EQUIPMENT,ELECTRONIC SALES
18/12/2017,4 ST JAMES AVENUE FARNHAM,CURRYS ONLINE,135.00,EQUIPMENT,ELECTRONIC SALES
18/12/2017,ARUNDEL,ASDA SUPERSTORE,38.00,EQUIPMENT,"GROCERY STORES, SUPERMARKETS"
18/12/2017,THAMESIDE CENTRE,AMAZON SVCS EU-UK AMAZ,2.95,EQUIPMENT,BOOK STORES
18/12/2017,MALLOW CRESCENT,TESCO STORE 2590,72.87,PURCHASE OF FOOD (RAW MATERIALS),"GROCERY STORES, SUPERMARKETS"
18/12/2017,LIBERTAS COMMUNITY HOME,SAINSBURYS 0670,39.00,POSTAGE AND COURIER CHARGES,"GROCERY STORES, SUPERMARKETS"
18/12/2017,LIBERTAS COMMUNITY HOME,COOK TRADING LTD,214.90,PURCHASE OF FOOD (RAW MATERIALS),"MISC FOOD STORE-CONVENIENCE,MRKT,SPLTY,VENDNG MACS"
18/12/2017,TRAINING AND DEVELOPMENT,THE HEIGHTEC GROUP,694.80,TRAINING EXPENSES EXTERNAL GENERAL,SCHOOLS & EDUCATIONAL SVC-NOT ELSEWHERE CLASSIFIED
18/12/2017,CHEYNE WALK COMMUNITY HOME,AMAZON EU,12.99,EQUIPMENT,DIRECT MARKETING-OTHER DIRECT MARKETERS/NOT ELSEW.
18/12/2017,CHEYNE WALK COMMUNITY HOME,AMAZON EU,21.99,EQUIPMENT,DIRECT MARKETING-OTHER DIRECT MARKETERS/NOT ELSEW.
18/12/2017,CHEYNE WALK COMMUNITY HOME,AMAZON EU,21.99,EQUIPMENT,DIRECT MARKETING-OTHER DIRECT MARKETERS/NOT ELSEW.
18/12/2017,CHEYNE WALK COMMUNITY HOME,AMAZON EU,12.99,EQUIPMENT,DIRECT MARKETING-OTHER DIRECT MARKETERS/NOT ELSEW.
18/12/2017,FAMILIES GUILDFORD,CO-OP GROUP FOOD,5.53,PURCHASE OF FOOD (RAW MATERIALS),"GROCERY STORES, SUPERMARKETS"
18/12/2017,TS SERVICE MANAGEMENT,WWW.APEA.ORG.UK,50.00,SUBSCRIPTIONS,CHEMICALS/ALLIED PRODUCTS NOT ELSEWHERE CLASSIFIED
18/12/2017,WOODLANDS COMMUNITY HOME,YE OLDE FISHMARKET,26.70,PURCHASE OF FOOD (RAW MATERIALS),FAST FOOD RESTAURANTS
18/12/2017,WOODLANDS COMMUNITY HOME,AMBASSADOR THEATRE GRO,75.50,EDUC VISITS/HOLS/CAMPS/TOYS,"THEATRICAL PRODUCERS(EXCL MOTION PIX),TICKET AGNCY"
18/12/2017,WOODLANDS COMMUNITY HOME,ATG TICKETS,75.00,EDUC VISITS/HOLS/CAMPS/TOYS,"THEATRICAL PRODUCERS(EXCL MOTION PIX),TICKET AGNCY"
18/12/2017,HILLSIDE,LIDL UK,18.48,PURCHASE OF FOOD (RAW MATERIALS),"GROCERY STORES, SUPERMARKETS"
18/12/2017,ACL CENTRAL EXPENDITURE,AMAZON EU,42.99,EQUIPMENT,DIRECT MARKETING-OTHER DIRECT MARKETERS/NOT ELSEW.
18/12/2017,TARGETED INTERVENTION,JD SPORTS PLC,16.00,EXAMINATION FEES,SPORTING GOODS STORES
18/12/2017,LIBERTAS COMMUNITY HOME,SAINSBURYS SACAT 0652,7.42,EQUIPMENT,"GROCERY STORES, SUPERMARKETS"
18/12/2017,LIBERTAS COMMUNITY HOME,SAINSBURYS SACAT 0652,14.95,PURCHASE OF FOOD (RAW MATERIALS),"GROCERY STORES, SUPERMARKETS"
18/12/2017,LIBERTAS COMMUNITY HOME,SAINSBURYS SACAT 0652,163.15,PURCHASE OF FOOD (RAW MATERIALS),"GROCERY STORES, SUPERMARKETS"
18/12/2017,LIBERTAS COMMUNITY HOME,SAINSBURYS 0652,6.80,PURCHASE OF FOOD (RAW MATERIALS),"GROCERY STORES, SUPERMARKETS"
18/12/2017,COMMUNICATIONS TEAM,ITUNES.COM/BILL,3.99,SUBSCRIPTIONS,RECORD SHOPS
18/12/2017,COMMUNICATIONS TEAM,GUARDIAN NEWS  MEDIA,51.96,SUBSCRIPTIONS,"BOOKS,PERIODICALS AND NEWSPAPERS"
18/12/2017,MALLOW CRESCENT,SAINSBURYS TO YOU 0652,11.40,PURCHASE OF FOOD (RAW MATERIALS),"GROCERY STORES, SUPERMARKETS"
18/12/2017,MALLOW CRESCENT,SAINSBURYS TO YOU 0652,121.90,PURCHASE OF FOOD (RAW MATERIALS),"GROCERY STORES, SUPERMARKETS"
18/12/2017,COVEHAM,SAINSBURYS TO YOU 0687,140.76,REFRESHMENT COSTS,"GROCERY STORES, SUPERMARKETS"
18/12/2017,CHEYNE WALK COMMUNITY HOME,CURRY INN,79.70,PURCHASE OF FOOD (RAW MATERIALS),"EATING PLACES, RESTAURANTS"
18/12/2017,CHEYNE WALK COMMUNITY HOME,TESCO STORES 2560,17.67,PURCHASE OF FOOD (RAW MATERIALS),"GROCERY STORES, SUPERMARKETS"
19/12/2017,LIBERTAS COMMUNITY HOME,OCADO RETAIL LIMIT,203.61,PURCHASE OF FOOD (RAW MATERIALS),"GROCERY STORES, SUPERMARKETS"
19/12/2017,LIBERTAS COMMUNITY HOME,BP MERROW CONVENIENCE,41.18,PURCHASE OF FOOD (RAW MATERIALS),SERVICE STATIONS WITH OR WITHOUT ANCILLARY SERVICE
19/12/2017,LOCAL ASSISTANCE SCHEME,WWW.JOHNLEWIS.COM,414.00,FURNITURE,DEPARTMENT STORES
19/12/2017,HILLSIDE,ARGOS RETAIL GROUP,59.96,PURCHASE OF FOOD (RAW MATERIALS),DISCOUNT STORES
19/12/2017,SURREY WASTE PARTNERSHIP,AMAZON SVCS EU-UK AMAZ,27.30,EQUIPMENT,BOOK STORES
19/12/2017,RUTH HOUSE,AMAZON EU AMAZON.CO.UK,34.98,EDUC VISITS/HOLS/CAMPS/TOYS,MISCELLANEOUS AND SPECIALTY RETAIL STORES
19/12/2017,RUTH HOUSE,ALDI 80 776,115.77,PURCHASE OF FOOD (RAW MATERIALS),"GROCERY STORES, SUPERMARKETS"
19/12/2017,HILLSIDE,MARKS&SPENCER PLC,25.25,"CLOTHING, UNIFORM AND LAUNDRY","GROCERY STORES, SUPERMARKETS"
19/12/2017,CHEYNE WALK COMMUNITY HOME,MENKIND LTD - CRAWLEY,11.99,EQUIPMENT,"GIFT, CARD, NOVELTY AND SOUVENIR SHOPS"
19/12/2017,CHEYNE WALK COMMUNITY HOME,COUNTY MALL CAR PARK,2.50,NON-STAFF RELATED TRANSPORT COSTS,AUTOMOBILE PARKING LOTS AND GARAGES
19/12/2017,COVEHAM,ROBERT DYAS HOLDNG LTD,24.99,EQUIPMENT,HARDWARE STORES
19/12/2017,HOPE SERVICE - WEST,ROBERT DYAS HOLDNG LTD,1.79,E25 CATERING EQUIPMENT,HARDWARE STORES
19/12/2017,DOWNLANDS COUNTRYSIDE PROJECT,TESCO STORES,113.62,REFRESHMENT COSTS,"GROCERY STORES, SUPERMARKETS"
19/12/2017,COUNTY HALL,WWW.VIKING-DIRECT.CO.U,20.57,STATIONERY,STATIONERY/OFFICE SUPPLIES/PRINTING & WRITING PAP.
19/12/2017,RUTH HOUSE,AMAZON UK MARKETPLACE,35.14,EDUC VISITS/HOLS/CAMPS/TOYS,BOOK STORES
19/12/2017,RUTH HOUSE,SAINSBURYS TO YOU 0686,46.10,PURCHASE OF FOOD (RAW MATERIALS),"GROCERY STORES, SUPERMARKETS"
19/12/2017,RUTH HOUSE,SAINSBURYS TO YOU 0686,261.75,PURCHASE OF FOOD (RAW MATERIALS),"GROCERY STORES, SUPERMARKETS"
19/12/2017,RUTH HOUSE,SAINSBURYS 0652,38.00,"CLOTHING, UNIFORM AND LAUNDRY","GROCERY STORES, SUPERMARKETS"
19/12/2017,RUTH HOUSE,SAINSBURYS 0652,8.05,PURCHASE OF FOOD (RAW MATERIALS),"GROCERY STORES, SUPERMARKETS"
19/12/2017,RUTH HOUSE,SAINSBURYS 0652,15.60,PURCHASE OF FOOD (RAW MATERIALS),"GROCERY STORES, SUPERMARKETS"
19/12/2017,RUTH HOUSE,SAINSBURYS 0652,21.05,"CLOTHING, UNIFORM AND LAUNDRY","GROCERY STORES, SUPERMARKETS"
19/12/2017,NW CP & COURT TEAM,HOTEL ON BOOKING.COM,69.00,OTHER COMMUNITY CARE VOL,"LODGING-HOTELS,MOTELS,RESORTS-NOT CLASSIFIED"
19/12/2017,HILLSIDE,ROBERT DYAS HOLDNG LTD,20.99,EQUIPMENT,HARDWARE STORES
19/12/2017,FAIRCROFT COMMUNITY HOME,TESCO STORE 2812,71.80,PURCHASE OF FOOD (RAW MATERIALS),"GROCERY STORES, SUPERMARKETS"
19/12/2017,FIRE & RESCUE COMMUNITY SAFETY,WEBCOM/ENABLE,28.80,PUBLICITY,COMPUTER MAIN./REPAIR/SERVICES NOT ELSEWHERE CLASS
19/12/2017,PROJECTS AND CONTRACTS GROUP,AMAZON UK MARKETPLACE,5.99,EQUIPMENT,BOOK STORES
19/12/2017,WOODLANDS COMMUNITY HOME,SAINSBURYS 0686,25.00,EQUIPMENT,"GROCERY STORES, SUPERMARKETS"
19/12/2017,WOODLANDS COMMUNITY HOME,SAINSBURYS 0686,6.00,PURCHASE OF FOOD (RAW MATERIALS),"GROCERY STORES, SUPERMARKETS"
19/12/2017,PROPERTY OPERATIONS TEAM,SELCO BUILDERS,5.74,PURCHASE OF BUILDING MATERIALS,"BUILDING MATERIALS, LUMBER STORES"
19/12/2017,WOODLANDS COMMUNITY HOME,SAINSBURYS SACAT 0686,6.10,PURCHASE OF FOOD (RAW MATERIALS),"GROCERY STORES, SUPERMARKETS"
19/12/2017,LIBERTAS COMMUNITY HOME,POST OFFICE COUNTER,47.45,POSTAGE AND COURIER CHARGES,POSTAL SERVICES-GOVERNMENT ONLY
19/12/2017,DOWNLANDS COUNTRYSIDE PROJECT,ESSO MRH TOWNEND,23.16,FEES,SERVICE STATIONS WITH OR WITHOUT ANCILLARY SERVICE
19/12/2017,ROW AREA1 GFD SYH RNY SPL               ,SCREWFIX DIRECT,118.93,EQUIPMENT,"BUILDING MATERIALS, LUMBER STORES"
19/12/2017,BURBANK COMMUNITY HOME,COSTA COFFEE,6.25,REFRESHMENT COSTS,FAST FOOD RESTAURANTS
19/12/2017,BURBANK COMMUNITY HOME,3C_ WOKING BOROUGH COU,1.40,MISCELLANEOUS STAFF TRAVEL,AUTOMOBILE PARKING LOTS AND GARAGES
19/12/2017,BURBANK COMMUNITY HOME,WILKO WOKING,14.40,EQUIPMENT,HOUSEHOLD APPLIANCE STORES
19/12/2017,HILLSIDE,TESCO STORES 3149,10.62,"CLOTHING, UNIFORM AND LAUNDRY","GROCERY STORES, SUPERMARKETS"
19/12/2017,HILLSIDE,SAINSBURYS 0675,17.50,EQUIPMENT,"GROCERY STORES, SUPERMARKETS"
19/12/2017,HILLSIDE,SAINSBURYS 0675,5.65,PURCHASE OF FOOD (RAW MATERIALS),"GROCERY STORES, SUPERMARKETS"
19/12/2017,HILLSIDE,SAINSBURYS 0675,85.64,PURCHASE OF FOOD (RAW MATERIALS),"GROCERY STORES, SUPERMARKETS"
19/12/2017,CHEYNE WALK COMMUNITY HOME,SAINSBURYS 0026,178.25,PURCHASE OF FOOD (RAW MATERIALS),"GROCERY STORES, SUPERMARKETS"
19/12/2017,LIBERTAS COMMUNITY HOME,POST OFFICE COUNTER,79.10,3RD PARTY PAYMENTS PRIVATE INDIV,POSTAL SERVICES-GOVERNMENT ONLY
19/12/2017,FAMILIES TANDRIDGE,WM MORRISONS,64.29,PURCHASE OF FOOD (RAW MATERIALS),"GROCERY STORES, SUPERMARKETS"
19/12/2017,TARGETED INTERVENTION,FRANKIE & BENNYS 5499,90.00,EDUC VISITS/HOLS/CAMPS/TOYS,"EATING PLACES, RESTAURANTS"
19/12/2017,TARGETED INTERVENTION,TESCO STORES-2047,16.62,EDUC VISITS/HOLS/CAMPS/TOYS,"GROCERY STORES, SUPERMARKETS"
19/12/2017,TARGETED INTERVENTION,STARBUCKS,6.48,EDUC VISITS/HOLS/CAMPS/TOYS,"EATING PLACES, RESTAURANTS"
19/12/2017,TARGETED INTERVENTION,TWO RIVERS CAR PK,2.20,EDUC VISITS/HOLS/CAMPS/TOYS,AUTOMOBILE PARKING LOTS AND GARAGES
19/12/2017,PRISON CAPITATION                       ,AMAZON UK MARKETPLACE,7.89,LIBRARY RESOURCES,BOOK STORES
19/12/2017,PRISON CAPITATION                       ,AMAZON UK MARKETPLACE,79.92,LIBRARY RESOURCES,BOOK STORES
19/12/2017,RESOURCES FUND,ROMPA LTD,571.68,LIBRARY RESOURCES,MISCELLANEOUS AND SPECIALTY RETAIL STORES
19/12/2017,ACCESS PROGRAMMES,KENDALL CARS GUILDFORD,50.00,HIRE OF VEHICLES,AUTOMOBILE RENTAL AGENCY-NOT ELSEWHERE CLASSIFIED
19/12/2017,COMMUNITY ARTS,CAMBERLEY THEATRE,17.00,EDUC VISITS/HOLS/CAMPS/TOYS,MOTION PICTURE THEATERS
19/12/2017,ACL CENTRAL EXPENDITURE,AMAZON UK MARKETPLACE,142.70,EQUIPMENT,BOOK STORES
19/12/2017,BURBANK COMMUNITY HOME,SAINSBURYS SACAT 0686,6.00,PURCHASE OF FOOD (RAW MATERIALS),"GROCERY STORES, SUPERMARKETS"
19/12/2017,BURBANK COMMUNITY HOME,SAINSBURYS SACAT 0686,5.70,PURCHASE OF FOOD (RAW MATERIALS),"GROCERY STORES, SUPERMARKETS"
19/12/2017,BURBANK COMMUNITY HOME,WWW.CITIESONICE.CO.UK,85.00,EDUC VISITS/HOLS/CAMPS/TOYS,"CLUBS-CNTRY,MBRSHIP(ATHLET,REC,SPRTS,PRIVATE GOLF"
19/12/2017,BURBANK COMMUNITY HOME,CAR PARKS SPH,3.50,MISCELLANEOUS STAFF TRAVEL,GOVERNMENT SERVICES-NOT ELSEWHERE CLASSIFIED
19/12/2017,SERVICE DELIVERY RESOURCES,REIGATE GARDEN CEN,18.99,OPERATIONAL FIRE EQUIPMENT,LAWN AND GARDEN SUPPLY STORES
19/12/2017,CONSORT HOUSE REDHILL,SCREWFIX DIRECT,39.98,EQUIPMENT,"BUILDING MATERIALS, LUMBER STORES"
19/12/2017,COVEHAM,FARRANTS,7.96,STATIONERY,STATIONERY/OFFICE SUPPLIES/PRINTING & WRITING PAP.
19/12/2017,TS SERVICE MANAGEMENT,AMAZON UK MARKETPLACE,21.96,EQUIPMENT,BOOK STORES
19/12/2017,TS SERVICE MANAGEMENT,AMAZON EU,74.89,EQUIPMENT,DIRECT MARKETING-OTHER DIRECT MARKETERS/NOT ELSEW.
19/12/2017,BUSINESS OPERATIONS TRAINING,WWW.PMGLTD.CO.UK,474.00,TRAINING USING EXTERNAL PROVIDERS,BUSINESS SERVICES-NOT ELSEWHERE CLASSIFIED
19/12/2017,MH SUPPORT TIME & RECOVERY WORKERS EAST,WWW.ARGOS.CO.UK,182.94,EQUIPMENT,DISCOUNT STORES
19/12/2017,MH SUPPORT TIME & RECOVERY WORKERS EAST,WWW.ARGOS.CO.UK,99.98,EQUIPMENT,DISCOUNT STORES
19/12/2017,MH SUPPORT TIME & RECOVERY WORKERS EAST,WWW.ARGOS.CO.UK,103.93,EQUIPMENT,DISCOUNT STORES
19/12/2017,MH SUPPORT TIME & RECOVERY WORKERS EAST,WWW.ARGOS.CO.UK,-99.98,EQUIPMENT,DISCOUNT STORES
19/12/2017,HOLLAND CLOSE RESIDENTIAL HOME,SUPERDRUG STORES PLC,32.88,MEDICAL EXPENSES,"DRUG STORES, PHARMACIES"
19/12/2017,LOCAL ASSISTANCE SCHEME,WWW.JOHNLEWIS.COM,47.99,FURNITURE,DEPARTMENT STORES
19/12/2017,TARGETED INTERVENTION,FRANKIE & BENNYS 5499,81.33,EDUC VISITS/HOLS/CAMPS/TOYS,"EATING PLACES, RESTAURANTS"
19/12/2017,NW CARE - NON-LAC CP & COURT,WASTE KING LTD,454.80,OTHER COMMUNITY CARE VOL,EXTERMINATING AND DISINFECTING SERVICES
19/12/2017,TRANSPORT,DAVIS INDUSTRIAL,104.29,VEHICLE REPAIRS AND MAINTENANCE,"DURABLE GOODS, NOT ELSEWHERE CLASSIFIED"
19/12/2017,TARGETED INTERVENTION,FRANKIE & BENNYS 5173,39.65,EDUC VISITS/HOLS/CAMPS/TOYS,"EATING PLACES, RESTAURANTS"
19/12/2017,TARGETED INTERVENTION,TWO RIVERS CAR PK,2.20,EDUC VISITS/HOLS/CAMPS/TOYS,AUTOMOBILE PARKING LOTS AND GARAGES
19/12/2017,LIBERTAS COMMUNITY HOME,SAINSBURYS 0686,10.00,PURCHASE OF FOOD (RAW MATERIALS),"GROCERY STORES, SUPERMARKETS"
19/12/2017,LIBERTAS COMMUNITY HOME,SAINSBURYS 0686,6.25,3RD PARTY PAYMENTS PRIVATE INDIV,"GROCERY STORES, SUPERMARKETS"
19/12/2017,FAMILIES MOLE VALLEY,TESCO STORES 2812,20.65,PURCHASE OF FOOD (RAW MATERIALS),"GROCERY STORES, SUPERMARKETS"
19/12/2017,IMT SUPPORT FOR FIRE & RESCUE,CURRYS,"1,498.00",COMPUTER HARDWARE,ELECTRONIC SALES
19/12/2017,CHEYNE WALK COMMUNITY HOME,REDHILL,182.04,PURCHASE OF FOOD (RAW MATERIALS),"EATING PLACES, RESTAURANTS"
19/12/2017,COVEHAM,TESCO PFS 3727,73.06,PETROL/DIESEL ALL OFF BUSINESS,SERVICE STATIONS WITH OR WITHOUT ANCILLARY SERVICE
19/12/2017,MALLOW CRESCENT,SAINSBURYS TO YOU 0652,34.40,PURCHASE OF FOOD (RAW MATERIALS),"GROCERY STORES, SUPERMARKETS"
19/12/2017,MALLOW CRESCENT,SAINSBURYS TO YOU 0652,68.90,PURCHASE OF FOOD (RAW MATERIALS),"GROCERY STORES, SUPERMARKETS"
19/12/2017,ACL CENTRAL EXPENDITURE,WWW.TOOLSTATION.COM,35.37,EQUIPMENT,HARDWARE STORES
19/12/2017,TARGETED INTERVENTION,BILLS GUILDFORD,84.21,EDUC VISITS/HOLS/CAMPS/TOYS,"EATING PLACES, RESTAURANTS"
19/12/2017,SPEECH & LANGUAGE THERAPY,BOOKDEPOSITORY.COM,47.52,BOOKS,BOOK STORES
19/12/2017,SPEECH & LANGUAGE THERAPY,EB  COLOURFUL SEMANTIC,105.73,TRAINING EXPENSES EXTERNAL GENERAL,BUSINESS SERVICES-NOT ELSEWHERE CLASSIFIED
19/12/2017,HOPE SERVICE - WEST,SAINSBURYS 0683,30.35,PURCHASE OF FOOD (RAW MATERIALS),"GROCERY STORES, SUPERMARKETS"
19/12/2017,HOPE SERVICE - WEST,BENS BUTCHERY,47.18,PURCHASE OF FOOD (RAW MATERIALS),"FREEZER, LOCKER MEAT PROVISIONERS"
19/12/2017,SOLD BUSINESS SUPPORT,AMAZON EU,79.99,COMPUTER CONSUMABLES,DIRECT MARKETING-OTHER DIRECT MARKETERS/NOT ELSEW.
19/12/2017,FAIRCROFT COMMUNITY HOME,SAINSBURYS SACAT 0687,8.50,3RD PARTY PAYMENTS PRIVATE INDIV,"GROCERY STORES, SUPERMARKETS"
19/12/2017,FAIRCROFT COMMUNITY HOME,3C_ WOKING BOROUGH COU,2.80,MISCELLANEOUS STAFF TRAVEL,AUTOMOBILE PARKING LOTS AND GARAGES
19/12/2017,FAIRCROFT COMMUNITY HOME,HOME BARGAINS BYFLEET,6.39,EQUIPMENT,HARDWARE STORES
19/12/2017,FAIRCROFT COMMUNITY HOME,TOP SHOP,26.05,3RD PARTY PAYMENTS PRIVATE INDIV,MEN'S AND WOMEN'S CLOTHING STORES
19/12/2017,RUTH HOUSE,SAINSBURYS 0652,14.05,EDUC VISITS/HOLS/CAMPS/TOYS,"GROCERY STORES, SUPERMARKETS"
19/12/2017,RUTH HOUSE,ARGOS RETAIL GROUP,172.44,EDUC VISITS/HOLS/CAMPS/TOYS,DISCOUNT STORES
20/12/2017,SPEECH & LANGUAGE THERAPY,WWW.ROMPALIMITED.COM,149.70,BOOKS,MISCELLANEOUS AND SPECIALTY RETAIL STORES
20/12/2017,BURBANK COMMUNITY HOME,CENTRAL AUTO REPAIR SE,175.22,VEHICLE REPAIRS AND MAINTENANCE,AUTOMOTIVE SERVICE SHOPS
20/12/2017,CHEYNE WALK COMMUNITY HOME,AMAZON EU AMAZON.CO.UK,5.35,LIBRARY RESOURCES,MISCELLANEOUS AND SPECIALTY RETAIL STORES
20/12/2017,SPELTHORNE CMHRS CARE,PREMIER INN,131.99,OTHER COMMUNITY CARE PRIV,PREMIER INN
20/12/2017,KARIBU COMMUNITY HOME,ARGOS RETAIL GROUP,12.99,EDUC VISITS/HOLS/CAMPS/TOYS,DISCOUNT STORES
20/12/2017,LOCAL ASSISTANCE SCHEME,WWW.JOHNLEWIS.COM,149.00,FURNITURE,DEPARTMENT STORES
20/12/2017,TARGETED INTERVENTION,TOP GOLF LTD,12.25,EDUC VISITS/HOLS/CAMPS/TOYS,"CLUBS-CNTRY,MBRSHIP(ATHLET,REC,SPRTS,PRIVATE GOLF"
20/12/2017,COMMUNICATIONS TEAM,ISSUU,22.31,SUBSCRIPTIONS,"COMPUTERS, COMPUTER PERIPHERAL EQUIPMENT, SOFTWARE"
20/12/2017,LOCAL ASSISTANCE SCHEME,WWW.JOHNLEWIS.COM,119.00,FURNITURE,DEPARTMENT STORES
20/12/2017,FAIRCROFT COMMUNITY HOME,PRIMARK,15.00,3RD PARTY PAYMENTS PRIVATE INDIV,FAMILY CLOTHING STORES
20/12/2017,ROW VOLUNTEERS WEST                     ,PANTILES SERVICE STATI,6.50,PETROL/DIESEL ALL OFF BUSINESS,SERVICE STATIONS WITH OR WITHOUT ANCILLARY SERVICE
20/12/2017,BURBANK COMMUNITY HOME,COSTA COFFEE,17.40,REFRESHMENT COSTS,FAST FOOD RESTAURANTS
20/12/2017,BURBANK COMMUNITY HOME,THE BIG APPLE,6.25,REFRESHMENT COSTS,BOWLING ALLEYS
20/12/2017,BURBANK COMMUNITY HOME,CO-OP GROUP FOOD,5.72,PURCHASE OF FOOD (RAW MATERIALS),"GROCERY STORES, SUPERMARKETS"
20/12/2017,OTHER NON CWD HOME COSTS,BEGGARS BARN,"3,090.00",EDUC VISITS/HOLS/CAMPS/TOYS,"LODGING-HOTELS,MOTELS,RESORTS-NOT CLASSIFIED"
20/12/2017,PROPERTY OPERATIONS TEAM,SCREWFIX DIRECT,41.22,PURCHASE OF BUILDING MATERIALS,"BUILDING MATERIALS, LUMBER STORES"
20/12/2017,KARIBU COMMUNITY HOME,WWW.EPSOM-EWELL.GOV.UK,129.70,EDUC VISITS/HOLS/CAMPS/TOYS,GOVERNMENT SERVICES-NOT ELSEWHERE CLASSIFIED
20/12/2017,HILLSIDE,SAINSBURYS SACAT 0784,21.00,PURCHASE OF FOOD (RAW MATERIALS),"GROCERY STORES, SUPERMARKETS"
20/12/2017,CHEYNE WALK COMMUNITY HOME,AMAZON UK MARKETPLACE,10.99,LIBRARY RESOURCES,BOOK STORES
20/12/2017,FAMILIES REIGATE AND BANSTREAD,PIZZA EXPRESS,250.00,REFRESHMENT COSTS,"EATING PLACES, RESTAURANTS"
20/12/2017,SE EDUCATION PSYCHOLOGISTS,ELSA NETWORK,100.00,SUBSCRIPTIONS,COMPUTER SOFTWARE STORES
20/12/2017,ACL CENTRAL EXPENDITURE,WWW.OFFICEFURNITUREONL,350.40,EQUIPMENT,"EQUIP, FURNITURE, HOME FURNSHNGS STRS (EXCPT APPL)"
20/12/2017,ACL CENTRAL EXPENDITURE,ARGOS LTD,9.99,EQUIPMENT,DISCOUNT STORES
20/12/2017,KARIBU COMMUNITY HOME,WWW.ARGOS.CO.UK,327.90,EDUC VISITS/HOLS/CAMPS/TOYS,DISCOUNT STORES
20/12/2017,HERITAGE PUBLIC SERVICE,RECOGN. EXPRESS,154.14,EQUIPMENT,"GIFT, CARD, NOVELTY AND SOUVENIR SHOPS"
20/12/2017,BURBANK COMMUNITY HOME,SURREY CC INTERNET,54.00,REFRESHMENT COSTS,PROFESSIONAL SERVICES-NOT ELSEWHERE CLASSIFIED
20/12/2017,BURBANK COMMUNITY HOME,BT PAY BY PHONE,106.56,EQUIPMENT,TELECOM INCL PREPAID/RECURRING PHONE SVCS
20/12/2017,SPEECH & LANGUAGE THERAPY,AMAZON UK MARKETPLACE,4.14,EDUC VISITS/HOLS/CAMPS/TOYS,BOOK STORES
20/12/2017,SPEECH & LANGUAGE THERAPY,MEDISUPPLIES LTD,55.68,EQUIPMENT,MISCELLANEOUS AND SPECIALTY RETAIL STORES
20/12/2017,BURBANK COMMUNITY HOME,W M MORRISONS,10.33,PURCHASE OF FOOD (RAW MATERIALS),"GROCERY STORES, SUPERMARKETS"
20/12/2017,OCCUPATIONAL HEALTH,SP SERVICES,21.42,EQUIPMENT,DENTAL/LAB/MED/OPHTHALMIC HOSP EQUIP & SUPPLIES
20/12/2017,SOLD ESTATES MANAGEMENT,B & Q 1029,37.00,DAY TO DAY MAINTENANCE,"BUILDING MATERIALS, LUMBER STORES"
20/12/2017,SERVICES DELIVERY TEAM,WP-THE INSTITUTION,226.08,SUBSCRIPTIONS,"ORGANIZATIONS, MEMBERSHIP-NOT ELSEWHERE CLASSIFIED"
20/12/2017,SERVICES DELIVERY TEAM,WP-THE INSTITUTION,85.20,SUBSCRIPTIONS,"ORGANIZATIONS, MEMBERSHIP-NOT ELSEWHERE CLASSIFIED"
20/12/2017,BURBANK COMMUNITY HOME,SAINSBURYS TO YOU 0686,448.46,PURCHASE OF FOOD (RAW MATERIALS),"GROCERY STORES, SUPERMARKETS"
20/12/2017,COUNTY HALL,AMAZON UK MARKETPLACE,27.44,EQUIPMENT,BOOK STORES
20/12/2017,COUNTY HALL,JCM LOCKSMITHS LTD,169.32,DAY TO DAY MAINTENANCE,HARDWARE STORES
20/12/2017,RUTH HOUSE,G J HONOUR,217.74,PURCHASE OF FOOD (RAW MATERIALS),"MISC FOOD STORE-CONVENIENCE,MRKT,SPLTY,VENDNG MACS"
20/12/2017,RUTH HOUSE,HOBBYCRAFT,32.00,EDUC VISITS/HOLS/CAMPS/TOYS,"ARTIST SUPPLY STORES, CRAFT SHOPS"
20/12/2017,RUTH HOUSE,T.K MAXX,52.89,EDUC VISITS/HOLS/CAMPS/TOYS,VARIETY STORES
20/12/2017,RUTH HOUSE,ASDA  STORES 4775,26.00,EDUC VISITS/HOLS/CAMPS/TOYS,"GROCERY STORES, SUPERMARKETS"
20/12/2017,RUTH HOUSE,ASDA  STORES 4775,15.05,EDUC VISITS/HOLS/CAMPS/TOYS,"GROCERY STORES, SUPERMARKETS"
20/12/2017,FAIRCROFT COMMUNITY HOME,SAINSBURYS SACAT 0687,15.30,EQUIPMENT,"GROCERY STORES, SUPERMARKETS"
20/12/2017,FAIRCROFT COMMUNITY HOME,POUNDWORLD RETAIL,6.00,3RD PARTY PAYMENTS PRIVATE INDIV,DISCOUNT STORES
20/12/2017,FAIRCROFT COMMUNITY HOME,WILKO WOKING,53.25,3RD PARTY PAYMENTS PRIVATE INDIV,HOUSEHOLD APPLIANCE STORES
20/12/2017,ROW VOLUNTEERS WEST                     ,METHOLD VEHICLE HIRE,54.00,HIRE OF VEHICLES,AUTOMOBILE RENTAL AGENCY-NOT ELSEWHERE CLASSIFIED
20/12/2017,DOWNLANDS COUNTRYSIDE PROJECT,TESCO STORES,19.75,REFRESHMENT COSTS,"GROCERY STORES, SUPERMARKETS"
20/12/2017,WOODLANDS COMMUNITY HOME,SAINSBURYS 0686,3.75,EQUIPMENT,"GROCERY STORES, SUPERMARKETS"
20/12/2017,WOODLANDS COMMUNITY HOME,SAINSBURYS 0686,29.10,PURCHASE OF FOOD (RAW MATERIALS),"GROCERY STORES, SUPERMARKETS"
20/12/2017,WOODLANDS COMMUNITY HOME,SAINSBURYS 0686,128.35,PURCHASE OF FOOD (RAW MATERIALS),"GROCERY STORES, SUPERMARKETS"
20/12/2017,BURBANK COMMUNITY HOME,SAINSBURYS SACAT 0652,12.00,3RD PARTY PAYMENTS PRIVATE INDIV,"GROCERY STORES, SUPERMARKETS"
20/12/2017,BURBANK COMMUNITY HOME,CINEWORLD,13.00,EDUC VISITS/HOLS/CAMPS/TOYS,"THEATRICAL PRODUCERS(EXCL MOTION PIX),TICKET AGNCY"
20/12/2017,CORPORATE GROUP - LEGAL SERVICES,ELIOR@WEST SUSSEX COUN,154.50,REFRESHMENT COSTS,CATERERS
20/12/2017,FAMILIES WAVERLEY,HMV RETAIL LTD,5.99,EQUIPMENT,RECORD SHOPS
20/12/2017,CHEYNE WALK COMMUNITY HOME,THE MATTHEWS ORGANISAT,36.50,REFRESHMENT COSTS,"AMUSEMENT PARKS,CARNIVALS,CIRCUS,FORTUNE TELLERS"
20/12/2017,MALLOW CRESCENT,SAINSBURYS TO YOU 0652,20.85,PURCHASE OF FOOD (RAW MATERIALS),"GROCERY STORES, SUPERMARKETS"
20/12/2017,MALLOW CRESCENT,SAINSBURYS TO YOU 0652,176.88,PURCHASE OF FOOD (RAW MATERIALS),"GROCERY STORES, SUPERMARKETS"
20/12/2017,HOPE SERVICE - WEST,SAINSBURYS TO YOU 0686,33.88,PURCHASE OF FOOD (RAW MATERIALS),"GROCERY STORES, SUPERMARKETS"
20/12/2017,MEMBERS EXPENSES (INCL ALLOWANCES),WWW.ICO.GOV.UK,35.00,SUBSCRIPTIONS,GOVERNMENT SERVICES-NOT ELSEWHERE CLASSIFIED
20/12/2017,MEMBERS EXPENSES (INCL ALLOWANCES),WWW.ICO.GOV.UK,35.00,SUBSCRIPTIONS,GOVERNMENT SERVICES-NOT ELSEWHERE CLASSIFIED
20/12/2017,HILLSIDE,SAINSBURYS 0675,52.16,PURCHASE OF FOOD (RAW MATERIALS),"GROCERY STORES, SUPERMARKETS"
20/12/2017,LEGAL EXPENSES - CORPORATE GROUP,COMPANIES HOUSE,13.00,FEES,GOVERNMENT SERVICES-NOT ELSEWHERE CLASSIFIED
20/12/2017,TARGETED INTERVENTION,MARKS&SPENCER PLC SACA,15.65,EDUC VISITS/HOLS/CAMPS/TOYS,"GROCERY STORES, SUPERMARKETS"
20/12/2017,TARGETED INTERVENTION,KNIGHTS,6.25,EDUC VISITS/HOLS/CAMPS/TOYS,LAWN AND GARDEN SUPPLY STORES
20/12/2017,NW CARE - CP & COURT LAC,HOTEL ON BOOKING.COM,60.00,INDEPENDENT LIVING PLACEMENTS,"LODGING-HOTELS,MOTELS,RESORTS-NOT CLASSIFIED"
20/12/2017,SW CARE - CP & COURT LAC,KIDDICARE,59.94,OTHER COMMUNITY CARE VOL,MISCELLANEOUS HOUSE FURNISHING SPECIALTY SHOPS
20/12/2017,NW NIL RECOURSE TO PUBLIC FUNDS CARE,TRAVELODGE,848.00,INDEPENDENT LIVING PLACEMENTS,TRAVELODGE
20/12/2017,HILLSIDE,SAINSBURYS TO YOU 0675,181.05,PURCHASE OF FOOD (RAW MATERIALS),"GROCERY STORES, SUPERMARKETS"
20/12/2017,"NW REF, ASS & INT SERVICE - HUB 2",AMAZON UK MARKETPLACE,24.99,EQUIPMENT,BOOK STORES
20/12/2017,TARGETED INTERVENTION,SAINSBURYS 0686,2.40,EDUC VISITS/HOLS/CAMPS/TOYS,"GROCERY STORES, SUPERMARKETS"
20/12/2017,IMT SUPPORT FOR FIRE & RESCUE,AMAZON UK MARKETPLACE,7.99,COMPUTER HARDWARE,BOOK STORES
20/12/2017,SPEECH & LANGUAGE THERAPY,AMOMA.COM HOTELS,47.38,SUBSISTENCE AND CONFERENCE EXPENSES,TRAVEL AGENCIES AND TOUR OPERATORS
20/12/2017,HILLSIDE,MATALAN,68.96,EQUIPMENT,MEN'S AND WOMEN'S CLOTHING STORES
20/12/2017,FAIRCROFT COMMUNITY HOME,TESCO STORE 2812,164.49,PURCHASE OF FOOD (RAW MATERIALS),"GROCERY STORES, SUPERMARKETS"
20/12/2017,SURREY WASTE PARTNERSHIP,AMAZON EU,25.24,EQUIPMENT,DIRECT MARKETING-OTHER DIRECT MARKETERS/NOT ELSEW.
20/12/2017,MAYFORD CENTRE - BUSINESS,TIMPSON LTD,32.40,EQUIPMENT,"HAT CLEANING SHOPS, SHOE REPAIR SHOPS, SHOE SHINE"
20/12/2017,COUNTRYSIDE PARTNERSHIPS TEAM,ST JOHN AMBULANCE,306.00,TRAINING EXPENSES EXTERNAL GENERAL,"ORGANIZATIONS, CHARITABLE AND SOCIAL SERVICES"
20/12/2017,SPEECH & LANGUAGE THERAPY,WWW.ARGOS.CO.UK,36.43,EDUC VISITS/HOLS/CAMPS/TOYS,DISCOUNT STORES
20/12/2017,CHILDREN'S RIGHTS TEAM,POUNDLAND LTD 1228,8.00,EQUIPMENT,DISCOUNT STORES
20/12/2017,CHILDREN'S RIGHTS TEAM,POUNDWORLD RETAIL,5.00,EQUIPMENT,DISCOUNT STORES
20/12/2017,CHILDREN'S RIGHTS TEAM,CARD FACTORY,5.21,EQUIPMENT,"GIFT, CARD, NOVELTY AND SOUVENIR SHOPS"
20/12/2017,WOODLANDS COMMUNITY HOME,AMAZON SVCS EU-UK AMAZ,20.26,EDUC VISITS/HOLS/CAMPS/TOYS,BOOK STORES
20/12/2017,FAIRCROFT COMMUNITY HOME,SAINSBURYS SACAT 0687,23.00,PURCHASE OF FOOD (RAW MATERIALS),"GROCERY STORES, SUPERMARKETS"
20/12/2017,FAIRCROFT COMMUNITY HOME,SPORTSDIRECT.COM,30.99,3RD PARTY PAYMENTS PRIVATE INDIV,SPORTING GOODS STORES
21/12/2017,DEMOCRATIC SERVICES TEAM,AMAZON SVCS EU-UK AMAZ,37.58,REFRESHMENT COSTS,BOOK STORES
21/12/2017,FAMILIES WAVERLEY,MEON HUT SERVICE STATI,7.18,REFRESHMENT COSTS,SERVICE STATIONS WITH OR WITHOUT ANCILLARY SERVICE
21/12/2017,LOWER MOLE COUNTRYSIDE PROJECT,THE RICHMON FELLOW SHI,4.49,PURCHASE OF BUILDING MATERIALS,LAWN AND GARDEN SUPPLY STORES
21/12/2017,HILLSIDE,PRIMARK,25.10,"CLOTHING, UNIFORM AND LAUNDRY",FAMILY CLOTHING STORES
21/12/2017,BURBANK COMMUNITY HOME,AMAZON EU AMAZON.CO.UK,6.80,3RD PARTY PAYMENTS PRIVATE INDIV,MISCELLANEOUS AND SPECIALTY RETAIL STORES
21/12/2017,DEPUTYSHIP TEAM,BT BILL PAYMENT 1,106.95,3RD PARTY PAYMENTS PRIVATE INDIV,TELECOMMUNICATION EQUIPMENT INCL TELEPHONE SALES
21/12/2017,EXTENDED HOPE,VIRGIN TRAINS,52.00,MISCELLANEOUS STAFF TRAVEL,PASSENGER RAILWAYS
21/12/2017,EXTENDED HOPE,TESCO STORE 2590,27.79,PURCHASE OF FOOD (RAW MATERIALS),"GROCERY STORES, SUPERMARKETS"
21/12/2017,EXTENDED HOPE,TESCO STORE 2590,87.99,PURCHASE OF FOOD (RAW MATERIALS),"GROCERY STORES, SUPERMARKETS"
21/12/2017,BURBANK COMMUNITY HOME,AMAZON UK MARKETPLACE,15.99,3RD PARTY PAYMENTS PRIVATE INDIV,BOOK STORES
21/12/2017,FAMILIES WAVERLEY,SAINSBURYS SACAT 0670,1.00,PURCHASE OF FOOD (RAW MATERIALS),"GROCERY STORES, SUPERMARKETS"
21/12/2017,TRANSPORT,PAYPAL  HAPPY BEDS,209.98,FURNITURE,"EQUIP, FURNITURE, HOME FURNSHNGS STRS (EXCPT APPL)"
21/12/2017,FAIRCROFT COMMUNITY HOME,TESCO DELIVERY SAVER2,6.99,PURCHASE OF FOOD (RAW MATERIALS),DIRECT MARKETING-CONTINUITY/SUBSCRIPTION MERCHANTS
21/12/2017,COUNTRYSIDE PROJECT DEVELOPMENT,SURVEYMONKEY,29.00,SUBSCRIPTIONS,"COMP PROGRAMING,DATA PRCSNG,INTGRTD SYS DSGN SRVS"
21/12/2017,SURREY HILLS AONB,SURREY HILLS ENTERPRIS,45.60,TRAINING EXPENSES EXTERNAL GENERAL,"ORGANIZATIONS, MEMBERSHIP-NOT ELSEWHERE CLASSIFIED"
21/12/2017,FAMILIES TANDRIDGE,SAINSBURYS SACAT 2325,19.70,PURCHASE OF FOOD (RAW MATERIALS),"GROCERY STORES, SUPERMARKETS"
21/12/2017,FAMILIES TANDRIDGE,POUNDLAND LTD 1244,18.15,EQUIPMENT,DISCOUNT STORES
21/12/2017,FAMILIES TANDRIDGE,WAITROSE 178,4.64,REFRESHMENT COSTS,"GROCERY STORES, SUPERMARKETS"
21/12/2017,FAMILIES TANDRIDGE,WAITROSE 838,2.03,PURCHASE OF FOOD (RAW MATERIALS),"GROCERY STORES, SUPERMARKETS"
21/12/2017,FAIRCROFT COMMUNITY HOME,CHOZEN NOODLE,11.90,REFRESHMENT COSTS,FAST FOOD RESTAURANTS
21/12/2017,FAIRCROFT COMMUNITY HOME,KFC,10.87,REFRESHMENT COSTS,FAST FOOD RESTAURANTS
21/12/2017,SPEECH & LANGUAGE THERAPY,AMAZON UK MARKETPLACE,1.04,EDUC VISITS/HOLS/CAMPS/TOYS,BOOK STORES
21/12/2017,SPEECH & LANGUAGE THERAPY,WWW.INFORMA.COM,39.99,BOOKS,MISCELLANEOUS PUBLISHING AND PRINTING
21/12/2017,CHILDREN'S RIGHTS TEAM,SAINSBURYS SACAT 0802,10.00,EQUIPMENT,"GROCERY STORES, SUPERMARKETS"
21/12/2017,CHILDREN'S RIGHTS TEAM,WILKO WOKING,17.10,EQUIPMENT,HOUSEHOLD APPLIANCE STORES
21/12/2017,CHILDREN'S RIGHTS TEAM,WOKING FOOTBALL CLUB,204.90,REFRESHMENT COSTS,"CLUBS-CNTRY,MBRSHIP(ATHLET,REC,SPRTS,PRIVATE GOLF"
21/12/2017,CHILDREN'S RIGHTS TEAM,POUNDLAND LTD 1228,10.00,EQUIPMENT,DISCOUNT STORES
21/12/2017,WOODLANDS COMMUNITY HOME,SAINSBURYS SACAT 0686,14.00,"CLOTHING, UNIFORM AND LAUNDRY","GROCERY STORES, SUPERMARKETS"
21/12/2017,SECTOR MANAGER,AMAZON UK MARKETPLACE,13.98,EQUIPMENT,BOOK STORES
21/12/2017,BURBANK COMMUNITY HOME,3C_ WOKING BOROUGH COU,2.80,MISCELLANEOUS STAFF TRAVEL,AUTOMOBILE PARKING LOTS AND GARAGES
21/12/2017,BURBANK COMMUNITY HOME,MCDONALDS,5.57,REFRESHMENT COSTS,FAST FOOD RESTAURANTS
21/12/2017,TRANSPORT,AMAZON EU,32.50,STATIONERY,DIRECT MARKETING-OTHER DIRECT MARKETERS/NOT ELSEW.
21/12/2017,SOLD ESTATES MANAGEMENT,OAKES BROTHERS LTD,717.07,VEHICLE REPAIRS AND MAINTENANCE,"COMMERCIAL EQUIPMENT, NOT ELSEWHERE CLASSIFIED"
21/12/2017,CYWS COMMISSIONING,AMAZON UK MARKETPLACE,4.35,DAY TO DAY MAINTENANCE,BOOK STORES
21/12/2017,FAMILIES REIGATE AND BANSTREAD,TESCO STORES 2683,1.65,PURCHASE OF FOOD (RAW MATERIALS),"GROCERY STORES, SUPERMARKETS"
21/12/2017,SECTOR MANAGER,AMAZON UK MARKETPLACE,59.90,EQUIPMENT,BOOK STORES
21/12/2017,LIBERTAS COMMUNITY HOME,SAINSBURYS SACAT 0652,4.50,PURCHASE OF FOOD (RAW MATERIALS),"GROCERY STORES, SUPERMARKETS"
21/12/2017,SOLD ESTATES MANAGEMENT,B & Q 1076,104.22,DAY TO DAY MAINTENANCE,"BUILDING MATERIALS, LUMBER STORES"
21/12/2017,SOLD ESTATES MANAGEMENT,SOLAGLAS LTD,58.25,DAY TO DAY MAINTENANCE,"GLASS, PAINT, WALLPAPER STORES"
21/12/2017,ORBIS TRAINING PROPERTY,WWW.THOMASTELFORD.ORG.,498.81,TRAINING EXPENSES EXTERNAL GENERAL,MISCELLANEOUS PUBLISHING AND PRINTING
21/12/2017,ORBIS TRAINING PROPERTY,WWW.THOMASTELFORD.ORG.,"5,000.00",TRAINING EXPENSES EXTERNAL GENERAL,MISCELLANEOUS PUBLISHING AND PRINTING
21/12/2017,ARUNDEL,TESCO STORES 5999,166.25,REFRESHMENT COSTS,"GROCERY STORES, SUPERMARKETS"
21/12/2017,KARIBU COMMUNITY HOME,SAINSBURYS SACAT 0683,10.00,PURCHASE OF FOOD (RAW MATERIALS),"GROCERY STORES, SUPERMARKETS"
21/12/2017,KARIBU COMMUNITY HOME,TESCO STORE 2812,488.36,PURCHASE OF FOOD (RAW MATERIALS),"GROCERY STORES, SUPERMARKETS"
21/12/2017,KARIBU COMMUNITY HOME,ODEON/BOOKIT,50.50,EDUC VISITS/HOLS/CAMPS/TOYS,MOTION PICTURE THEATERS
21/12/2017,TRAINING AND DEVELOPMENT,RRC,583.80,TRAINING EXPENSES EXTERNAL GENERAL,"COLLEGES, UNIV, PRO SCHOOLS, JUNIOR COLLEGES"
21/12/2017,S28A MENTAL HEALTH,HMCTS-SURREY125,75.00,FEES,FINES
21/12/2017,COVEHAM,SUSSEX&SURREY CARE CNT,31.60,DAY TO DAY MAINTENANCE,"HEARING AIDS-SALES, SERVICE, SUPPLY STORES"
21/12/2017,COVEHAM,AMAZON SVCS EU-UK AMAZ,17.00,CLEANING MATERIALS,BOOK STORES
21/12/2017,CHEYNE WALK COMMUNITY HOME,COUNTY MALL CAR PARK,2.50,EQUIPMENT,AUTOMOBILE PARKING LOTS AND GARAGES
21/12/2017,CHEYNE WALK COMMUNITY HOME,B & Q 1155,31.02,EDUC VISITS/HOLS/CAMPS/TOYS,"BUILDING MATERIALS, LUMBER STORES"
21/12/2017,CHEYNE WALK COMMUNITY HOME,HOMEBASE LTD 087,20.00,EQUIPMENT,"BUILDING MATERIALS, LUMBER STORES"
21/12/2017,CHEYNE WALK COMMUNITY HOME,YANKEE CANDLE,72.99,3RD PARTY PAYMENTS PRIVATE INDIV,"GIFT, CARD, NOVELTY AND SOUVENIR SHOPS"
21/12/2017,CHEYNE WALK COMMUNITY HOME,YANKEE CANDLE,23.99,3RD PARTY PAYMENTS PRIVATE INDIV,"GIFT, CARD, NOVELTY AND SOUVENIR SHOPS"
21/12/2017,CHEYNE WALK COMMUNITY HOME,HOMEBASE LTD 087,-53.00,EQUIPMENT,"BUILDING MATERIALS, LUMBER STORES"
21/12/2017,DEMOCRATIC SERVICES TEAM,AMAZON SVCS EU-UK AMAZ,37.58,REFRESHMENT COSTS,BOOK STORES
21/12/2017,QUADRANT COURT WOKING,HORACE SMITH LOCKSMITH,25.40,EQUIPMENT,HARDWARE STORES
21/12/2017,FAMILIES WAVERLEY,LIDL UK,4.88,REFRESHMENT COSTS,"GROCERY STORES, SUPERMARKETS"
21/12/2017,HILLSIDE,SAINSBURYS 0675,23.34,PURCHASE OF FOOD (RAW MATERIALS),"GROCERY STORES, SUPERMARKETS"
21/12/2017,HILLSIDE,SAINSBURYS 0675,37.15,PURCHASE OF FOOD (RAW MATERIALS),"GROCERY STORES, SUPERMARKETS"
21/12/2017,FAIRCROFT COMMUNITY HOME,WH SMITH TRAVEL,3.00,REFRESHMENT COSTS,NEWS DEALERS AND NEWSSTANDS
21/12/2017,FAIRCROFT COMMUNITY HOME,MCDONALDS,22.65,REFRESHMENT COSTS,FAST FOOD RESTAURANTS
21/12/2017,TARGETED INTERVENTION,AA B2B,332.00,EDUC VISITS/HOLS/CAMPS/TOYS,AUTOMOBILE ASSOCIATIONS
21/12/2017,SE CARE - LAC,WYNVR.CO.UK HOL ACCOM,"2,886.00",INDEPENDENT LIVING PLACEMENTS,TRAVEL AGENCIES AND TOUR OPERATORS
21/12/2017,CHEYNE WALK COMMUNITY HOME,BOOTS 1449,2.69,EQUIPMENT,"DRUG STORES, PHARMACIES"
21/12/2017,CHEYNE WALK COMMUNITY HOME,SAINSBURYS SACAT 0026,37.10,PURCHASE OF FOOD (RAW MATERIALS),"GROCERY STORES, SUPERMARKETS"
21/12/2017,CHEYNE WALK COMMUNITY HOME,COSTA COFFEE 43035640,11.20,REFRESHMENT COSTS,FAST FOOD RESTAURANTS
21/12/2017,HILLSIDE,THE WORKS,6.50,STATIONERY,DISCOUNT STORES
21/12/2017,ROW MAINTENANCE,WILLIAM WAY (GODSTONE),43.20,EQUIPMENT,"BUILDING MATERIALS, LUMBER STORES"
21/12/2017,FAIRCROFT COMMUNITY HOME,AMAZON EU AMAZON.CO.UK,51.98,3RD PARTY PAYMENTS PRIVATE INDIV,MISCELLANEOUS AND SPECIALTY RETAIL STORES
21/12/2017,SPEECH & LANGUAGE THERAPY,AMAZON UK MARKETPLACE,1.74,EDUC VISITS/HOLS/CAMPS/TOYS,BOOK STORES
22/12/2017,RUTH HOUSE,LLOYDS PHARMACY,25.48,EQUIPMENT,"DRUG STORES, PHARMACIES"
22/12/2017,CHEYNE WALK COMMUNITY HOME,SKY BUSINESS,135.60,EQUIPMENT - INDEPENDENT SECTOR,"CABLE, SATELLITE, OTHER PAY TELEVISION, RADIO SVCS"
22/12/2017,SW CARE - NON-LAC CP & COURT,GRO HM PASSPORT OFFICE,-23.40,OTHER COMMUNITY CARE VOL,GOVERNMENT SERVICES-NOT ELSEWHERE CLASSIFIED
22/12/2017,LIBERTAS COMMUNITY HOME,SAINSBURYS 0652,17.80,PURCHASE OF FOOD (RAW MATERIALS),"GROCERY STORES, SUPERMARKETS"
22/12/2017,LIBERTAS COMMUNITY HOME,SAINSBURYS 0652,6.10,EQUIPMENT,"GROCERY STORES, SUPERMARKETS"
22/12/2017,LIBERTAS COMMUNITY HOME,SAINSBURYS 0652,105.58,PURCHASE OF FOOD (RAW MATERIALS),"GROCERY STORES, SUPERMARKETS"
22/12/2017,HILLSIDE,SAINSBURYS 0675,5.54,PURCHASE OF FOOD (RAW MATERIALS),"GROCERY STORES, SUPERMARKETS"
22/12/2017,HILLSIDE,SAINSBURYS 0675,115.21,PURCHASE OF FOOD (RAW MATERIALS),"GROCERY STORES, SUPERMARKETS"
22/12/2017,FAIRCROFT COMMUNITY HOME,FAT FACE LTD 233,60.00,3RD PARTY PAYMENTS PRIVATE INDIV,MEN'S AND BOY'S CLOTHING AND ACCESSORIES STORES
22/12/2017,SE CARE - CP & COURT LAC,EXPEDIA 7317272352813,2.80,NON-STAFF RELATED TRANSPORT COSTS,TRAVEL AGENCIES AND TOUR OPERATORS
22/12/2017,ASYLUM SEEKERS 16-17,TRAVELODGE,186.50,INDEPENDENT LIVING PLACEMENTS,TRAVELODGE
22/12/2017,SE CARE - CP & COURT LAC,AIR EUROP 99651172212686,744.00,NON-STAFF RELATED TRANSPORT COSTS,"AIR CARRIERS, AIRLINES-NOT ELSEWHERE CLASSIFIED"
22/12/2017,SE CARE - CP & COURT LAC,AIR EUROP 99651172212690,669.00,NON-STAFF RELATED TRANSPORT COSTS,"AIR CARRIERS, AIRLINES-NOT ELSEWHERE CLASSIFIED"
22/12/2017,OPS-FLEET/WORKSHOPS,RESPIRATORY PROTECTIVE,"4,551.60",CE03 CAPITAL VEHICLES AND PLANT,MEN'S/WOMEN'S/CHILDREN'S UNIFORMS/COMMERCIAL CLOTH
22/12/2017,LOWER MOLE COUNTRYSIDE PROJECT,THE CONSERVATION VOLUN,38.00,SUBSCRIPTIONS,"ORGANIZATIONS, CHARITABLE AND SOCIAL SERVICES"
22/12/2017,COVEHAM,MARKS&SPENCER PLC,2.75,REFRESHMENT COSTS,"GROCERY STORES, SUPERMARKETS"
22/12/2017,COVEHAM,TESCO STORE 2160,10.00,REFRESHMENT COSTS,"GROCERY STORES, SUPERMARKETS"
22/12/2017,COVEHAM,TESCO STORE 2160,30.39,REFRESHMENT COSTS,"GROCERY STORES, SUPERMARKETS"
22/12/2017,COVEHAM,ARGOS LTD,379.99,EQUIPMENT,DISCOUNT STORES
22/12/2017,COVEHAM,ARGOS LTD,89.99,EQUIPMENT,DISCOUNT STORES
22/12/2017,SPEECH & LANGUAGE THERAPY,AMAZON UK MARKETPLACE,122.33,EDUC VISITS/HOLS/CAMPS/TOYS,BOOK STORES
22/12/2017,CSF BUSINESS SUPPORT EDUCATION,AMAZON EU AMAZON.CO.UK,18.14,STATIONERY,MISCELLANEOUS AND SPECIALTY RETAIL STORES
22/12/2017,HILLSIDE,SAINSBURYS 0675,29.60,PURCHASE OF FOOD (RAW MATERIALS),"GROCERY STORES, SUPERMARKETS"
22/12/2017,HILLSIDE,SAINSBURYS 0675,44.75,PURCHASE OF FOOD (RAW MATERIALS),"GROCERY STORES, SUPERMARKETS"
22/12/2017,BURBANK COMMUNITY HOME,AMAZON UK MARKETPLACE,12.49,3RD PARTY PAYMENTS PRIVATE INDIV,BOOK STORES
22/12/2017,CYWS COMMISSIONING,SAINSBURYS SACAT 0828,12.00,PURCHASE OF FOOD (RAW MATERIALS),"GROCERY STORES, SUPERMARKETS"
22/12/2017,HILLSIDE,SAINSBURYS 0784,24.00,CLEANING MATERIALS,"GROCERY STORES, SUPERMARKETS"
22/12/2017,LIBERTAS COMMUNITY HOME,SAINSBURYS 0652,16.60,PURCHASE OF FOOD (RAW MATERIALS),"GROCERY STORES, SUPERMARKETS"
22/12/2017,HILLSIDE,SAINSBURYS 0784,10.15,PURCHASE OF FOOD (RAW MATERIALS),"GROCERY STORES, SUPERMARKETS"
22/12/2017,WOODLANDS COMMUNITY HOME,AMAZON EU AMAZON.CO.UK,18.99,3RD PARTY PAYMENTS PRIVATE INDIV,MISCELLANEOUS AND SPECIALTY RETAIL STORES
22/12/2017,OPS-FLEET/WORKSHOPS,RESPIRATORY PROTECTIVE,"4,999.20",CE03 CAPITAL VEHICLES AND PLANT,MEN'S/WOMEN'S/CHILDREN'S UNIFORMS/COMMERCIAL CLOTH
22/12/2017,RBDM - GENERAL,AMAZON EU AMAZON.CO.UK,23.17,EQUIPMENT,MISCELLANEOUS AND SPECIALTY RETAIL STORES
22/12/2017,DEPUTYSHIP TEAM,THREE-BILLPAY(IVR),241.29,3RD PARTY PAYMENTS PRIVATE INDIV,TELECOM INCL PREPAID/RECURRING PHONE SVCS
22/12/2017,LIBERTAS COMMUNITY HOME,BENTLEY BROWN CATERING,-100.00,EDUC VISITS/HOLS/CAMPS/TOYS,"EQUIPMENT RENTAL&LEASING SVS, FURNTURE/TOOL RENTAL"
22/12/2017,CONSORT HOUSE REDHILL,BANNER GROUP LTD,22.38,EQUIPMENT,"OFFICE, SCHOOL SUPPLY, AND STATIONERY STORES"
22/12/2017,HIGH ASHURST OUTDOOR EDUC CENTRE,B & Q 1018,76.00,EQUIPMENT,"BUILDING MATERIALS, LUMBER STORES"
22/12/2017,ARUNDEL,TESCO STORES 5999,356.84,REFRESHMENT COSTS,"GROCERY STORES, SUPERMARKETS"
22/12/2017,ARUNDEL,TESCO STORES 5999,24.30,REFRESHMENT COSTS,"GROCERY STORES, SUPERMARKETS"
22/12/2017,CHEYNE WALK COMMUNITY HOME,SAINSBURYS TO YOU 0026,194.44,PURCHASE OF FOOD (RAW MATERIALS),"GROCERY STORES, SUPERMARKETS"
22/12/2017,COUNTY HALL,RYMAN,4.99,STATIONERY,"OFFICE, SCHOOL SUPPLY, AND STATIONERY STORES"
22/12/2017,LIBERTAS COMMUNITY HOME,SAINSBURYS 0652,14.50,EQUIPMENT,"GROCERY STORES, SUPERMARKETS"
22/12/2017,LIBERTAS COMMUNITY HOME,SAINSBURYS 0652,5.00,PURCHASE OF FOOD (RAW MATERIALS),"GROCERY STORES, SUPERMARKETS"
22/12/2017,HOLLAND CLOSE RESIDENTIAL HOME,CARDS DIRECT REDHILL,6.57,STATIONERY,"GIFT, CARD, NOVELTY AND SOUVENIR SHOPS"
22/12/2017,KARIBU COMMUNITY HOME,NEW LOOK,12.99,EDUC VISITS/HOLS/CAMPS/TOYS,WOMEN'S READY TO WEAR STORES
22/12/2017,KARIBU COMMUNITY HOME,SAVERS HEALTH & BEAUTY,8.98,EDUC VISITS/HOLS/CAMPS/TOYS,"DRUG STORES, PHARMACIES"
22/12/2017,LOCAL ASSISTANCE SCHEME,WWW.JOHNLEWIS.COM,59.00,FURNITURE,DEPARTMENT STORES
22/12/2017,SW CARE - NON-LAC CP & COURT,GRO HM PASSPORT OFFICE,93.60,OTHER COMMUNITY CARE VOL,GOVERNMENT SERVICES-NOT ELSEWHERE CLASSIFIED
22/12/2017,HOLLAND CLOSE RESIDENTIAL HOME,FREEDOM LEISURE,15.20,EDUC VISITS/HOLS/CAMPS/TOYS,GOVERNMENT SERVICES-NOT ELSEWHERE CLASSIFIED
22/12/2017,HILLSIDE,AMZ SC  GIFTS,-16.89,EQUIPMENT,MISCELLANEOUS AND SPECIALTY RETAIL STORES
23/12/2017,ASYLUM SEEKERS 16-17,NATIONAL EXPRESS LIMIT,48.30,NON-STAFF RELATED TRANSPORT COSTS,BUS LINES
23/12/2017,CHEYNE WALK COMMUNITY HOME,PRODUCT SUPPORT AG,2.00,EQUIPMENT,DIRECT MARKETING-CONTINUITY/SUBSCRIPTION MERCHANTS
23/12/2017,LIBERTAS COMMUNITY HOME,OCADO RETAIL LIMIT,517.51,PURCHASE OF FOOD (RAW MATERIALS),"GROCERY STORES, SUPERMARKETS"
23/12/2017,EXTENDED HOPE,ODEON,100.00,EDUC VISITS/HOLS/CAMPS/TOYS,MOTION PICTURE THEATERS
23/12/2017,EXTENDED HOPE,ODEON,10.60,PURCHASE OF FOOD (RAW MATERIALS),MOTION PICTURE THEATERS
23/12/2017,EXTENDED HOPE,ODEON,10.25,REFRESHMENT COSTS,MOTION PICTURE THEATERS
23/12/2017,CYWS COMMISSIONING,SAINSBURYS SACAT 0828,9.90,PURCHASE OF FOOD (RAW MATERIALS),"GROCERY STORES, SUPERMARKETS"
23/12/2017,HILLSIDE,SAINSBURYS SACAT 0784,1.10,PURCHASE OF FOOD (RAW MATERIALS),"GROCERY STORES, SUPERMARKETS"
23/12/2017,HILLSIDE,SAINSBURYS SACAT 0784,1.22,PURCHASE OF FOOD (RAW MATERIALS),"GROCERY STORES, SUPERMARKETS"
23/12/2017,HILLSIDE,LIDL UK,.95,PURCHASE OF FOOD (RAW MATERIALS),"GROCERY STORES, SUPERMARKETS"
23/12/2017,HILLSIDE,LIDL UK,7.96,PURCHASE OF FOOD (RAW MATERIALS),"GROCERY STORES, SUPERMARKETS"
23/12/2017,BURBANK COMMUNITY HOME,CALENDAR CLUB LTD,8.99,3RD PARTY PAYMENTS PRIVATE INDIV,"GIFT, CARD, NOVELTY AND SOUVENIR SHOPS"
23/12/2017,RUTH HOUSE,MARKS&SPENCER PLC,16.00,EDUC VISITS/HOLS/CAMPS/TOYS,"GROCERY STORES, SUPERMARKETS"
23/12/2017,ARUNDEL,ASDA SUPERSTORE,21.50,REFRESHMENT COSTS,"GROCERY STORES, SUPERMARKETS"
23/12/2017,LIBERTAS COMMUNITY HOME,HOUSE OF FRASER,140.00,"CLOTHING, UNIFORM AND LAUNDRY",DEPARTMENT STORES
23/12/2017,KARIBU COMMUNITY HOME,AMAZON EU,28.97,EDUC VISITS/HOLS/CAMPS/TOYS,DIRECT MARKETING-OTHER DIRECT MARKETERS/NOT ELSEW.
24/12/2017,WOODLANDS COMMUNITY HOME,SAINSBURYS SACAT (4198,13.45,PURCHASE OF FOOD (RAW MATERIALS),"GROCERY STORES, SUPERMARKETS"
24/12/2017,WOODLANDS COMMUNITY HOME,PIZZA EXPRESS,67.35,PURCHASE OF FOOD (RAW MATERIALS),"EATING PLACES, RESTAURANTS"
24/12/2017,WOODLANDS COMMUNITY HOME,SELFSERVE TICKET,36.80,NON-STAFF RELATED TRANSPORT COSTS,PASSENGER RAILWAYS
24/12/2017,BURBANK COMMUNITY HOME,LONDIS,7.29,PURCHASE OF FOOD (RAW MATERIALS),"CANDY, NUT, CONFECTIONERY STORES"
24/12/2017,CHEYNE WALK COMMUNITY HOME,ALIBABA CHARCOAL GRILL,42.00,REFRESHMENT COSTS,FAST FOOD RESTAURANTS
24/12/2017,FAIRCROFT COMMUNITY HOME,SAINSBURYS PFS0473,6.90,REFRESHMENT COSTS,SERVICE STATIONS WITH OR WITHOUT ANCILLARY SERVICE
24/12/2017,MISC EDCAT SUPPORT,WWW.PARAGON.NET.UK RT,8.63,COMPUTER SERVICES,DIRECT MARKETING-CONTINUITY/SUBSCRIPTION MERCHANTS
24/12/2017,KARIBU COMMUNITY HOME,WILKO RETAIL LIMIT,31.05,EDUC VISITS/HOLS/CAMPS/TOYS,HOUSEHOLD APPLIANCE STORES
24/12/2017,KARIBU COMMUNITY HOME,NEW LOOK,13.99,"CLOTHING, UNIFORM AND LAUNDRY",WOMEN'S READY TO WEAR STORES
24/12/2017,KARIBU COMMUNITY HOME,CLAIRE'S ACCESSORIES,12.00,EDUC VISITS/HOLS/CAMPS/TOYS,ACCESSORY AND APPAREL STORES-MISCELLANEOUS
24/12/2017,HILLSIDE,ONE STOP 1165,8.90,PURCHASE OF FOOD (RAW MATERIALS),"GROCERY STORES, SUPERMARKETS"
24/12/2017,HOLLAND CLOSE RESIDENTIAL HOME,TESCO-STORES 6647,195.02,PURCHASE OF FOOD (RAW MATERIALS),"GROCERY STORES, SUPERMARKETS"
24/12/2017,HOLLAND CLOSE RESIDENTIAL HOME,TESCO-STORES 6647,-1.00,PURCHASE OF FOOD (RAW MATERIALS),"GROCERY STORES, SUPERMARKETS"
24/12/2017,EXTENDED HOPE,TESCO-STORES 2590,15.05,PURCHASE OF FOOD (RAW MATERIALS),"GROCERY STORES, SUPERMARKETS"
24/12/2017,HOLLAND CLOSE RESIDENTIAL HOME,CINEWORLD,24.25,EDUC VISITS/HOLS/CAMPS/TOYS,"THEATRICAL PRODUCERS(EXCL MOTION PIX),TICKET AGNCY"
25/12/2017,LOCAL ASSISTANCE SCHEME,WWW.JOHNLEWIS.COM,269.00,FURNITURE,DEPARTMENT STORES
25/12/2017,KARIBU COMMUNITY HOME,JUST EAT,79.10,PURCHASE OF FOOD (RAW MATERIALS),FAST FOOD RESTAURANTS
25/12/2017,SEND TRANSPORT COMMISSIONING,LOGMEIN GOTOMEETING,238.80,COMPUTER SOFTWARE,DIRECT MARKETING-CONTINUITY/SUBSCRIPTION MERCHANTS
26/12/2017,CHEYNE WALK COMMUNITY HOME,AMAZON SVCS EU-UK AMAZ,6.99,EQUIPMENT,BOOK STORES
26/12/2017,COVEHAM,SAINSBURYS 0687,115.28,REFRESHMENT COSTS,"GROCERY STORES, SUPERMARKETS"
26/12/2017,WOODLANDS COMMUNITY HOME,SAINSBURYS 0686,4.00,PURCHASE OF FOOD (RAW MATERIALS),"GROCERY STORES, SUPERMARKETS"
26/12/2017,WOODLANDS COMMUNITY HOME,SAINSBURYS 0686,76.95,PURCHASE OF FOOD (RAW MATERIALS),"GROCERY STORES, SUPERMARKETS"
26/12/2017,FAIRCROFT COMMUNITY HOME,NANDOS GUILDFORD,67.00,REFRESHMENT COSTS,"EATING PLACES, RESTAURANTS"
26/12/2017,FAIRCROFT COMMUNITY HOME,ODEON/BOOKIT,57.50,EDUC VISITS/HOLS/CAMPS/TOYS,MOTION PICTURE THEATERS
26/12/2017,WORKPLACE COMMERCIAL TEAM,FACEBK BHGS8DNMB2,20.00,PUBLICITY,ADVERTISING SERVICES
26/12/2017,CHEYNE WALK COMMUNITY HOME,AMAZON UK MARKETPLACE,10.23,EQUIPMENT,BOOK STORES
26/12/2017,FAIRCROFT COMMUNITY HOME,LLOYDS AT SAINSBURYS,6.99,EQUIPMENT,"GROCERY STORES, SUPERMARKETS"
26/12/2017,FAIRCROFT COMMUNITY HOME,SAINSBURYS SACAT 0687,24.10,PURCHASE OF FOOD (RAW MATERIALS),"GROCERY STORES, SUPERMARKETS"
26/12/2017,LIBERTAS COMMUNITY HOME,ROBERT DYAS HOLDNG LTD,89.90,EQUIPMENT,HARDWARE STORES
26/12/2017,RUTH HOUSE,LONDON ZOO,19.50,EDUC VISITS/HOLS/CAMPS/TOYS,RECREATION SERVICES (NOT ELSEWHERE CLASSIFIED)
26/12/2017,HILLSIDE,SAINSBURYS 0675,8.84,PURCHASE OF FOOD (RAW MATERIALS),"GROCERY STORES, SUPERMARKETS"
26/12/2017,HILLSIDE,SAINSBURYS 0675,75.61,PURCHASE OF FOOD (RAW MATERIALS),"GROCERY STORES, SUPERMARKETS"
26/12/2017,HILLSIDE,SAINSBURYS SACAT 0784,8.65,PURCHASE OF FOOD (RAW MATERIALS),"GROCERY STORES, SUPERMARKETS"
27/12/2017,IMT CRITICAL ENVIRONMENTS,AMAZON UK RETAIL AMAZO,31.63,REFRESHMENT COSTS,MISCELLANEOUS AND SPECIALTY RETAIL STORES
27/12/2017,CHEYNE WALK COMMUNITY HOME,NIKE STORE 00542,93.10,"CLOTHING, UNIFORM AND LAUNDRY","SPORTS APPAREL, RIDING APPAREL STORES"
27/12/2017,CHEYNE WALK COMMUNITY HOME,CHELSEABEDS.CO.UK,89.00,FURNITURE,"EQUIP, FURNITURE, HOME FURNSHNGS STRS (EXCPT APPL)"
27/12/2017,CHEYNE WALK COMMUNITY HOME,AMAZON SVCS EU-UK AMAZ,6.99,EQUIPMENT,BOOK STORES
27/12/2017,HILLSIDE,SAINSBURYS 0675,83.15,PURCHASE OF FOOD (RAW MATERIALS),"GROCERY STORES, SUPERMARKETS"
27/12/2017,MALLOW CRESCENT,TESCO STORE 2590,10.96,PURCHASE OF FOOD (RAW MATERIALS),"GROCERY STORES, SUPERMARKETS"
27/12/2017,MALLOW CRESCENT,TESCO STORE 2590,71.77,PURCHASE OF FOOD (RAW MATERIALS),"GROCERY STORES, SUPERMARKETS"
27/12/2017,LOCAL ASSISTANCE SCHEME,WWW.JOHNLEWIS.COM,51.95,FURNITURE,DEPARTMENT STORES
27/12/2017,SE LOOKED AFTER TEAM,TRAVELODGE,56.25,INDEPENDENT LIVING PLACEMENTS,TRAVELODGE
27/12/2017,CHEYNE WALK COMMUNITY HOME,FRED PERRY,30.00,"CLOTHING, UNIFORM AND LAUNDRY",MEN'S AND WOMEN'S CLOTHING STORES
27/12/2017,CHEYNE WALK COMMUNITY HOME,GAP 7976,17.54,"CLOTHING, UNIFORM AND LAUNDRY",FAMILY CLOTHING STORES
27/12/2017,CHEYNE WALK COMMUNITY HOME,BURGER KING GUILDFORD,44.22,REFRESHMENT COSTS,FAST FOOD RESTAURANTS
27/12/2017,CHEYNE WALK COMMUNITY HOME,BELL CARRIAGE LTD,46.46,TRANSPORT SOCIAL CARE-TAXI,LIMOUSINES AND TAXICABS
27/12/2017,HOLLAND CLOSE RESIDENTIAL HOME,WWW.FREEDOM-LEISURE.CO,16.49,EDUC VISITS/HOLS/CAMPS/TOYS,RECREATION SERVICES (NOT ELSEWHERE CLASSIFIED)
27/12/2017,HOLLAND CLOSE RESIDENTIAL HOME,FREEDOM LEISURE,-15.20,EDUC VISITS/HOLS/CAMPS/TOYS,GOVERNMENT SERVICES-NOT ELSEWHERE CLASSIFIED
27/12/2017,EXTENDED HOPE,TESCO STORE 2590,68.57,PURCHASE OF FOOD (RAW MATERIALS),"GROCERY STORES, SUPERMARKETS"
27/12/2017,EXTENDED HOPE,TESCO STORE 2590,8.06,PURCHASE OF FOOD (RAW MATERIALS),"GROCERY STORES, SUPERMARKETS"
27/12/2017,ARUNDEL,THE VIEW HOTEL EAS,872.00,EDUC VISITS/HOLS/CAMPS/TOYS,"LODGING-HOTELS,MOTELS,RESORTS-NOT CLASSIFIED"
27/12/2017,CHEYNE WALK COMMUNITY HOME,ADIDASGROUP,22.95,"CLOTHING, UNIFORM AND LAUNDRY","SPORTS APPAREL, RIDING APPAREL STORES"
27/12/2017,PROPERTY OPERATIONS TEAM,WICKES,62.43,PURCHASE OF BUILDING MATERIALS,"BUILDING MATERIALS, LUMBER STORES"
27/12/2017,APPLEWOOD,ASDA HOME SHOPPING,145.84,PURCHASE OF FOOD (RAW MATERIALS),"GROCERY STORES, SUPERMARKETS"
27/12/2017,APPLEWOOD,ASDA HOME SHOPPING,-1.80,PURCHASE OF FOOD (RAW MATERIALS),"GROCERY STORES, SUPERMARKETS"
27/12/2017,SPEECH & LANGUAGE THERAPY,AMAZON EU AMAZON.CO.UK,84.41,EDUC VISITS/HOLS/CAMPS/TOYS,MISCELLANEOUS AND SPECIALTY RETAIL STORES
27/12/2017,SPEECH & LANGUAGE THERAPY,AMAZON EU AMAZON.CO.UK,50.59,EDUC VISITS/HOLS/CAMPS/TOYS,MISCELLANEOUS AND SPECIALTY RETAIL STORES
27/12/2017,LEAP BUDGET,AMAZON EU AMAZON.CO.UK,12.99,BOOKS,MISCELLANEOUS AND SPECIALTY RETAIL STORES
27/12/2017,FIRE & RESCUE COMMUNITY SAFETY,TRANSK9 KENNEL&DOG,658.50,OPERATIONAL FIRE EQUIPMENT,BUSINESS SERVICES-NOT ELSEWHERE CLASSIFIED
27/12/2017,BURBANK COMMUNITY HOME,SAINSBURYS TO YOU 0686,359.17,PURCHASE OF FOOD (RAW MATERIALS),"GROCERY STORES, SUPERMARKETS"
27/12/2017,MALLOW CRESCENT,TESCO STORE 2590,88.55,PURCHASE OF FOOD (RAW MATERIALS),"GROCERY STORES, SUPERMARKETS"
27/12/2017,CHEYNE WALK COMMUNITY HOME,AMAZON UK MARKETPLACE,6.30,EQUIPMENT,BOOK STORES
27/12/2017,CHEYNE WALK COMMUNITY HOME,TOMMY HILFIGER,36.00,"CLOTHING, UNIFORM AND LAUNDRY",MEN'S AND WOMEN'S CLOTHING STORES
28/12/2017,FAIRCROFT COMMUNITY HOME,ODEON/BOOKIT,71.00,EDUC VISITS/HOLS/CAMPS/TOYS,MOTION PICTURE THEATERS
28/12/2017,ARUNDEL,SEINE RIGGER LTD,65.80,REFRESHMENT COSTS,"EATING PLACES, RESTAURANTS"
28/12/2017,CHMHS RAP TEAM,SURVEYMONKEY,35.00,PUBLICITY,"COMP PROGRAMING,DATA PRCSNG,INTGRTD SYS DSGN SRVS"
28/12/2017,FAIRCROFT COMMUNITY HOME,WAGAMAMA GUILDFORD,75.60,REFRESHMENT COSTS,"EATING PLACES, RESTAURANTS"
28/12/2017,FAIRCROFT COMMUNITY HOME,SAINSBURYS SACAT 0687,21.50,"CLOTHING, UNIFORM AND LAUNDRY","GROCERY STORES, SUPERMARKETS"
28/12/2017,MASH,MILK & MORE OFFLINE,78.09,REFRESHMENT COSTS,"MISC FOOD STORE-CONVENIENCE,MRKT,SPLTY,VENDNG MACS"
28/12/2017,COMMUNICATIONS TEAM,SPARKOL,21.60,STATIONERY,COMPUTER SOFTWARE STORES
28/12/2017,HOLLAND CLOSE RESIDENTIAL HOME,ATG TICKETS,34.35,EDUC VISITS/HOLS/CAMPS/TOYS,"THEATRICAL PRODUCERS(EXCL MOTION PIX),TICKET AGNCY"
28/12/2017,LOCAL ASSISTANCE SCHEME,TESCO DIRECT,196.95,FURNITURE,MISCELLANEOUS AND SPECIALTY RETAIL STORES
28/12/2017,MALLOW CRESCENT,SAINSBURYS TO YOU 0652,15.30,PURCHASE OF FOOD (RAW MATERIALS),"GROCERY STORES, SUPERMARKETS"
28/12/2017,MALLOW CRESCENT,SAINSBURYS TO YOU 0652,90.00,PURCHASE OF FOOD (RAW MATERIALS),"GROCERY STORES, SUPERMARKETS"
28/12/2017,NW CP & COURT TEAM,DOUBLETREE BY HILTON -,"1,061.50",INDEPENDENT LIVING PLACEMENTS,"LODGING-HOTELS,MOTELS,RESORTS-NOT CLASSIFIED"
28/12/2017,HOLLAND CLOSE RESIDENTIAL HOME,ENCORE TICKETS,180.00,EDUC VISITS/HOLS/CAMPS/TOYS,"THEATRICAL PRODUCERS(EXCL MOTION PIX),TICKET AGNCY"
29/12/2017,COVEHAM,TERRYS TEXTILES LT,46.92,FURNITURE,"FABRIC, NEEDLEWORK, PIECE GOODS, AND SEWING STORES"
29/12/2017,LOCAL ASSISTANCE SCHEME,WWW.JOHNLEWIS.COM,158.00,FURNITURE,DEPARTMENT STORES
29/12/2017,EXTENDED HOPE,ARGOS LTD,16.99,FURNITURE,DISCOUNT STORES
29/12/2017,HOPE SERVICE - WEST,ODEON,9.25,EDUC VISITS/HOLS/CAMPS/TOYS,MOTION PICTURE THEATERS
29/12/2017,ARUNDEL,TESCO STORES 2191,5.99,REFRESHMENT COSTS,"GROCERY STORES, SUPERMARKETS"
29/12/2017,RUTH HOUSE,SAINSBURYS TO YOU 0686,76.80,PURCHASE OF FOOD (RAW MATERIALS),"GROCERY STORES, SUPERMARKETS"
29/12/2017,RUTH HOUSE,SAINSBURYS TO YOU 0686,362.85,PURCHASE OF FOOD (RAW MATERIALS),"GROCERY STORES, SUPERMARKETS"
29/12/2017,RUTH HOUSE,NOWTV.COM/BILLINGHELP,7.99,EDUC VISITS/HOLS/CAMPS/TOYS,"CABLE, SATELLITE, OTHER PAY TELEVISION, RADIO SVCS"
29/12/2017,RUTH HOUSE,NOWTV.COM/BILLINGHELP,9.99,EDUC VISITS/HOLS/CAMPS/TOYS,"CABLE, SATELLITE, OTHER PAY TELEVISION, RADIO SVCS"
29/12/2017,TANDRIDGE LOCALITY TEAM,AMAZON SVCS EU-UK AMAZ,19.62,EQUIPMENT,BOOK STORES
29/12/2017,HILLSIDE,SAINSBURYS 0675,13.80,PURCHASE OF FOOD (RAW MATERIALS),"GROCERY STORES, SUPERMARKETS"
29/12/2017,HILLSIDE,SAINSBURYS 0675,113.40,PURCHASE OF FOOD (RAW MATERIALS),"GROCERY STORES, SUPERMARKETS"
29/12/2017,HOPE SERVICE - WEST,SAINSBURYS SACAT 0683,135.90,PURCHASE OF FOOD (RAW MATERIALS),"GROCERY STORES, SUPERMARKETS"
29/12/2017,LOCAL DELIVERY GROUP,AMAZON EU,12.90,EQUIPMENT,DIRECT MARKETING-OTHER DIRECT MARKETERS/NOT ELSEW.
29/12/2017,E&I - COMMUNITY RECYCLING CENTRES       ,GOOGLE  ADWS2060179426,500.00,PUBLICITY,DIRECT MARKETING-CONTINUITY/SUBSCRIPTION MERCHANTS
30/12/2017,CAMBERLEY LIBRARY,AMAZON EU AMAZON.CO.UK,27.10,EQUIPMENT,MISCELLANEOUS AND SPECIALTY RETAIL STORES
30/12/2017,CHEYNE WALK COMMUNITY HOME,JRC GLOBAL BUFFET CROY,119.94,EQUIPMENT,"EATING PLACES, RESTAURANTS"
30/12/2017,EXTENDED HOPE,TESCO STORE 2590,12.20,PURCHASE OF FOOD (RAW MATERIALS),"GROCERY STORES, SUPERMARKETS"
30/12/2017,EXTENDED HOPE,TESCO STORE 2590,54.90,PURCHASE OF FOOD (RAW MATERIALS),"GROCERY STORES, SUPERMARKETS"
30/12/2017,WOODLANDS COMMUNITY HOME,SAINSBURYS TO YOU 0686,17.10,PURCHASE OF FOOD (RAW MATERIALS),"GROCERY STORES, SUPERMARKETS"
30/12/2017,WOODLANDS COMMUNITY HOME,SAINSBURYS TO YOU 0686,101.00,PURCHASE OF FOOD (RAW MATERIALS),"GROCERY STORES, SUPERMARKETS"
30/12/2017,HILLSIDE,SAINSBURYS 0675,23.10,PURCHASE OF FOOD (RAW MATERIALS),"GROCERY STORES, SUPERMARKETS"
30/12/2017,HILLSIDE,SAINSBURYS 0675,18.86,PURCHASE OF FOOD (RAW MATERIALS),"GROCERY STORES, SUPERMARKETS"
30/12/2017,HILLSIDE,SAINSBURYS SACAT 0675,7.50,PURCHASE OF FOOD (RAW MATERIALS),"GROCERY STORES, SUPERMARKETS"
30/12/2017,HOPE SERVICE - WEST,DELIVEROOCOUK,45.60,REFRESHMENT COSTS,"MISC FOOD STORE-CONVENIENCE,MRKT,SPLTY,VENDNG MACS"
30/12/2017,CYWS COMMISSIONING,SAINSBURYS SACAT 0828,10.10,PURCHASE OF FOOD (RAW MATERIALS),"GROCERY STORES, SUPERMARKETS"
30/12/2017,FAIRCROFT COMMUNITY HOME,SAINSBURYS 0687,25.59,PURCHASE OF FOOD (RAW MATERIALS),"GROCERY STORES, SUPERMARKETS"
30/12/2017,FAIRCROFT COMMUNITY HOME,SAINSBURYS 0687,34.00,EQUIPMENT,"GROCERY STORES, SUPERMARKETS"
30/12/2017,TANDRIDGE LOCALITY TEAM,AMAZON SVCS EU-UK AMAZ,9.97,EQUIPMENT,BOOK STORES
30/12/2017,LIBERTAS COMMUNITY HOME,SAINSBURYS SACAT 0652,23.05,PURCHASE OF FOOD (RAW MATERIALS),"GROCERY STORES, SUPERMARKETS"
30/12/2017,LOCAL DELIVERY GROUP,AMAZON UK MARKETPLACE,75.39,EQUIPMENT,BOOK STORES
30/12/2017,LOCAL DELIVERY GROUP,AMAZON EU,12.65,EQUIPMENT,DIRECT MARKETING-OTHER DIRECT MARKETERS/NOT ELSEW.
30/12/2017,WOODLANDS COMMUNITY HOME,COSTA COFFEE,7.30,REFRESHMENT COSTS,FAST FOOD RESTAURANTS
31/12/2017,FAIRCROFT COMMUNITY HOME,CHINA CHEF,56.50,REFRESHMENT COSTS,"EATING PLACES, RESTAURANTS"
31/12/2017,WOODLANDS COMMUNITY HOME,WWW.DOMINOS.CO.UK,20.52,PURCHASE OF FOOD (RAW MATERIALS),"EATING PLACES, RESTAURANTS"
31/12/2017,KARIBU COMMUNITY HOME,PIZZA EXPRESS,151.04,PURCHASE OF FOOD (RAW MATERIALS),"EATING PLACES, RESTAURANTS"
31/12/2017,RECRUITMENT,FACEBK 5FZRVC2Q82,14.84,STAFF ADVERTISING ,ADVERTISING SERVICES
31/12/2017,HOLLAND CLOSE RESIDENTIAL HOME,TESCO-STORES 6647,230.66,PURCHASE OF FOOD (RAW MATERIALS),"GROCERY STORES, SUPERMARKETS"
31/12/2017,ACL CENTRAL EXPENDITURE,FACEBK EBJPMD6CB2,7.05,PUBLICITY,ADVERTISING SERVICES
31/12/2017,ACL CENTRAL EXPENDITURE,FACEBK 8BJPMD6CB2,524.34,PUBLICITY,ADVERTISING SERVICES
31/12/2017,ACL CENTRAL EXPENDITURE,FACEBK 6RBQ7DJU82,22.00,PUBLICITY,ADVERTISING SERVICES
31/12/2017,CHEYNE WALK COMMUNITY HOME,SAINSBURYS TO YOU 0026,171.15,PURCHASE OF FOOD (RAW MATERIALS),"GROCERY STORES, SUPERMARKETS"
31/12/2017,LIBERTAS COMMUNITY HOME,SAINSBURYS TO YOU 0652,58.96,PURCHASE OF FOOD (RAW MATERIALS),"GROCERY STORES, SUPERMARKETS"
31/12/2017,LIBERTAS COMMUNITY HOME,ORIENTAL EXPRESS,54.10,REFRESHMENT COSTS,FAST FOOD RESTAURANTS
31/12/2017,LIBERTAS COMMUNITY HOME,TESCO STORE 2590,10.57,PURCHASE OF FOOD (RAW MATERIALS),"GROCERY STORES, SUPERMARKETS"
31/12/2017,WORKPLACE COMMERCIAL TEAM,FACEBK DN9BFDSNB2,5.43,PUBLICITY,ADVERTISING SERVICES
31/12/2017,ARUNDEL,ASDA SUPERSTORE,36.97,REFRESHMENT COSTS,"GROCERY STORES, SUPERMARKETS"
31/12/2017,E&I - RECYCLING                         ,FACEBK AKNURENZR2,268.35,PUBLICITY,ADVERTISING SERVICES
31/12/2017,E&I - RECYCLING                         ,FACEBK PKNURENZR2,41.39,PUBLICITY,ADVERTISING SERVICES
